{"text_format":"1","workbook":"xlsx","n_sheets":12,"sheets":["Sheet1","estate","Cash","Contents","BUsInt","Shares","isas","pension","Lifepol","othprop","futinherit","Giftsmade"],"not_rendered":{"charts":0,"images":2,"macros":1,"external_links":1,"defined_names":96,"comments":0,"pivot_tables":0},"unopened":[],"bounds":{"document_bytes":16777216,"sheet_cells":100000,"rows_first":2000,"rows_last":500,"rows_between":2000,"halvings":0,"cell_chars":16384,"cell_head_chars":4096},"cells_cut":0,"cells_raw":0,"read":"whole","date_system":"1900"}

{"sheet":"Sheet1","index":0,"n_rows":17,"n_cols":9,"rows_kept":17,"cut":false,"hidden":false,"merged":[[16,0,20,8]]}
[]
[null,null,null,null,null,null,null,null,"Version 1.06   13/03/07"]
[]
[]
[]
[]
[]
[]
[]
[]
[]
[]
[]
[]
[]
["How to use this tool"]
["Click the above button to enter. Click on the buttons alongside to go to a supplementary sheet where you can list the assets if required. Or you can just type the figures in the boxes. Note that if you type in a box the automatic link to the supplementary page will be overwritten and cannot be reinstated."]

{"sheet":"estate","index":1,"n_rows":48,"n_cols":40,"rows_kept":48,"cut":false,"hidden":false,"merged":[[45,15,45,18],[45,19,45,22],[45,23,45,26],[42,3,43,12],[43,15,43,18],[43,19,43,22],[43,23,43,26],[24,19,24,22],[26,19,26,22],[22,15,22,18],[8,23,8,26],[10,23,10,26],[12,19,12,22],[14,19,14,22],[16,19,16,22],[18,19,18,22],[20,19,20,22],[22,19,22,22],[12,23,12,26],[28,15,28,18],[30,15,30,18],[12,15,12,18],[14,15,14,18],[24,15,24,18],[26,15,26,18],[16,15,16,18],[18,15,18,18],[20,15,20,18],[38,15,38,18],[3,2,4,27],[6,15,6,18],[8,15,8,18],[10,15,10,18],[6,19,6,22],[8,19,8,22],[10,19,10,22],[20,23,20,26],[22,23,22,26],[24,23,24,26],[14,23,14,26],[16,23,16,26],[18,23,18,26],[26,23,26,26],[6,23,6,26],[41,3,41,15],[28,23,28,26],[30,23,30,26],[32,23,32,26],[34,23,34,26],[32,19,32,22],[34,19,34,22],[38,19,38,22],[32,15,32,18],[34,15,34,18],[36,19,36,22],[36,23,36,26],[38,23,38,26],[28,19,28,22],[30,19,30,22],[36,15,36,18]]}
[1,null,null,null,null,null,null,null,null,null,null,null,null,null,null,null,null,null,null,null,null,null,null,null,null,null,null,null,null,null,null,null,null,null,null,null,null,null," "]
[null,null,null,null,null,null,null,null,null,null,null,null,null,null,null,null,null,null,null,null,null,null,null,null,null,null,null,null,null,null,null,null,null,null,null,null,null,null," "," "]
[]
[null,null,"Estimated Value of Estate(s)"]
[]
[null,null,null,null,null,null,null,null,null,null,null,null,null,"Schedule",null,null,"SELF",null,null,null,"SPOUSE",null,null," ","JOINT"]
[null,null,null,"House"]
[null,null,null," "]
[null,null,null,"Less: Mortgage"]
[null,null,null," "]
[null,null,null,"Contents Value",null,null,null,null,null,null,null,null,null,null,null,{"$f":"contself","v":0},null,null,null,{"$f":"contspouse","v":0},null,null,null,{"$f":"contjoint","v":0}]
[null,null,null," "]
[null,null,null,"Car(s)"]
[null,null,null," "]
[null,null,null,"Other Property",null,null,null,null,null,null,null,null,null,null,null,{"$f":"othpropself","v":0},null,null,null,{"$f":"othpropspouse","v":0},null,null,null,{"$f":"othpropjoint","v":0}]
[null,null,null," "]
[null,null,null,"Less: Borrowings"]
[null,null,null," "]
[null,null,null,"Business Interests ",null,null,null,null,null,null,null,null," ",null,null,{"$f":"busintself","v":0},null,null,null,{"$f":"busintspouse","v":0},null,null,null,{"$f":"busintjoint","v":0}]
[null,null,null," ",null,null,null,null,null,null,null,null," "]
[null,null,null,"Other Capital Assets",null,null,null,null,null,null,null,null," "]
[null,null,null," ",null,null,null,null,null,null,null,null," "]
[null,null,null,"Cash at bank and building society",null,null,null,null,null,null,null,null," ",null,null,{"$f":"bankself","v":0},null,null,null,{"$f":"bankspouse","v":0},null,null,null,{"$f":"bankjoint","v":0}]
[null,null,null," "]
[null,null,null,"National Savings and Premium Bonds"]
[null,null,null," "]
[null,null,null,"Stocks and shares, Unit trusts etc",null,null,null,null,null,null,null,null,null,null,null,{"$f":"stockself","v":0},null,null,null,{"$f":"stockspouse","v":0},null,null,null,{"$f":"stockjoint","v":0}]
[null,null,null," "]
[null,null,null,"Tessa/ISA/PEP’s",null,null,null,null,null,null,null,null," ",null,null,{"$f":"isaself","v":0},null,null,null,{"$f":"isaspouse","v":0},null,null,null,{"$f":"isajoint","v":0}]
[null,null,null," "]
[null,null,null,"Pension Funds (are they written in trust?)",null,null,null,null,null,null,null,null,null,null,null,{"$f":"pensionself","v":0},null,null,null,{"$f":"pensionspouse","v":0},null,null,null,{"$f":"pensionjoint","v":0}]
[null,null,null," "]
[null,null,null,"Life policies (are they written in trust?)",null,null,null,null,null,null,null,null,null,null,null,{"$f":"lifeself","v":0},null,null,null,{"$f":"lifespouse","v":0},null,null,null,{"$f":"lifejoint","v":0}]
[null,null,null," "]
[null,null,null,"Other assets not specified above"]
[null,null,null," "," "]
[null,null,null,"Other debts not specified above"]
[null,null,null,null," "]
[null,null,null,"TOTAL",null,null,null,null,null,null,null,null,null,null,null,{"$f":"+P7-P9+P11+P13+P15-P17+P19+P21+P23+P25+P27+P29+P31+P33+P35-P37","v":0},null,null,null,{"$f":"+T7-T9+T11+T13+T15-T17+T19+T21+T23+T25+T27+T29+T31+T33+T35-T37","v":0},null,null,null,{"$f":"+X7-X9+X11+X13+X15-X17+X19+X21+X23+X25+X27+X29+X31+X33+X35-X37","v":0}]
[]
[null,null,null," "]
[null,null,null,"Date Completed:-"]
[null,null,null,"Any gifts made within the last seven years?"]
[null,null,null,null,null,null,null,null,null,null,null,null,null,null,null,{"$f":"giftsself","v":0},null,null,null,{"$f":"giftsspouse","v":0},null,null,null,{"$f":"giftsjoint","v":0}]
[]
[null,null,null,"Any future inheritances likely to be received?",null,null,null,null,null,null,null,null,null,null,null,{"$f":"futinhself","v":0},null,null,null,{"$f":"futinhspouse","v":0},null,null,null,{"$f":"futinhjoint","v":0}]
[]
[null,null,null,"NOTE: Please use the schedule buttons where indicated to enter information"]

{"sheet":"Cash","index":2,"n_rows":207,"n_cols":12,"rows_kept":207,"cut":false,"hidden":false,"merged":[[4,0,4,3],[5,0,5,3],[6,0,6,3],[7,0,7,3],[8,0,8,3],[9,0,9,3],[10,0,10,3],[11,0,11,3],[12,0,12,3],[13,0,13,3],[14,0,14,3],[15,0,15,3],[16,0,16,3],[17,0,17,3],[18,0,18,3],[19,0,19,3],[20,0,20,3],[21,0,21,3],[22,0,22,3],[23,0,23,3],[24,0,24,3],[25,0,25,3],[26,0,26,3],[27,0,27,3],[28,0,28,3],[29,0,29,3],[30,0,30,3],[31,0,31,3],[32,0,32,3],[33,0,33,3],[34,0,34,3],[35,0,35,3],[36,0,36,3],[37,0,37,3],[38,0,38,3],[39,0,39,3],[40,0,40,3],[41,0,41,3],[42,0,42,3],[43,0,43,3],[44,0,44,3],[45,0,45,3],[46,0,46,3],[47,0,47,3],[48,0,48,3],[49,0,49,3],[50,0,50,3],[51,0,51,3],[52,0,52,3],[53,0,53,3],[54,0,54,3],[55,0,55,3],[56,0,56,3],[57,0,57,3],[58,0,58,3],[59,0,59,3],[60,0,60,3],[61,0,61,3],[62,0,62,3],[63,0,63,3],[64,0,64,3],[65,0,65,3],[66,0,66,3],[67,0,67,3],[68,0,68,3],[69,0,69,3],[70,0,70,3],[71,0,71,3],[72,0,72,3],[73,0,73,3],[74,0,74,3],[75,0,75,3],[76,0,76,3],[77,0,77,3],[78,0,78,3],[79,0,79,3],[80,0,80,3],[81,0,81,3],[82,0,82,3],[83,0,83,3],[84,0,84,3],[85,0,85,3],[86,0,86,3],[87,0,87,3],[88,0,88,3],[89,0,89,3],[90,0,90,3],[91,0,91,3],[92,0,92,3],[93,0,93,3],[94,0,94,3],[95,0,95,3],[96,0,96,3],[97,0,97,3],[98,0,98,3],[99,0,99,3],[100,0,100,3],[101,0,101,3],[102,0,102,3],[103,0,103,3],[104,0,104,3],[105,0,105,3],[106,0,106,3],[107,0,107,3],[108,0,108,3],[109,0,109,3],[110,0,110,3],[111,0,111,3],[112,0,112,3],[113,0,113,3],[114,0,114,3],[115,0,115,3],[116,0,116,3],[117,0,117,3],[118,0,118,3],[119,0,119,3],[120,0,120,3],[121,0,121,3],[122,0,122,3],[123,0,123,3],[124,0,124,3],[125,0,125,3],[126,0,126,3],[127,0,127,3],[128,0,128,3],[129,0,129,3],[130,0,130,3],[131,0,131,3],[132,0,132,3],[133,0,133,3],[134,0,134,3],[135,0,135,3],[136,0,136,3],[137,0,137,3],[138,0,138,3],[139,0,139,3],[140,0,140,3],[141,0,141,3],[142,0,142,3],[143,0,143,3],[144,0,144,3],[145,0,145,3],[146,0,146,3],[147,0,147,3],[148,0,148,3],[149,0,149,3],[150,0,150,3],[151,0,151,3],[152,0,152,3],[153,0,153,3],[154,0,154,3],[155,0,155,3],[156,0,156,3],[157,0,157,3],[158,0,158,3],[159,0,159,3],[164,0,164,3],[165,0,165,3],[160,0,160,3],[161,0,161,3],[162,0,162,3],[163,0,163,3]]}
["CASH / B Society "]
["Total Carried to Summary sheet",null,null,null,{"$f":"SUM(E3:E100)","v":0},{"$f":"SUM(F3:F100)","v":0},{"$f":"SUM(G3:G100)","v":0},"Return to main page"]
[]
[null,null,null,null,"Self","Spouse","Joint"]
["LIST ASSETS BELOW",null,null,null," "]
[null,null,null,null,0,0,0,null,null,null,null,"Abbey National"]
[null,null,null,null,null,null,null,null,null,null,null,"Abbey National Direct"]
[null,null,null,null,null,null,null,null,null,null,null,"Abbey National Treasury International Ltd"]
[null,null,null,null,null,null,null,null,null,null,null,"Alliance & Leicester"]
[null,null,null,null,null,null,null,null,null,null,null,"Alliance & Leicester Giro"]
[null,null,null,null,null,null,null,null,null,null,null,"Alliance & Leicester International Ltd"]
[null,null,null,null,null,null,null,null,null,null,null,"Allied Dunbar Bank International Ltd"]
[null,null,null,null,null,null,null,null,null,null,null,"Allied Irish Bank (GB)"]
[null,null,null,null,null,null,null,null,null,null,null,"Ansbacher (Jersey) Ltd"]
[null,null,null,null,null,null,null,null,null,null,null,"Bank of Cyprus (London) Ltd"]
[null,null,null,null,null,null,null,null,null,null,null,"Bank of Ireland (GB)"]
[null,null,null,null,null,null,null,null,null,null,null,"Bank of Ireland (NI)"]
[null,null,null,null,null,null,null,null,null,null,null,"Bank of Ireland Mortgages"]
[null,null,null,null,null,null,null,null,null,null,null,"Bank of Scotland"]
[null,null,null,null,null,null,null,null,null,null,null,"Bank of Scotland (IOM) Ltd"]
[null,null,null,null,null,null,null,null,null,null,null,"Bank of Scotland Centrebank"]
[null,null,null,null,null,null,null,null,null,null,null,"Bank of Scotland Mortgages Direct"]
[null,null,null,null,null,null,null,null,null,null,null,"Bank of Wales"]
[null,null,null,null,null,null,null,null,null,null,null,"Bank of Wales (Jersey) Ltd"]
[null,null,null,null,null,null,null,null,null,null,null,"Barclays Bank"]
[null,null,null,null,null,null,null,null,null,null,null,"Barnsley Building Society"]
[null,null,null,null,null,null,null,null,null,null,null,"Bath Building Society"]
[null,null,null,null,null,null,null,null,null,null,null,"Beneficial Bank"]
[null,null,null,null,null,null,null,null,null,null,null,"Beverly Building Society"]
[null,null,null,null,null,null,null,null,null,null,null,"Birmingham Midshires (Guernsey) Ltd"]
[null,null,null,null,null,null,null,null,null,null,null,"Birmingham Midshires Building Society"]
[null,null,null,null,null,null,null,null,null,null,null,"Birmingham Midshires MSL"]
[null,null,null,null,null,null,null,null,null,null,null,"Bradford & Bingley (IOM) Ltd"]
[null,null,null,null,null,null,null,null,null,null,null,"Bradford & Bingley Building Society"]
[null,null,null,null,null,null,null,null,null,null,null,"Bradford & Bingley MTGS Direct"]
[null,null,null,null,null,null,null,null,null,null,null,"Bristol & West"]
[null,null,null,null,null,null,null,null,null,null,null,"Bristol & West / Direct Mortgages"]
[null,null,null,null,null,null,null,null,null,null,null,"Bristol & West IMC"]
[null,null,null,null,null,null,null,null,null,null,null,"Bristol & West International Ltd"]
[null,null,null,null,null,null,null,null,null,null,null,"Britannia Building Society"]
[null,null,null,null,null,null,null,null,null,null,null,"Britannia International Ltd"]
[null,null,null,null,null,null,null,null,null,null,null,"Britannia Mortgage Direct"]
[null,null,null,null,null,null,null,null,null,null,null,"Buckinghamshire Building Society"]
[null,null,null,null,null,null,null,null,null,null,null,"C & G Channel Islands Ltd"]
[null,null,null,null,null,null,null,null,null,null,null,"C & G Mortgage Direct"]
[null,null,null,null,null,null,null,null,null,null,null,"Cambridge Building Society"]
[null,null,null,null,null,null,null,null,null,null,null,"Capital Bonds"]
[null,null,null,null,null,null,null,null,null,null,null,"Capital Home Loans"]
[null,null,null,null,null,null,null,null,null,null,null,"Capital Wise"]
[null,null,null,null,null,null,null,null,null,null,null,"Cater Allen Bank"]
[null,null,null,null,null,null,null,null,null,null,null,"Cater Allen Bank (IOM) Ltd"]
[null,null,null,null,null,null,null,null,null,null,null,"Cater Allen Bank (Jersey) Ltd"]
[null,null,null,null,null,null,null,null,null,null,null,"Chelsea Building Society"]
[null,null,null,null,null,null,null,null,null,null,null,"Cheltenham & Gloucester"]
[null,null,null,null,null,null,null,null,null,null,null,"Chesham Building Society"]
[null,null,null,null,null,null,null,null,null,null,null,"Cheshire Building Society"]
[null,null,null,null,null,null,null,null,null,null,null,"Cheshire Guernsey Ltd"]
[null,null,null,null,null,null,null,null,null,null,null,"Chorley & District Building Society"]
[null,null,null,null,null,null,null,null,null,null,null,"Citibank"]
[null,null,null,null,null,null,null,null,null,null,null,"Close Brothers"]
[null,null,null,null,null,null,null,null,null,null,null,"Clydesdale Bank"]
[null,null,null,null,null,null,null,null,null,null,null,"Co-operative Bank"]
[null,null,null,null,null,null,null,null,null,null,null,"Coutts & Co"]
[null,null,null,null,null,null,null,null,null,null,null,"Coventry Building Society"]
[null,null,null,null,null,null,null,null,null,null,null,"Cumberland Building Society"]
[null,null,null,null,null,null,null,null,null,null,null,"Darlington Building Society"]
[null,null,null,null,null,null,null,null,null,null,null,"Deposit Bonds"]
[null,null,null,null,null,null,null,null,null,null,null,"Derbyshire (IOM) Ltd"]
[null,null,null,null,null,null,null,null,null,null,null,"Derbyshire Building Society"]
[null,null,null,null,null,null,null,null,null,null,null,"Derbyshire Direct"]
[null,null,null,null,null,null,null,null,null,null,null,"Direct Line"]
[null,null,null,null,null,null,null,null,null,null,null,"Dudley Building Society"]
[null,null,null,null,null,null,null,null,null,null,null,"Dunfermline Building Society"]
[null,null,null,null,null,null,null,null,null,null,null,"EBS Bank (IOM) Ltd"]
[null,null,null,null,null,null,null,null,null,null,null,"Earl Shilton Building Society"]
[null,null,null,null,null,null,null,null,null,null,null,"Ecology Building Society"]
[null,null,null,null,null,null,null,null,null,null,null,"First Direct"]
[null,null,null,null,null,null,null,null,null,null,null,"First Mortgage"]
[null,null,null,null,null,null,null,null,null,null,null,"First National Building Society"]
[null,null,null,null,null,null,null,null,null,null,null,"First National Building Society Guernsey Ltd"]
[null,null,null,null,null,null,null,null,null,null,null,"First Option Bonds"]
[null,null,null,null,null,null,null,null,null,null,null,"First Trust Bank (NI)"]
[null,null,null,null,null,null,null,null,null,null,null,"Friends Provident"]
[null,null,null,null,null,null,null,null,null,null,null,"Frizzell Bank"]
[null,null,null,null,null,null,null,null,null,null,null,"Furness Building Society"]
[null,null,null,null,null,null,null,null,null,null,null,"Furness Direct"]
[null,null,null,null,null,null,null,null,null,null,null,"Guinness Mahon Guernsey Ltd"]
[null,null,null,null,null,null,null,null,null,null,null,"HFC Bank"]
[null,null,null,null,null,null,null,null,null,null,null,"Halifax"]
[null,null,null,null,null,null,null,null,null,null,null,"Halifax International (IOM) Ltd"]
[null,null,null,null,null,null,null,null,null,null,null,"Halifax International (Jersey) Ltd"]
[null,null,null,null,null,null,null,null,null,null,null,"Halifax MSL"]
[null,null,null,null,null,null,null,null,null,null,null,"Hambros Bank (Jersey) Ltd"]
[null,null,null,null,null,null,null,null,null,null,null,"Hanley Economic Building Society"]
[null,null,null,null,null,null,null,null,null,null,null,"Hanson Bank Ltd"]
[null,null,null,null,null,null,null,null,null,null,null,"Harpenden Building Society"]
[null,null,null,null,null,null,null,null,null,null,null,"HBOS"]
[null,null,null,null,null,null,null,null,null,null,null,"Hinckley & Rugby Building Society"]
[null,null,null,null,null,null,null,null,null,null,null,"Hoare & Co"]
[null,null,null,null,null,null,null,null,null,null,null,"Holmesdale Building Society"]
[null,null,null,null,null,null,null,null,null,null,null,"Household Mortgage Corporation"]
[null,null,null,null,null,null,null,null,null,null,null,"HSBC Bank"]
[null,null,null,null,null,null,null,null,null,null,null,"Income Bonds"]
[null,null,null,null,null,null,null,null,null,null,null,"Intelligent Finance"]
[null,null,null,null,null,null,null,null,null,null,null,"Investec Bank (Jersey) Ltd"]
[null,null,null,null,null,null,null,null,null,null,null,"Investec Bank (UK)"]
[null,null,null,null,null,null,null,null,null,null,null,"Ipswich Building Society"]
[null,null,null,null,null,null,null,null,null,null,null,"Irish Nationwide (IOM) Ltd"]
[null,null,null,null,null,null,null,null,null,null,null,"Irish Permanent"]
[null,null,null,null,null,null,null,null,null,null,null,"Irish Permanent (IOM) Ltd"]
[null,null,null,null,null,null,null,null,null,null,null,"Isle of Man Bank"]
[null,null,null,null,null,null,null,null,null,null,null,"Julian Hodge Bank"]
[null,null,null,null,null,null,null,null,null,null,null,"Jyske Bank"]
[null,null,null,null,null,null,null,null,null,null,null,"Kent Reliance Building Society"]
[null,null,null,null,null,null,null,null,null,null,null,"Lambeth Building Society"]
[null,null,null,null,null,null,null,null,null,null,null,"Leeds & Holbeck Building Society"]
[null,null,null,null,null,null,null,null,null,null,null,"Leek United Building Society"]
[null,null,null,null,null,null,null,null,null,null,null,"Legal & General Bank"]
[null,null,null,null,null,null,null,null,null,null,null,"Leopold Joseph"]
[null,null,null,null,null,null,null,null,null,null,null,"Leopold Joseph (Guernsey) Ltd"]
[null,null,null,null,null,null,null,null,null,null,null,"Lloyds Bank"]
[null,null,null,null,null,null,null,null,null,null,null,"Lloyds TSB Bank"]
[null,null,null,null,null,null,null,null,null,null,null,"Lombard Banking (Jersey) Ltd"]
[null,null,null,null,null,null,null,null,null,null,null,"Lombard North Central"]
[null,null,null,null,null,null,null,null,null,null,null,"Londonderry Prov. Building Society"]
[null,null,null,null,null,null,null,null,null,null,null,"Loughborough Building Society"]
[null,null,null,null,null,null,null,null,null,null,null,"MBNA International"]
[null,null,null,null,null,null,null,null,null,null,null,"Manchester Building Society"]
[null,null,null,null,null,null,null,null,null,null,null,"Mansfield Building Society"]
[null,null,null,null,null,null,null,null,null,null,null,"Market Harborough Building Society"]
[null,null,null,null,null,null,null,null,null,null,null,"Marsden Building Society"]
[null,null,null,null,null,null,null,null,null,null,null,"Melton Mowbray Building Society"]
[null,null,null,null,null,null,null,null,null,null,null,"Mercantile Building Society"]
[null,null,null,null,null,null,null,null,null,null,null,"Midland Bank"]
[null,null,null,null,null,null,null,null,null,null,null,"Midland Bank Offshore Ltd"]
[null,null,null,null,null,null,null,null,null,null,null,"Monmouthshire Building Society"]
[null,null,null,null,null,null,null,null,null,null,null,"Mortgage Express"]
[null,null,null,null,null,null,null,null,null,null,null,"Mortgage Trust"]
[null,null,null,null,null,null,null,null,null,null,null,"NSB Investment Account"]
[null,null,null,null,null,null,null,null,null,null,null,"NSB Ordinary Account"]
[null,null,null,null,null,null,null,null,null,null,null,"National Counties Building Society"]
[null,null,null,null,null,null,null,null,null,null,null,"National Westminster Bank"]
[null,null,null,null,null,null,null,null,null,null,null,"National Westminster Mortgage Services"]
[null,null,null,null,null,null,null,null,null,null,null,"Nationwide Building Society"]
[null,null,null,null,null,null,null,null,null,null,null,"Nationwide Direct"]
[null,null,null,null,null,null,null,null,null,null,null,"Nationwide International Ltd"]
[null,null,null,null,null,null,null,null,null,null,null,"Newbury Building Society"]
[null,null,null,null,null,null,null,null,null,null,null,"Newcastle Bank (Gibraltar) Ltd"]
[null,null,null,null,null,null,null,null,null,null,null,"Newcastle Building Society"]
[null,null,null,null,null,null,null,null,null,null,null,"Newcastle Direct"]
[null,null,null,null,null,null,null,null,null,null,null,"Northern Bank"]
[null,null,null,null,null,null,null,null,null,null,null,"Northern Offshore Banking & Financial Services"]
[null,null,null,null,null,null,null,null,null,null,null,"Northern Rock"]
[null,null,null,null,null,null,null,null,null,null,null,"Northern Rock (Guernsey) Ltd"]
[null,null,null,null,null,null,null,null,null,null,null,"Northern Rock Direct"]
[null,null,null,null,null,null,null,null,null,null,null,"Norwich & Peterborough Building Society"]
[null,null,null,null,null,null,null,null,null,null,null,"Nottingham Building Society"]
[null,null,null,null,null,null,null,null,null,null,null,"Nottingham Imperial Building Society"]
[null,null,null,null,null,null,null,null,null,null,null,"Paragon Mortgages"]
[null,null,null,null,null,null,null,null,null,null,null,"Pensioners Guaranteed Income Bonds"]
[null,null,null,null,null,null,null,null,null,null,null,"Portman Building Society"]
[null,null,null,null,null,null,null,null,null,null,null,"Portman Channel Islands Ltd"]
[null,null,null,null,null,null,null,null,null,null,null,"Principality Building Society"]
[null,null,null,null,null,null,null,null,null,null,null,"Progressive Building Society"]
[null,null,null,null,null,null,null,null,null,null,null,"Prudential Banking"]
[null,null,null,null,null,null,null,null,null,null,null,"Robert Fleming (IOM) Ltd"]
[null,null,null,null,null,null,null,null,null,null,null,"Royal Bank of Canada (IOM) Ltd"]
[null,null,null,null,null,null,null,null,null,null,null,"Royal Bank of Canada (Jersey) Ltd"]
[null,null,null,null,null,null,null,null,null,null,null,"Royal Bank of Scotland"]
[null,null,null,null,null,null,null,null,null,null,null,"Royal Bank of Scotland International Ltd"]
[null,null,null,null,null,null,null,null,null,null,null,"Saffron Walden Building Society"]
[null,null,null,null,null,null,null,null,null,null,null,"Sainsbury's Bank"]
[null,null,null,null,null,null,null,null,null,null,null,"Scarborough Building Society"]
[null,null,null,null,null,null,null,null,null,null,null,"Schroders (CI) Ltd"]
[null,null,null,null,null,null,null,null,null,null,null,"Scottish Building Society"]
[null,null,null,null,null,null,null,null,null,null,null,"Scottish Widows Bank"]
[null,null,null,null,null,null,null,null,null,null,null,"Shepshed Building Society"]
[null,null,null,null,null,null,null,null,null,null,null,"Singer & Friedlander (IOM) Ltd"]
[null,null,null,null,null,null,null,null,null,null,null,"Skipton Building Society"]
[null,null,null,null,null,null,null,null,null,null,null,"Skipton Guernsey Ltd"]
[null,null,null,null,null,null,null,null,null,null,null,"Stafford Railway Building Society"]
[null,null,null,null,null,null,null,null,null,null,null,"Staffordshire Building Society"]
[null,null,null,null,null,null,null,null,null,null,null,"Standard Bank IOM"]
[null,null,null,null,null,null,null,null,null,null,null,"Standard Bank Jersey"]
[null,null,null,null,null,null,null,null,null,null,null,"Standard Chartered Bank"]
[null,null,null,null,null,null,null,null,null,null,null,"Stroud & Swindon Building Society"]
[null,null,null,null,null,null,null,null,null,null,null,"Sun Banking Corp"]
[null,null,null,null,null,null,null,null,null,null,null,"Sun Banking Corp (Jersey) Ltd"]
[null,null,null,null,null,null,null,null,null,null,null,"Sun Banking Corporation"]
[null,null,null,null,null,null,null,null,null,null,null,"TSB"]
[null,null,null,null,null,null,null,null,null,null,null,"TSB Bank Channel Islands Ltd"]
[null,null,null,null,null,null,null,null,null,null,null,"Teachers Building Society"]
[null,null,null,null,null,null,null,null,null,null,null,"The Mortgage Business"]
[null,null,null,null,null,null,null,null,null,null,null,"Tipton & Coseley Building Society"]
[null,null,null,null,null,null,null,null,null,null,null,"UCB Home Loans Corporation"]
[null,null,null,null,null,null,null,null,null,null,null,"Ulster Bank"]
[null,null,null,null,null,null,null,null,null,null,null,"Ulster Bank (IOM) Ltd"]
[null,null,null,null,null,null,null,null,null,null,null,"Universal Building Society"]
[null,null,null,null,null,null,null,null,null,null,null,"Vernon Building Society"]
[null,null,null,null,null,null,null,null,null,null,null,"Wesleyan Home Loans"]
[null,null,null,null,null,null,null,null,null,null,null,"West Bromwich Building Society"]
[null,null,null,null,null,null,null,null,null,null,null,"Woolwich"]
[null,null,null,null,null,null,null,null,null,null,null,"Woolwich Direct"]
[null,null,null,null,null,null,null,null,null,null,null,"Woolwich Guernsey Ltd"]
[null,null,null,null,null,null,null,null,null,null,null,"Yorkshire Bank"]
[null,null,null,null,null,null,null,null,null,null,null,"Yorkshire Building Society"]
[null,null,null,null,null,null,null,null,null,null,null,"Yorkshire Guernsey Ltd"]

{"sheet":"Contents","index":3,"n_rows":207,"n_cols":12,"rows_kept":207,"cut":false,"hidden":false,"merged":[[164,0,164,3],[165,0,165,3],[160,0,160,3],[161,0,161,3],[162,0,162,3],[163,0,163,3],[156,0,156,3],[157,0,157,3],[158,0,158,3],[159,0,159,3],[152,0,152,3],[153,0,153,3],[154,0,154,3],[155,0,155,3],[148,0,148,3],[149,0,149,3],[150,0,150,3],[151,0,151,3],[144,0,144,3],[145,0,145,3],[146,0,146,3],[147,0,147,3],[140,0,140,3],[141,0,141,3],[142,0,142,3],[143,0,143,3],[136,0,136,3],[137,0,137,3],[138,0,138,3],[139,0,139,3],[132,0,132,3],[133,0,133,3],[134,0,134,3],[135,0,135,3],[128,0,128,3],[129,0,129,3],[130,0,130,3],[131,0,131,3],[124,0,124,3],[125,0,125,3],[126,0,126,3],[127,0,127,3],[120,0,120,3],[121,0,121,3],[122,0,122,3],[123,0,123,3],[116,0,116,3],[117,0,117,3],[118,0,118,3],[119,0,119,3],[112,0,112,3],[113,0,113,3],[114,0,114,3],[115,0,115,3],[108,0,108,3],[109,0,109,3],[110,0,110,3],[111,0,111,3],[104,0,104,3],[105,0,105,3],[106,0,106,3],[107,0,107,3],[100,0,100,3],[101,0,101,3],[102,0,102,3],[103,0,103,3],[96,0,96,3],[97,0,97,3],[98,0,98,3],[99,0,99,3],[92,0,92,3],[93,0,93,3],[94,0,94,3],[95,0,95,3],[88,0,88,3],[89,0,89,3],[90,0,90,3],[91,0,91,3],[84,0,84,3],[85,0,85,3],[86,0,86,3],[87,0,87,3],[80,0,80,3],[81,0,81,3],[82,0,82,3],[83,0,83,3],[76,0,76,3],[77,0,77,3],[78,0,78,3],[79,0,79,3],[72,0,72,3],[73,0,73,3],[74,0,74,3],[75,0,75,3],[68,0,68,3],[69,0,69,3],[70,0,70,3],[71,0,71,3],[64,0,64,3],[65,0,65,3],[66,0,66,3],[67,0,67,3],[60,0,60,3],[61,0,61,3],[62,0,62,3],[63,0,63,3],[56,0,56,3],[57,0,57,3],[58,0,58,3],[59,0,59,3],[52,0,52,3],[53,0,53,3],[54,0,54,3],[55,0,55,3],[48,0,48,3],[49,0,49,3],[50,0,50,3],[51,0,51,3],[44,0,44,3],[45,0,45,3],[46,0,46,3],[47,0,47,3],[40,0,40,3],[41,0,41,3],[42,0,42,3],[43,0,43,3],[36,0,36,3],[37,0,37,3],[38,0,38,3],[39,0,39,3],[32,0,32,3],[33,0,33,3],[34,0,34,3],[35,0,35,3],[28,0,28,3],[29,0,29,3],[30,0,30,3],[31,0,31,3],[24,0,24,3],[25,0,25,3],[26,0,26,3],[27,0,27,3],[20,0,20,3],[21,0,21,3],[22,0,22,3],[23,0,23,3],[16,0,16,3],[17,0,17,3],[18,0,18,3],[19,0,19,3],[14,0,14,3],[15,0,15,3],[13,0,13,3],[8,0,8,3],[9,0,9,3],[10,0,10,3],[11,0,11,3],[4,0,4,3],[5,0,5,3],[6,0,6,3],[7,0,7,3],[12,0,12,3]]}
["CONTENTS"]
["Total Carried to Summary sheet",null,null,null,{"$f":"SUM(E3:E100)","v":0},{"$f":"SUM(F3:F100)","v":0},{"$f":"SUM(G3:G100)","v":0},"Return to main page"]
[]
[null,null,null,null,"Self","Spouse","Joint"]
["LIST ASSETS BELOW",null,null,null," "]
[" ",null,null,null,null,null,null,null,null,null,null,"Abbey National"]
[null,null,null,null,null,null,null,null,null,null,null,"Abbey National Direct"]
[null,null,null,null,null,null,null,null,null,null,null,"Abbey National Treasury International Ltd"]
[null,null,null,null,null,null,null,null,null,null,null,"Alliance & Leicester"]
[null,null,null,null,null,null,null,null,null,null,null,"Alliance & Leicester Giro"]
[null,null,null,null,null,null,null,null,null,null,null,"Alliance & Leicester International Ltd"]
[null,null,null,null,null,null,null,null,null,null,null,"Allied Dunbar Bank International Ltd"]
[null,null,null,null,null,null,null,null,null,null,null,"Allied Irish Bank (GB)"]
[null,null,null,null,null,null,null,null,null,null,null,"Ansbacher (Jersey) Ltd"]
[null,null,null,null,null,null,null,null,null,null,null,"Bank of Cyprus (London) Ltd"]
[null,null,null,null,null,null,null,null,null,null,null,"Bank of Ireland (GB)"]
[null,null,null,null,null,null,null,null,null,null,null,"Bank of Ireland (NI)"]
[null,null,null,null,null,null,null,null,null,null,null,"Bank of Ireland Mortgages"]
[null,null,null,null,null,null,null,null,null,null,null,"Bank of Scotland"]
[null,null,null,null,null,null,null,null,null,null,null,"Bank of Scotland (IOM) Ltd"]
[null,null,null,null,null,null,null,null,null,null,null,"Bank of Scotland Centrebank"]
[null,null,null,null,null,null,null,null,null,null,null,"Bank of Scotland Mortgages Direct"]
[null,null,null,null,null,null,null,null,null,null,null,"Bank of Wales"]
[null,null,null,null,null,null,null,null,null,null,null,"Bank of Wales (Jersey) Ltd"]
[null,null,null,null,null,null,null,null,null,null,null,"Barclays Bank"]
[null,null,null,null,null,null,null,null,null,null,null,"Barnsley Building Society"]
[null,null,null,null,null,null,null,null,null,null,null,"Bath Building Society"]
[null,null,null,null,null,null,null,null,null,null,null,"Beneficial Bank"]
[null,null,null,null,null,null,null,null,null,null,null,"Beverly Building Society"]
[null,null,null,null,null,null,null,null,null,null,null,"Birmingham Midshires (Guernsey) Ltd"]
[null,null,null,null,null,null,null,null,null,null,null,"Birmingham Midshires Building Society"]
[null,null,null,null,null,null,null,null,null,null,null,"Birmingham Midshires MSL"]
[null,null,null,null,null,null,null,null,null,null,null,"Bradford & Bingley (IOM) Ltd"]
[null,null,null,null,null,null,null,null,null,null,null,"Bradford & Bingley Building Society"]
[null,null,null,null,null,null,null,null,null,null,null,"Bradford & Bingley MTGS Direct"]
[null,null,null,null,null,null,null,null,null,null,null,"Bristol & West"]
[null,null,null,null,null,null,null,null,null,null,null,"Bristol & West / Direct Mortgages"]
[null,null,null,null,null,null,null,null,null,null,null,"Bristol & West IMC"]
[null,null,null,null,null,null,null,null,null,null,null,"Bristol & West International Ltd"]
[null,null,null,null,null,null,null,null,null,null,null,"Britannia Building Society"]
[null,null,null,null,null,null,null,null,null,null,null,"Britannia International Ltd"]
[null,null,null,null,null,null,null,null,null,null,null,"Britannia Mortgage Direct"]
[null,null,null,null,null,null,null,null,null,null,null,"Buckinghamshire Building Society"]
[null,null,null,null,null,null,null,null,null,null,null,"C & G Channel Islands Ltd"]
[null,null,null,null,null,null,null,null,null,null,null,"C & G Mortgage Direct"]
[null,null,null,null,null,null,null,null,null,null,null,"Cambridge Building Society"]
[null,null,null,null,null,null,null,null,null,null,null,"Capital Bonds"]
[null,null,null,null,null,null,null,null,null,null,null,"Capital Home Loans"]
[null,null,null,null,null,null,null,null,null,null,null,"Capital Wise"]
[null,null,null,null,null,null,null,null,null,null,null,"Cater Allen Bank"]
[null,null,null,null,null,null,null,null,null,null,null,"Cater Allen Bank (IOM) Ltd"]
[null,null,null,null,null,null,null,null,null,null,null,"Cater Allen Bank (Jersey) Ltd"]
[null,null,null,null,null,null,null,null,null,null,null,"Chelsea Building Society"]
[null,null,null,null,null,null,null,null,null,null,null,"Cheltenham & Gloucester"]
[null,null,null,null,null,null,null,null,null,null,null,"Chesham Building Society"]
[null,null,null,null,null,null,null,null,null,null,null,"Cheshire Building Society"]
[null,null,null,null,null,null,null,null,null,null,null,"Cheshire Guernsey Ltd"]
[null,null,null,null,null,null,null,null,null,null,null,"Chorley & District Building Society"]
[null,null,null,null,null,null,null,null,null,null,null,"Citibank"]
[null,null,null,null,null,null,null,null,null,null,null,"Close Brothers"]
[null,null,null,null,null,null,null,null,null,null,null,"Clydesdale Bank"]
[null,null,null,null,null,null,null,null,null,null,null,"Co-operative Bank"]
[null,null,null,null,null,null,null,null,null,null,null,"Coutts & Co"]
[null,null,null,null,null,null,null,null,null,null,null,"Coventry Building Society"]
[null,null,null,null,null,null,null,null,null,null,null,"Cumberland Building Society"]
[null,null,null,null,null,null,null,null,null,null,null,"Darlington Building Society"]
[null,null,null,null,null,null,null,null,null,null,null,"Deposit Bonds"]
[null,null,null,null,null,null,null,null,null,null,null,"Derbyshire (IOM) Ltd"]
[null,null,null,null,null,null,null,null,null,null,null,"Derbyshire Building Society"]
[null,null,null,null,null,null,null,null,null,null,null,"Derbyshire Direct"]
[null,null,null,null,null,null,null,null,null,null,null,"Direct Line"]
[null,null,null,null,null,null,null,null,null,null,null,"Dudley Building Society"]
[null,null,null,null,null,null,null,null,null,null,null,"Dunfermline Building Society"]
[null,null,null,null,null,null,null,null,null,null,null,"EBS Bank (IOM) Ltd"]
[null,null,null,null,null,null,null,null,null,null,null,"Earl Shilton Building Society"]
[null,null,null,null,null,null,null,null,null,null,null,"Ecology Building Society"]
[null,null,null,null,null,null,null,null,null,null,null,"First Direct"]
[null,null,null,null,null,null,null,null,null,null,null,"First Mortgage"]
[null,null,null,null,null,null,null,null,null,null,null,"First National Building Society"]
[null,null,null,null,null,null,null,null,null,null,null,"First National Building Society Guernsey Ltd"]
[null,null,null,null,null,null,null,null,null,null,null,"First Option Bonds"]
[null,null,null,null,null,null,null,null,null,null,null,"First Trust Bank (NI)"]
[null,null,null,null,null,null,null,null,null,null,null,"Friends Provident"]
[null,null,null,null,null,null,null,null,null,null,null,"Frizzell Bank"]
[null,null,null,null,null,null,null,null,null,null,null,"Furness Building Society"]
[null,null,null,null,null,null,null,null,null,null,null,"Furness Direct"]
[null,null,null,null,null,null,null,null,null,null,null,"Guinness Mahon Guernsey Ltd"]
[null,null,null,null,null,null,null,null,null,null,null,"HFC Bank"]
[null,null,null,null,null,null,null,null,null,null,null,"Halifax"]
[null,null,null,null,null,null,null,null,null,null,null,"Halifax International (IOM) Ltd"]
[null,null,null,null,null,null,null,null,null,null,null,"Halifax International (Jersey) Ltd"]
[null,null,null,null,null,null,null,null,null,null,null,"Halifax MSL"]
[null,null,null,null,null,null,null,null,null,null,null,"Hambros Bank (Jersey) Ltd"]
[null,null,null,null,null,null,null,null,null,null,null,"Hanley Economic Building Society"]
[null,null,null,null,null,null,null,null,null,null,null,"Hanson Bank Ltd"]
[null,null,null,null,null,null,null,null,null,null,null,"Harpenden Building Society"]
[null,null,null,null,null,null,null,null,null,null,null,"HBOS"]
[null,null,null,null,null,null,null,null,null,null,null,"Hinckley & Rugby Building Society"]
[null,null,null,null,null,null,null,null,null,null,null,"Hoare & Co"]
[null,null,null,null,null,null,null,null,null,null,null,"Holmesdale Building Society"]
[null,null,null,null,null,null,null,null,null,null,null,"Household Mortgage Corporation"]
[null,null,null,null,null,null,null,null,null,null,null,"HSBC Bank"]
[null,null,null,null,null,null,null,null,null,null,null,"Income Bonds"]
[null,null,null,null,null,null,null,null,null,null,null,"Intelligent Finance"]
[null,null,null,null,null,null,null,null,null,null,null,"Investec Bank (Jersey) Ltd"]
[null,null,null,null,null,null,null,null,null,null,null,"Investec Bank (UK)"]
[null,null,null,null,null,null,null,null,null,null,null,"Ipswich Building Society"]
[null,null,null,null,null,null,null,null,null,null,null,"Irish Nationwide (IOM) Ltd"]
[null,null,null,null,null,null,null,null,null,null,null,"Irish Permanent"]
[null,null,null,null,null,null,null,null,null,null,null,"Irish Permanent (IOM) Ltd"]
[null,null,null,null,null,null,null,null,null,null,null,"Isle of Man Bank"]
[null,null,null,null,null,null,null,null,null,null,null,"Julian Hodge Bank"]
[null,null,null,null,null,null,null,null,null,null,null,"Jyske Bank"]
[null,null,null,null,null,null,null,null,null,null,null,"Kent Reliance Building Society"]
[null,null,null,null,null,null,null,null,null,null,null,"Lambeth Building Society"]
[null,null,null,null,null,null,null,null,null,null,null,"Leeds & Holbeck Building Society"]
[null,null,null,null,null,null,null,null,null,null,null,"Leek United Building Society"]
[null,null,null,null,null,null,null,null,null,null,null,"Legal & General Bank"]
[null,null,null,null,null,null,null,null,null,null,null,"Leopold Joseph"]
[null,null,null,null,null,null,null,null,null,null,null,"Leopold Joseph (Guernsey) Ltd"]
[null,null,null,null,null,null,null,null,null,null,null,"Lloyds Bank"]
[null,null,null,null,null,null,null,null,null,null,null,"Lloyds TSB Bank"]
[null,null,null,null,null,null,null,null,null,null,null,"Lombard Banking (Jersey) Ltd"]
[null,null,null,null,null,null,null,null,null,null,null,"Lombard North Central"]
[null,null,null,null,null,null,null,null,null,null,null,"Londonderry Prov. Building Society"]
[null,null,null,null,null,null,null,null,null,null,null,"Loughborough Building Society"]
[null,null,null,null,null,null,null,null,null,null,null,"MBNA International"]
[null,null,null,null,null,null,null,null,null,null,null,"Manchester Building Society"]
[null,null,null,null,null,null,null,null,null,null,null,"Mansfield Building Society"]
[null,null,null,null,null,null,null,null,null,null,null,"Market Harborough Building Society"]
[null,null,null,null,null,null,null,null,null,null,null,"Marsden Building Society"]
[null,null,null,null,null,null,null,null,null,null,null,"Melton Mowbray Building Society"]
[null,null,null,null,null,null,null,null,null,null,null,"Mercantile Building Society"]
[null,null,null,null,null,null,null,null,null,null,null,"Midland Bank"]
[null,null,null,null,null,null,null,null,null,null,null,"Midland Bank Offshore Ltd"]
[null,null,null,null,null,null,null,null,null,null,null,"Monmouthshire Building Society"]
[null,null,null,null,null,null,null,null,null,null,null,"Mortgage Express"]
[null,null,null,null,null,null,null,null,null,null,null,"Mortgage Trust"]
[null,null,null,null,null,null,null,null,null,null,null,"NSB Investment Account"]
[null,null,null,null,null,null,null,null,null,null,null,"NSB Ordinary Account"]
[null,null,null,null,null,null,null,null,null,null,null,"National Counties Building Society"]
[null,null,null,null,null,null,null,null,null,null,null,"National Westminster Bank"]
[null,null,null,null,null,null,null,null,null,null,null,"National Westminster Mortgage Services"]
[null,null,null,null,null,null,null,null,null,null,null,"Nationwide Building Society"]
[null,null,null,null,null,null,null,null,null,null,null,"Nationwide Direct"]
[null,null,null,null,null,null,null,null,null,null,null,"Nationwide International Ltd"]
[null,null,null,null,null,null,null,null,null,null,null,"Newbury Building Society"]
[null,null,null,null,null,null,null,null,null,null,null,"Newcastle Bank (Gibraltar) Ltd"]
[null,null,null,null,null,null,null,null,null,null,null,"Newcastle Building Society"]
[null,null,null,null,null,null,null,null,null,null,null,"Newcastle Direct"]
[null,null,null,null,null,null,null,null,null,null,null,"Northern Bank"]
[null,null,null,null,null,null,null,null,null,null,null,"Northern Offshore Banking & Financial Services"]
[null,null,null,null,null,null,null,null,null,null,null,"Northern Rock"]
[null,null,null,null,null,null,null,null,null,null,null,"Northern Rock (Guernsey) Ltd"]
[null,null,null,null,null,null,null,null,null,null,null,"Northern Rock Direct"]
[null,null,null,null,null,null,null,null,null,null,null,"Norwich & Peterborough Building Society"]
[null,null,null,null,null,null,null,null,null,null,null,"Nottingham Building Society"]
[null,null,null,null,null,null,null,null,null,null,null,"Nottingham Imperial Building Society"]
[null,null,null,null,null,null,null,null,null,null,null,"Paragon Mortgages"]
[null,null,null,null,null,null,null,null,null,null,null,"Pensioners Guaranteed Income Bonds"]
[null,null,null,null,null,null,null,null,null,null,null,"Portman Building Society"]
[null,null,null,null,null,null,null,null,null,null,null,"Portman Channel Islands Ltd"]
[null,null,null,null,null,null,null,null,null,null,null,"Principality Building Society"]
[null,null,null,null,null,null,null,null,null,null,null,"Progressive Building Society"]
[null,null,null,null,null,null,null,null,null,null,null,"Prudential Banking"]
[null,null,null,null,null,null,null,null,null,null,null,"Robert Fleming (IOM) Ltd"]
[null,null,null,null,null,null,null,null,null,null,null,"Royal Bank of Canada (IOM) Ltd"]
[null,null,null,null,null,null,null,null,null,null,null,"Royal Bank of Canada (Jersey) Ltd"]
[null,null,null,null,null,null,null,null,null,null,null,"Royal Bank of Scotland"]
[null,null,null,null,null,null,null,null,null,null,null,"Royal Bank of Scotland International Ltd"]
[null,null,null,null,null,null,null,null,null,null,null,"Saffron Walden Building Society"]
[null,null,null,null,null,null,null,null,null,null,null,"Sainsbury's Bank"]
[null,null,null,null,null,null,null,null,null,null,null,"Scarborough Building Society"]
[null,null,null,null,null,null,null,null,null,null,null,"Schroders (CI) Ltd"]
[null,null,null,null,null,null,null,null,null,null,null,"Scottish Building Society"]
[null,null,null,null,null,null,null,null,null,null,null,"Scottish Widows Bank"]
[null,null,null,null,null,null,null,null,null,null,null,"Shepshed Building Society"]
[null,null,null,null,null,null,null,null,null,null,null,"Singer & Friedlander (IOM) Ltd"]
[null,null,null,null,null,null,null,null,null,null,null,"Skipton Building Society"]
[null,null,null,null,null,null,null,null,null,null,null,"Skipton Guernsey Ltd"]
[null,null,null,null,null,null,null,null,null,null,null,"Stafford Railway Building Society"]
[null,null,null,null,null,null,null,null,null,null,null,"Staffordshire Building Society"]
[null,null,null,null,null,null,null,null,null,null,null,"Standard Bank IOM"]
[null,null,null,null,null,null,null,null,null,null,null,"Standard Bank Jersey"]
[null,null,null,null,null,null,null,null,null,null,null,"Standard Chartered Bank"]
[null,null,null,null,null,null,null,null,null,null,null,"Stroud & Swindon Building Society"]
[null,null,null,null,null,null,null,null,null,null,null,"Sun Banking Corp"]
[null,null,null,null,null,null,null,null,null,null,null,"Sun Banking Corp (Jersey) Ltd"]
[null,null,null,null,null,null,null,null,null,null,null,"Sun Banking Corporation"]
[null,null,null,null,null,null,null,null,null,null,null,"TSB"]
[null,null,null,null,null,null,null,null,null,null,null,"TSB Bank Channel Islands Ltd"]
[null,null,null,null,null,null,null,null,null,null,null,"Teachers Building Society"]
[null,null,null,null,null,null,null,null,null,null,null,"The Mortgage Business"]
[null,null,null,null,null,null,null,null,null,null,null,"Tipton & Coseley Building Society"]
[null,null,null,null,null,null,null,null,null,null,null,"UCB Home Loans Corporation"]
[null,null,null,null,null,null,null,null,null,null,null,"Ulster Bank"]
[null,null,null,null,null,null,null,null,null,null,null,"Ulster Bank (IOM) Ltd"]
[null,null,null,null,null,null,null,null,null,null,null,"Universal Building Society"]
[null,null,null,null,null,null,null,null,null,null,null,"Vernon Building Society"]
[null,null,null,null,null,null,null,null,null,null,null,"Wesleyan Home Loans"]
[null,null,null,null,null,null,null,null,null,null,null,"West Bromwich Building Society"]
[null,null,null,null,null,null,null,null,null,null,null,"Woolwich"]
[null,null,null,null,null,null,null,null,null,null,null,"Woolwich Direct"]
[null,null,null,null,null,null,null,null,null,null,null,"Woolwich Guernsey Ltd"]
[null,null,null,null,null,null,null,null,null,null,null,"Yorkshire Bank"]
[null,null,null,null,null,null,null,null,null,null,null,"Yorkshire Building Society"]
[null,null,null,null,null,null,null,null,null,null,null,"Yorkshire Guernsey Ltd"]

{"sheet":"BUsInt","index":4,"n_rows":207,"n_cols":12,"rows_kept":207,"cut":false,"hidden":false,"merged":[[4,0,4,3],[5,0,5,3],[6,0,6,3],[7,0,7,3],[8,0,8,3],[9,0,9,3],[10,0,10,3],[11,0,11,3],[12,0,12,3],[13,0,13,3],[14,0,14,3],[15,0,15,3],[16,0,16,3],[17,0,17,3],[18,0,18,3],[19,0,19,3],[20,0,20,3],[21,0,21,3],[22,0,22,3],[23,0,23,3],[24,0,24,3],[25,0,25,3],[26,0,26,3],[27,0,27,3],[28,0,28,3],[29,0,29,3],[30,0,30,3],[31,0,31,3],[32,0,32,3],[33,0,33,3],[34,0,34,3],[35,0,35,3],[36,0,36,3],[37,0,37,3],[38,0,38,3],[39,0,39,3],[40,0,40,3],[41,0,41,3],[42,0,42,3],[43,0,43,3],[44,0,44,3],[45,0,45,3],[46,0,46,3],[47,0,47,3],[48,0,48,3],[49,0,49,3],[50,0,50,3],[51,0,51,3],[52,0,52,3],[53,0,53,3],[54,0,54,3],[55,0,55,3],[56,0,56,3],[57,0,57,3],[58,0,58,3],[59,0,59,3],[60,0,60,3],[61,0,61,3],[62,0,62,3],[63,0,63,3],[64,0,64,3],[65,0,65,3],[66,0,66,3],[67,0,67,3],[68,0,68,3],[69,0,69,3],[70,0,70,3],[71,0,71,3],[72,0,72,3],[73,0,73,3],[74,0,74,3],[75,0,75,3],[76,0,76,3],[77,0,77,3],[78,0,78,3],[79,0,79,3],[80,0,80,3],[81,0,81,3],[82,0,82,3],[83,0,83,3],[84,0,84,3],[85,0,85,3],[86,0,86,3],[87,0,87,3],[88,0,88,3],[89,0,89,3],[90,0,90,3],[91,0,91,3],[92,0,92,3],[93,0,93,3],[94,0,94,3],[95,0,95,3],[96,0,96,3],[97,0,97,3],[98,0,98,3],[99,0,99,3],[100,0,100,3],[101,0,101,3],[102,0,102,3],[103,0,103,3],[104,0,104,3],[105,0,105,3],[106,0,106,3],[107,0,107,3],[108,0,108,3],[109,0,109,3],[110,0,110,3],[111,0,111,3],[112,0,112,3],[113,0,113,3],[114,0,114,3],[115,0,115,3],[116,0,116,3],[117,0,117,3],[118,0,118,3],[119,0,119,3],[120,0,120,3],[121,0,121,3],[122,0,122,3],[123,0,123,3],[124,0,124,3],[125,0,125,3],[126,0,126,3],[127,0,127,3],[128,0,128,3],[129,0,129,3],[130,0,130,3],[131,0,131,3],[132,0,132,3],[133,0,133,3],[134,0,134,3],[135,0,135,3],[136,0,136,3],[137,0,137,3],[138,0,138,3],[139,0,139,3],[140,0,140,3],[141,0,141,3],[142,0,142,3],[143,0,143,3],[144,0,144,3],[145,0,145,3],[146,0,146,3],[147,0,147,3],[148,0,148,3],[149,0,149,3],[150,0,150,3],[151,0,151,3],[152,0,152,3],[153,0,153,3],[154,0,154,3],[155,0,155,3],[156,0,156,3],[157,0,157,3],[158,0,158,3],[159,0,159,3],[164,0,164,3],[165,0,165,3],[160,0,160,3],[161,0,161,3],[162,0,162,3],[163,0,163,3]]}
["BUSINESS INTERESTS"]
["Total Carried to Summary sheet",null,null,null,{"$f":"SUM(E3:E100)","v":0},{"$f":"SUM(F3:F100)","v":0},{"$f":"SUM(G3:G100)","v":0},"Return to main page"]
[]
[null,null,null,null,"Self","Spouse","Joint"]
["LIST ASSETS BELOW",null,null,null," "]
[null,null,null,null,0,0,0,null,null,null,null,"Abbey National"]
[null,null,null,null,null,null,null,null,null,null,null,"Abbey National Direct"]
[null,null,null,null,null,null,null,null,null,null,null,"Abbey National Treasury International Ltd"]
[null,null,null,null,null,null,null,null,null,null,null,"Alliance & Leicester"]
[null,null,null,null,null,null,null,null,null,null,null,"Alliance & Leicester Giro"]
[null,null,null,null,null,null,null,null,null,null,null,"Alliance & Leicester International Ltd"]
[null,null,null,null,null,null,null,null,null,null,null,"Allied Dunbar Bank International Ltd"]
[null,null,null,null,null,null,null,null,null,null,null,"Allied Irish Bank (GB)"]
[null,null,null,null,null,null,null,null,null,null,null,"Ansbacher (Jersey) Ltd"]
[null,null,null,null,null,null,null,null,null,null,null,"Bank of Cyprus (London) Ltd"]
[null,null,null,null,null,null,null,null,null,null,null,"Bank of Ireland (GB)"]
[null,null,null,null,null,null,null,null,null,null,null,"Bank of Ireland (NI)"]
[null,null,null,null,null,null,null,null,null,null,null,"Bank of Ireland Mortgages"]
[null,null,null,null,null,null,null,null,null,null,null,"Bank of Scotland"]
[null,null,null,null,null,null,null,null,null,null,null,"Bank of Scotland (IOM) Ltd"]
[null,null,null,null,null,null,null,null,null,null,null,"Bank of Scotland Centrebank"]
[null,null,null,null,null,null,null,null,null,null,null,"Bank of Scotland Mortgages Direct"]
[null,null,null,null,null,null,null,null,null,null,null,"Bank of Wales"]
[null,null,null,null,null,null,null,null,null,null,null,"Bank of Wales (Jersey) Ltd"]
[null,null,null,null,null,null,null,null,null,null,null,"Barclays Bank"]
[null,null,null,null,null,null,null,null,null,null,null,"Barnsley Building Society"]
[null,null,null,null,null,null,null,null,null,null,null,"Bath Building Society"]
[null,null,null,null,null,null,null,null,null,null,null,"Beneficial Bank"]
[null,null,null,null,null,null,null,null,null,null,null,"Beverly Building Society"]
[null,null,null,null,null,null,null,null,null,null,null,"Birmingham Midshires (Guernsey) Ltd"]
[null,null,null,null,null,null,null,null,null,null,null,"Birmingham Midshires Building Society"]
[null,null,null,null,null,null,null,null,null,null,null,"Birmingham Midshires MSL"]
[null,null,null,null,null,null,null,null,null,null,null,"Bradford & Bingley (IOM) Ltd"]
[null,null,null,null,null,null,null,null,null,null,null,"Bradford & Bingley Building Society"]
[null,null,null,null,null,null,null,null,null,null,null,"Bradford & Bingley MTGS Direct"]
[null,null,null,null,null,null,null,null,null,null,null,"Bristol & West"]
[null,null,null,null,null,null,null,null,null,null,null,"Bristol & West / Direct Mortgages"]
[null,null,null,null,null,null,null,null,null,null,null,"Bristol & West IMC"]
[null,null,null,null,null,null,null,null,null,null,null,"Bristol & West International Ltd"]
[null,null,null,null,null,null,null,null,null,null,null,"Britannia Building Society"]
[null,null,null,null,null,null,null,null,null,null,null,"Britannia International Ltd"]
[null,null,null,null,null,null,null,null,null,null,null,"Britannia Mortgage Direct"]
[null,null,null,null,null,null,null,null,null,null,null,"Buckinghamshire Building Society"]
[null,null,null,null,null,null,null,null,null,null,null,"C & G Channel Islands Ltd"]
[null,null,null,null,null,null,null,null,null,null,null,"C & G Mortgage Direct"]
[null,null,null,null,null,null,null,null,null,null,null,"Cambridge Building Society"]
[null,null,null,null,null,null,null,null,null,null,null,"Capital Bonds"]
[null,null,null,null,null,null,null,null,null,null,null,"Capital Home Loans"]
[null,null,null,null,null,null,null,null,null,null,null,"Capital Wise"]
[null,null,null,null,null,null,null,null,null,null,null,"Cater Allen Bank"]
[null,null,null,null,null,null,null,null,null,null,null,"Cater Allen Bank (IOM) Ltd"]
[null,null,null,null,null,null,null,null,null,null,null,"Cater Allen Bank (Jersey) Ltd"]
[null,null,null,null,null,null,null,null,null,null,null,"Chelsea Building Society"]
[null,null,null,null,null,null,null,null,null,null,null,"Cheltenham & Gloucester"]
[null,null,null,null,null,null,null,null,null,null,null,"Chesham Building Society"]
[null,null,null,null,null,null,null,null,null,null,null,"Cheshire Building Society"]
[null,null,null,null,null,null,null,null,null,null,null,"Cheshire Guernsey Ltd"]
[null,null,null,null,null,null,null,null,null,null,null,"Chorley & District Building Society"]
[null,null,null,null,null,null,null,null,null,null,null,"Citibank"]
[null,null,null,null,null,null,null,null,null,null,null,"Close Brothers"]
[null,null,null,null,null,null,null,null,null,null,null,"Clydesdale Bank"]
[null,null,null,null,null,null,null,null,null,null,null,"Co-operative Bank"]
[null,null,null,null,null,null,null,null,null,null,null,"Coutts & Co"]
[null,null,null,null,null,null,null,null,null,null,null,"Coventry Building Society"]
[null,null,null,null,null,null,null,null,null,null,null,"Cumberland Building Society"]
[null,null,null,null,null,null,null,null,null,null,null,"Darlington Building Society"]
[null,null,null,null,null,null,null,null,null,null,null,"Deposit Bonds"]
[null,null,null,null,null,null,null,null,null,null,null,"Derbyshire (IOM) Ltd"]
[null,null,null,null,null,null,null,null,null,null,null,"Derbyshire Building Society"]
[null,null,null,null,null,null,null,null,null,null,null,"Derbyshire Direct"]
[null,null,null,null,null,null,null,null,null,null,null,"Direct Line"]
[null,null,null,null,null,null,null,null,null,null,null,"Dudley Building Society"]
[null,null,null,null,null,null,null,null,null,null,null,"Dunfermline Building Society"]
[null,null,null,null,null,null,null,null,null,null,null,"EBS Bank (IOM) Ltd"]
[null,null,null,null,null,null,null,null,null,null,null,"Earl Shilton Building Society"]
[null,null,null,null,null,null,null,null,null,null,null,"Ecology Building Society"]
[null,null,null,null,null,null,null,null,null,null,null,"First Direct"]
[null,null,null,null,null,null,null,null,null,null,null,"First Mortgage"]
[null,null,null,null,null,null,null,null,null,null,null,"First National Building Society"]
[null,null,null,null,null,null,null,null,null,null,null,"First National Building Society Guernsey Ltd"]
[null,null,null,null,null,null,null,null,null,null,null,"First Option Bonds"]
[null,null,null,null,null,null,null,null,null,null,null,"First Trust Bank (NI)"]
[null,null,null,null,null,null,null,null,null,null,null,"Friends Provident"]
[null,null,null,null,null,null,null,null,null,null,null,"Frizzell Bank"]
[null,null,null,null,null,null,null,null,null,null,null,"Furness Building Society"]
[null,null,null,null,null,null,null,null,null,null,null,"Furness Direct"]
[null,null,null,null,null,null,null,null,null,null,null,"Guinness Mahon Guernsey Ltd"]
[null,null,null,null,null,null,null,null,null,null,null,"HFC Bank"]
[null,null,null,null,null,null,null,null,null,null,null,"Halifax"]
[null,null,null,null,null,null,null,null,null,null,null,"Halifax International (IOM) Ltd"]
[null,null,null,null,null,null,null,null,null,null,null,"Halifax International (Jersey) Ltd"]
[null,null,null,null,null,null,null,null,null,null,null,"Halifax MSL"]
[null,null,null,null,null,null,null,null,null,null,null,"Hambros Bank (Jersey) Ltd"]
[null,null,null,null,null,null,null,null,null,null,null,"Hanley Economic Building Society"]
[null,null,null,null,null,null,null,null,null,null,null,"Hanson Bank Ltd"]
[null,null,null,null,null,null,null,null,null,null,null,"Harpenden Building Society"]
[null,null,null,null,null,null,null,null,null,null,null,"HBOS"]
[null,null,null,null,null,null,null,null,null,null,null,"Hinckley & Rugby Building Society"]
[null,null,null,null,null,null,null,null,null,null,null,"Hoare & Co"]
[null,null,null,null,null,null,null,null,null,null,null,"Holmesdale Building Society"]
[null,null,null,null,null,null,null,null,null,null,null,"Household Mortgage Corporation"]
[null,null,null,null,null,null,null,null,null,null,null,"HSBC Bank"]
[null,null,null,null,null,null,null,null,null,null,null,"Income Bonds"]
[null,null,null,null,null,null,null,null,null,null,null,"Intelligent Finance"]
[null,null,null,null,null,null,null,null,null,null,null,"Investec Bank (Jersey) Ltd"]
[null,null,null,null,null,null,null,null,null,null,null,"Investec Bank (UK)"]
[null,null,null,null,null,null,null,null,null,null,null,"Ipswich Building Society"]
[null,null,null,null,null,null,null,null,null,null,null,"Irish Nationwide (IOM) Ltd"]
[null,null,null,null,null,null,null,null,null,null,null,"Irish Permanent"]
[null,null,null,null,null,null,null,null,null,null,null,"Irish Permanent (IOM) Ltd"]
[null,null,null,null,null,null,null,null,null,null,null,"Isle of Man Bank"]
[null,null,null,null,null,null,null,null,null,null,null,"Julian Hodge Bank"]
[null,null,null,null,null,null,null,null,null,null,null,"Jyske Bank"]
[null,null,null,null,null,null,null,null,null,null,null,"Kent Reliance Building Society"]
[null,null,null,null,null,null,null,null,null,null,null,"Lambeth Building Society"]
[null,null,null,null,null,null,null,null,null,null,null,"Leeds & Holbeck Building Society"]
[null,null,null,null,null,null,null,null,null,null,null,"Leek United Building Society"]
[null,null,null,null,null,null,null,null,null,null,null,"Legal & General Bank"]
[null,null,null,null,null,null,null,null,null,null,null,"Leopold Joseph"]
[null,null,null,null,null,null,null,null,null,null,null,"Leopold Joseph (Guernsey) Ltd"]
[null,null,null,null,null,null,null,null,null,null,null,"Lloyds Bank"]
[null,null,null,null,null,null,null,null,null,null,null,"Lloyds TSB Bank"]
[null,null,null,null,null,null,null,null,null,null,null,"Lombard Banking (Jersey) Ltd"]
[null,null,null,null,null,null,null,null,null,null,null,"Lombard North Central"]
[null,null,null,null,null,null,null,null,null,null,null,"Londonderry Prov. Building Society"]
[null,null,null,null,null,null,null,null,null,null,null,"Loughborough Building Society"]
[null,null,null,null,null,null,null,null,null,null,null,"MBNA International"]
[null,null,null,null,null,null,null,null,null,null,null,"Manchester Building Society"]
[null,null,null,null,null,null,null,null,null,null,null,"Mansfield Building Society"]
[null,null,null,null,null,null,null,null,null,null,null,"Market Harborough Building Society"]
[null,null,null,null,null,null,null,null,null,null,null,"Marsden Building Society"]
[null,null,null,null,null,null,null,null,null,null,null,"Melton Mowbray Building Society"]
[null,null,null,null,null,null,null,null,null,null,null,"Mercantile Building Society"]
[null,null,null,null,null,null,null,null,null,null,null,"Midland Bank"]
[null,null,null,null,null,null,null,null,null,null,null,"Midland Bank Offshore Ltd"]
[null,null,null,null,null,null,null,null,null,null,null,"Monmouthshire Building Society"]
[null,null,null,null,null,null,null,null,null,null,null,"Mortgage Express"]
[null,null,null,null,null,null,null,null,null,null,null,"Mortgage Trust"]
[null,null,null,null,null,null,null,null,null,null,null,"NSB Investment Account"]
[null,null,null,null,null,null,null,null,null,null,null,"NSB Ordinary Account"]
[null,null,null,null,null,null,null,null,null,null,null,"National Counties Building Society"]
[null,null,null,null,null,null,null,null,null,null,null,"National Westminster Bank"]
[null,null,null,null,null,null,null,null,null,null,null,"National Westminster Mortgage Services"]
[null,null,null,null,null,null,null,null,null,null,null,"Nationwide Building Society"]
[null,null,null,null,null,null,null,null,null,null,null,"Nationwide Direct"]
[null,null,null,null,null,null,null,null,null,null,null,"Nationwide International Ltd"]
[null,null,null,null,null,null,null,null,null,null,null,"Newbury Building Society"]
[null,null,null,null,null,null,null,null,null,null,null,"Newcastle Bank (Gibraltar) Ltd"]
[null,null,null,null,null,null,null,null,null,null,null,"Newcastle Building Society"]
[null,null,null,null,null,null,null,null,null,null,null,"Newcastle Direct"]
[null,null,null,null,null,null,null,null,null,null,null,"Northern Bank"]
[null,null,null,null,null,null,null,null,null,null,null,"Northern Offshore Banking & Financial Services"]
[null,null,null,null,null,null,null,null,null,null,null,"Northern Rock"]
[null,null,null,null,null,null,null,null,null,null,null,"Northern Rock (Guernsey) Ltd"]
[null,null,null,null,null,null,null,null,null,null,null,"Northern Rock Direct"]
[null,null,null,null,null,null,null,null,null,null,null,"Norwich & Peterborough Building Society"]
[null,null,null,null,null,null,null,null,null,null,null,"Nottingham Building Society"]
[null,null,null,null,null,null,null,null,null,null,null,"Nottingham Imperial Building Society"]
[null,null,null,null,null,null,null,null,null,null,null,"Paragon Mortgages"]
[null,null,null,null,null,null,null,null,null,null,null,"Pensioners Guaranteed Income Bonds"]
[null,null,null,null,null,null,null,null,null,null,null,"Portman Building Society"]
[null,null,null,null,null,null,null,null,null,null,null,"Portman Channel Islands Ltd"]
[null,null,null,null,null,null,null,null,null,null,null,"Principality Building Society"]
[null,null,null,null,null,null,null,null,null,null,null,"Progressive Building Society"]
[null,null,null,null,null,null,null,null,null,null,null,"Prudential Banking"]
[null,null,null,null,null,null,null,null,null,null,null,"Robert Fleming (IOM) Ltd"]
[null,null,null,null,null,null,null,null,null,null,null,"Royal Bank of Canada (IOM) Ltd"]
[null,null,null,null,null,null,null,null,null,null,null,"Royal Bank of Canada (Jersey) Ltd"]
[null,null,null,null,null,null,null,null,null,null,null,"Royal Bank of Scotland"]
[null,null,null,null,null,null,null,null,null,null,null,"Royal Bank of Scotland International Ltd"]
[null,null,null,null,null,null,null,null,null,null,null,"Saffron Walden Building Society"]
[null,null,null,null,null,null,null,null,null,null,null,"Sainsbury's Bank"]
[null,null,null,null,null,null,null,null,null,null,null,"Scarborough Building Society"]
[null,null,null,null,null,null,null,null,null,null,null,"Schroders (CI) Ltd"]
[null,null,null,null,null,null,null,null,null,null,null,"Scottish Building Society"]
[null,null,null,null,null,null,null,null,null,null,null,"Scottish Widows Bank"]
[null,null,null,null,null,null,null,null,null,null,null,"Shepshed Building Society"]
[null,null,null,null,null,null,null,null,null,null,null,"Singer & Friedlander (IOM) Ltd"]
[null,null,null,null,null,null,null,null,null,null,null,"Skipton Building Society"]
[null,null,null,null,null,null,null,null,null,null,null,"Skipton Guernsey Ltd"]
[null,null,null,null,null,null,null,null,null,null,null,"Stafford Railway Building Society"]
[null,null,null,null,null,null,null,null,null,null,null,"Staffordshire Building Society"]
[null,null,null,null,null,null,null,null,null,null,null,"Standard Bank IOM"]
[null,null,null,null,null,null,null,null,null,null,null,"Standard Bank Jersey"]
[null,null,null,null,null,null,null,null,null,null,null,"Standard Chartered Bank"]
[null,null,null,null,null,null,null,null,null,null,null,"Stroud & Swindon Building Society"]
[null,null,null,null,null,null,null,null,null,null,null,"Sun Banking Corp"]
[null,null,null,null,null,null,null,null,null,null,null,"Sun Banking Corp (Jersey) Ltd"]
[null,null,null,null,null,null,null,null,null,null,null,"Sun Banking Corporation"]
[null,null,null,null,null,null,null,null,null,null,null,"TSB"]
[null,null,null,null,null,null,null,null,null,null,null,"TSB Bank Channel Islands Ltd"]
[null,null,null,null,null,null,null,null,null,null,null,"Teachers Building Society"]
[null,null,null,null,null,null,null,null,null,null,null,"The Mortgage Business"]
[null,null,null,null,null,null,null,null,null,null,null,"Tipton & Coseley Building Society"]
[null,null,null,null,null,null,null,null,null,null,null,"UCB Home Loans Corporation"]
[null,null,null,null,null,null,null,null,null,null,null,"Ulster Bank"]
[null,null,null,null,null,null,null,null,null,null,null,"Ulster Bank (IOM) Ltd"]
[null,null,null,null,null,null,null,null,null,null,null,"Universal Building Society"]
[null,null,null,null,null,null,null,null,null,null,null,"Vernon Building Society"]
[null,null,null,null,null,null,null,null,null,null,null,"Wesleyan Home Loans"]
[null,null,null,null,null,null,null,null,null,null,null,"West Bromwich Building Society"]
[null,null,null,null,null,null,null,null,null,null,null,"Woolwich"]
[null,null,null,null,null,null,null,null,null,null,null,"Woolwich Direct"]
[null,null,null,null,null,null,null,null,null,null,null,"Woolwich Guernsey Ltd"]
[null,null,null,null,null,null,null,null,null,null,null,"Yorkshire Bank"]
[null,null,null,null,null,null,null,null,null,null,null,"Yorkshire Building Society"]
[null,null,null,null,null,null,null,null,null,null,null,"Yorkshire Guernsey Ltd"]

{"sheet":"Shares","index":5,"n_rows":207,"n_cols":12,"rows_kept":207,"cut":false,"hidden":false,"merged":[[164,0,164,3],[165,0,165,3],[160,0,160,3],[161,0,161,3],[162,0,162,3],[163,0,163,3],[156,0,156,3],[157,0,157,3],[158,0,158,3],[159,0,159,3],[152,0,152,3],[153,0,153,3],[154,0,154,3],[155,0,155,3],[148,0,148,3],[149,0,149,3],[150,0,150,3],[151,0,151,3],[144,0,144,3],[145,0,145,3],[146,0,146,3],[147,0,147,3],[140,0,140,3],[141,0,141,3],[142,0,142,3],[143,0,143,3],[136,0,136,3],[137,0,137,3],[138,0,138,3],[139,0,139,3],[132,0,132,3],[133,0,133,3],[134,0,134,3],[135,0,135,3],[128,0,128,3],[129,0,129,3],[130,0,130,3],[131,0,131,3],[124,0,124,3],[125,0,125,3],[126,0,126,3],[127,0,127,3],[120,0,120,3],[121,0,121,3],[122,0,122,3],[123,0,123,3],[116,0,116,3],[117,0,117,3],[118,0,118,3],[119,0,119,3],[112,0,112,3],[113,0,113,3],[114,0,114,3],[115,0,115,3],[108,0,108,3],[109,0,109,3],[110,0,110,3],[111,0,111,3],[104,0,104,3],[105,0,105,3],[106,0,106,3],[107,0,107,3],[100,0,100,3],[101,0,101,3],[102,0,102,3],[103,0,103,3],[96,0,96,3],[97,0,97,3],[98,0,98,3],[99,0,99,3],[92,0,92,3],[93,0,93,3],[94,0,94,3],[95,0,95,3],[88,0,88,3],[89,0,89,3],[90,0,90,3],[91,0,91,3],[84,0,84,3],[85,0,85,3],[86,0,86,3],[87,0,87,3],[80,0,80,3],[81,0,81,3],[82,0,82,3],[83,0,83,3],[76,0,76,3],[77,0,77,3],[78,0,78,3],[79,0,79,3],[72,0,72,3],[73,0,73,3],[74,0,74,3],[75,0,75,3],[68,0,68,3],[69,0,69,3],[70,0,70,3],[71,0,71,3],[64,0,64,3],[65,0,65,3],[66,0,66,3],[67,0,67,3],[60,0,60,3],[61,0,61,3],[62,0,62,3],[63,0,63,3],[56,0,56,3],[57,0,57,3],[58,0,58,3],[59,0,59,3],[52,0,52,3],[53,0,53,3],[54,0,54,3],[55,0,55,3],[48,0,48,3],[49,0,49,3],[50,0,50,3],[51,0,51,3],[44,0,44,3],[45,0,45,3],[46,0,46,3],[47,0,47,3],[40,0,40,3],[41,0,41,3],[42,0,42,3],[43,0,43,3],[36,0,36,3],[37,0,37,3],[38,0,38,3],[39,0,39,3],[32,0,32,3],[33,0,33,3],[34,0,34,3],[35,0,35,3],[28,0,28,3],[29,0,29,3],[30,0,30,3],[31,0,31,3],[24,0,24,3],[25,0,25,3],[26,0,26,3],[27,0,27,3],[20,0,20,3],[21,0,21,3],[22,0,22,3],[23,0,23,3],[16,0,16,3],[17,0,17,3],[18,0,18,3],[19,0,19,3],[14,0,14,3],[15,0,15,3],[13,0,13,3],[8,0,8,3],[9,0,9,3],[10,0,10,3],[11,0,11,3],[4,0,4,3],[5,0,5,3],[6,0,6,3],[7,0,7,3],[12,0,12,3]]}
["STOCKS & SHARES"]
["Total Carried to Summary sheet",null,null,null,{"$f":"SUM(E3:E100)","v":0},{"$f":"SUM(F3:F100)","v":0},{"$f":"SUM(G3:G100)","v":0},"Return to main page"]
[]
[null,null,null,null,"Self","Spouse","Joint"]
["LIST ASSETS BELOW",null,null,null," "]
[null,null,null,null,0,0,0,null,null,null,null,"Abbey National"]
[null,null,null,null,null,null,null,null,null,null,null,"Abbey National Direct"]
[null,null,null,null,null,null,null,null,null,null,null,"Abbey National Treasury International Ltd"]
[null,null,null,null,null,null,null,null,null,null,null,"Alliance & Leicester"]
[null,null,null,null,null,null,null,null,null,null,null,"Alliance & Leicester Giro"]
[null,null,null,null,null,null,null,null,null,null,null,"Alliance & Leicester International Ltd"]
[null,null,null,null,null,null,null,null,null,null,null,"Allied Dunbar Bank International Ltd"]
[null,null,null,null,null,null,null,null,null,null,null,"Allied Irish Bank (GB)"]
[null,null,null,null,null,null,null,null,null,null,null,"Ansbacher (Jersey) Ltd"]
[null,null,null,null,null,null,null,null,null,null,null,"Bank of Cyprus (London) Ltd"]
[null,null,null,null,null,null,null,null,null,null,null,"Bank of Ireland (GB)"]
[null,null,null,null,null,null,null,null,null,null,null,"Bank of Ireland (NI)"]
[null,null,null,null,null,null,null,null,null,null,null,"Bank of Ireland Mortgages"]
[null,null,null,null,null,null,null,null,null,null,null,"Bank of Scotland"]
[null,null,null,null,null,null,null,null,null,null,null,"Bank of Scotland (IOM) Ltd"]
[null,null,null,null,null,null,null,null,null,null,null,"Bank of Scotland Centrebank"]
[null,null,null,null,null,null,null,null,null,null,null,"Bank of Scotland Mortgages Direct"]
[null,null,null,null,null,null,null,null,null,null,null,"Bank of Wales"]
[null,null,null,null,null,null,null,null,null,null,null,"Bank of Wales (Jersey) Ltd"]
[null,null,null,null,null,null,null,null,null,null,null,"Barclays Bank"]
[null,null,null,null,null,null,null,null,null,null,null,"Barnsley Building Society"]
[null,null,null,null,null,null,null,null,null,null,null,"Bath Building Society"]
[null,null,null,null,null,null,null,null,null,null,null,"Beneficial Bank"]
[null,null,null,null,null,null,null,null,null,null,null,"Beverly Building Society"]
[null,null,null,null,null,null,null,null,null,null,null,"Birmingham Midshires (Guernsey) Ltd"]
[null,null,null,null,null,null,null,null,null,null,null,"Birmingham Midshires Building Society"]
[null,null,null,null,null,null,null,null,null,null,null,"Birmingham Midshires MSL"]
[null,null,null,null,null,null,null,null,null,null,null,"Bradford & Bingley (IOM) Ltd"]
[null,null,null,null,null,null,null,null,null,null,null,"Bradford & Bingley Building Society"]
[null,null,null,null,null,null,null,null,null,null,null,"Bradford & Bingley MTGS Direct"]
[null,null,null,null,null,null,null,null,null,null,null,"Bristol & West"]
[null,null,null,null,null,null,null,null,null,null,null,"Bristol & West / Direct Mortgages"]
[null,null,null,null,null,null,null,null,null,null,null,"Bristol & West IMC"]
[null,null,null,null,null,null,null,null,null,null,null,"Bristol & West International Ltd"]
[null,null,null,null,null,null,null,null,null,null,null,"Britannia Building Society"]
[null,null,null,null,null,null,null,null,null,null,null,"Britannia International Ltd"]
[null,null,null,null,null,null,null,null,null,null,null,"Britannia Mortgage Direct"]
[null,null,null,null,null,null,null,null,null,null,null,"Buckinghamshire Building Society"]
[null,null,null,null,null,null,null,null,null,null,null,"C & G Channel Islands Ltd"]
[null,null,null,null,null,null,null,null,null,null,null,"C & G Mortgage Direct"]
[null,null,null,null,null,null,null,null,null,null,null,"Cambridge Building Society"]
[null,null,null,null,null,null,null,null,null,null,null,"Capital Bonds"]
[null,null,null,null,null,null,null,null,null,null,null,"Capital Home Loans"]
[null,null,null,null,null,null,null,null,null,null,null,"Capital Wise"]
[null,null,null,null,null,null,null,null,null,null,null,"Cater Allen Bank"]
[null,null,null,null,null,null,null,null,null,null,null,"Cater Allen Bank (IOM) Ltd"]
[null,null,null,null,null,null,null,null,null,null,null,"Cater Allen Bank (Jersey) Ltd"]
[null,null,null,null,null,null,null,null,null,null,null,"Chelsea Building Society"]
[null,null,null,null,null,null,null,null,null,null,null,"Cheltenham & Gloucester"]
[null,null,null,null,null,null,null,null,null,null,null,"Chesham Building Society"]
[null,null,null,null,null,null,null,null,null,null,null,"Cheshire Building Society"]
[null,null,null,null,null,null,null,null,null,null,null,"Cheshire Guernsey Ltd"]
[null,null,null,null,null,null,null,null,null,null,null,"Chorley & District Building Society"]
[null,null,null,null,null,null,null,null,null,null,null,"Citibank"]
[null,null,null,null,null,null,null,null,null,null,null,"Close Brothers"]
[null,null,null,null,null,null,null,null,null,null,null,"Clydesdale Bank"]
[null,null,null,null,null,null,null,null,null,null,null,"Co-operative Bank"]
[null,null,null,null,null,null,null,null,null,null,null,"Coutts & Co"]
[null,null,null,null,null,null,null,null,null,null,null,"Coventry Building Society"]
[null,null,null,null,null,null,null,null,null,null,null,"Cumberland Building Society"]
[null,null,null,null,null,null,null,null,null,null,null,"Darlington Building Society"]
[null,null,null,null,null,null,null,null,null,null,null,"Deposit Bonds"]
[null,null,null,null,null,null,null,null,null,null,null,"Derbyshire (IOM) Ltd"]
[null,null,null,null,null,null,null,null,null,null,null,"Derbyshire Building Society"]
[null,null,null,null,null,null,null,null,null,null,null,"Derbyshire Direct"]
[null,null,null,null,null,null,null,null,null,null,null,"Direct Line"]
[null,null,null,null,null,null,null,null,null,null,null,"Dudley Building Society"]
[null,null,null,null,null,null,null,null,null,null,null,"Dunfermline Building Society"]
[null,null,null,null,null,null,null,null,null,null,null,"EBS Bank (IOM) Ltd"]
[null,null,null,null,null,null,null,null,null,null,null,"Earl Shilton Building Society"]
[null,null,null,null,null,null,null,null,null,null,null,"Ecology Building Society"]
[null,null,null,null,null,null,null,null,null,null,null,"First Direct"]
[null,null,null,null,null,null,null,null,null,null,null,"First Mortgage"]
[null,null,null,null,null,null,null,null,null,null,null,"First National Building Society"]
[null,null,null,null,null,null,null,null,null,null,null,"First National Building Society Guernsey Ltd"]
[null,null,null,null,null,null,null,null,null,null,null,"First Option Bonds"]
[null,null,null,null,null,null,null,null,null,null,null,"First Trust Bank (NI)"]
[null,null,null,null,null,null,null,null,null,null,null,"Friends Provident"]
[null,null,null,null,null,null,null,null,null,null,null,"Frizzell Bank"]
[null,null,null,null,null,null,null,null,null,null,null,"Furness Building Society"]
[null,null,null,null,null,null,null,null,null,null,null,"Furness Direct"]
[null,null,null,null,null,null,null,null,null,null,null,"Guinness Mahon Guernsey Ltd"]
[null,null,null,null,null,null,null,null,null,null,null,"HFC Bank"]
[null,null,null,null,null,null,null,null,null,null,null,"Halifax"]
[null,null,null,null,null,null,null,null,null,null,null,"Halifax International (IOM) Ltd"]
[null,null,null,null,null,null,null,null,null,null,null,"Halifax International (Jersey) Ltd"]
[null,null,null,null,null,null,null,null,null,null,null,"Halifax MSL"]
[null,null,null,null,null,null,null,null,null,null,null,"Hambros Bank (Jersey) Ltd"]
[null,null,null,null,null,null,null,null,null,null,null,"Hanley Economic Building Society"]
[null,null,null,null,null,null,null,null,null,null,null,"Hanson Bank Ltd"]
[null,null,null,null,null,null,null,null,null,null,null,"Harpenden Building Society"]
[null,null,null,null,null,null,null,null,null,null,null,"HBOS"]
[null,null,null,null,null,null,null,null,null,null,null,"Hinckley & Rugby Building Society"]
[null,null,null,null,null,null,null,null,null,null,null,"Hoare & Co"]
[null,null,null,null,null,null,null,null,null,null,null,"Holmesdale Building Society"]
[null,null,null,null,null,null,null,null,null,null,null,"Household Mortgage Corporation"]
[null,null,null,null,null,null,null,null,null,null,null,"HSBC Bank"]
[null,null,null,null,null,null,null,null,null,null,null,"Income Bonds"]
[null,null,null,null,null,null,null,null,null,null,null,"Intelligent Finance"]
[null,null,null,null,null,null,null,null,null,null,null,"Investec Bank (Jersey) Ltd"]
[null,null,null,null,null,null,null,null,null,null,null,"Investec Bank (UK)"]
[null,null,null,null,null,null,null,null,null,null,null,"Ipswich Building Society"]
[null,null,null,null,null,null,null,null,null,null,null,"Irish Nationwide (IOM) Ltd"]
[null,null,null,null,null,null,null,null,null,null,null,"Irish Permanent"]
[null,null,null,null,null,null,null,null,null,null,null,"Irish Permanent (IOM) Ltd"]
[null,null,null,null,null,null,null,null,null,null,null,"Isle of Man Bank"]
[null,null,null,null,null,null,null,null,null,null,null,"Julian Hodge Bank"]
[null,null,null,null,null,null,null,null,null,null,null,"Jyske Bank"]
[null,null,null,null,null,null,null,null,null,null,null,"Kent Reliance Building Society"]
[null,null,null,null,null,null,null,null,null,null,null,"Lambeth Building Society"]
[null,null,null,null,null,null,null,null,null,null,null,"Leeds & Holbeck Building Society"]
[null,null,null,null,null,null,null,null,null,null,null,"Leek United Building Society"]
[null,null,null,null,null,null,null,null,null,null,null,"Legal & General Bank"]
[null,null,null,null,null,null,null,null,null,null,null,"Leopold Joseph"]
[null,null,null,null,null,null,null,null,null,null,null,"Leopold Joseph (Guernsey) Ltd"]
[null,null,null,null,null,null,null,null,null,null,null,"Lloyds Bank"]
[null,null,null,null,null,null,null,null,null,null,null,"Lloyds TSB Bank"]
[null,null,null,null,null,null,null,null,null,null,null,"Lombard Banking (Jersey) Ltd"]
[null,null,null,null,null,null,null,null,null,null,null,"Lombard North Central"]
[null,null,null,null,null,null,null,null,null,null,null,"Londonderry Prov. Building Society"]
[null,null,null,null,null,null,null,null,null,null,null,"Loughborough Building Society"]
[null,null,null,null,null,null,null,null,null,null,null,"MBNA International"]
[null,null,null,null,null,null,null,null,null,null,null,"Manchester Building Society"]
[null,null,null,null,null,null,null,null,null,null,null,"Mansfield Building Society"]
[null,null,null,null,null,null,null,null,null,null,null,"Market Harborough Building Society"]
[null,null,null,null,null,null,null,null,null,null,null,"Marsden Building Society"]
[null,null,null,null,null,null,null,null,null,null,null,"Melton Mowbray Building Society"]
[null,null,null,null,null,null,null,null,null,null,null,"Mercantile Building Society"]
[null,null,null,null,null,null,null,null,null,null,null,"Midland Bank"]
[null,null,null,null,null,null,null,null,null,null,null,"Midland Bank Offshore Ltd"]
[null,null,null,null,null,null,null,null,null,null,null,"Monmouthshire Building Society"]
[null,null,null,null,null,null,null,null,null,null,null,"Mortgage Express"]
[null,null,null,null,null,null,null,null,null,null,null,"Mortgage Trust"]
[null,null,null,null,null,null,null,null,null,null,null,"NSB Investment Account"]
[null,null,null,null,null,null,null,null,null,null,null,"NSB Ordinary Account"]
[null,null,null,null,null,null,null,null,null,null,null,"National Counties Building Society"]
[null,null,null,null,null,null,null,null,null,null,null,"National Westminster Bank"]
[null,null,null,null,null,null,null,null,null,null,null,"National Westminster Mortgage Services"]
[null,null,null,null,null,null,null,null,null,null,null,"Nationwide Building Society"]
[null,null,null,null,null,null,null,null,null,null,null,"Nationwide Direct"]
[null,null,null,null,null,null,null,null,null,null,null,"Nationwide International Ltd"]
[null,null,null,null,null,null,null,null,null,null,null,"Newbury Building Society"]
[null,null,null,null,null,null,null,null,null,null,null,"Newcastle Bank (Gibraltar) Ltd"]
[null,null,null,null,null,null,null,null,null,null,null,"Newcastle Building Society"]
[null,null,null,null,null,null,null,null,null,null,null,"Newcastle Direct"]
[null,null,null,null,null,null,null,null,null,null,null,"Northern Bank"]
[null,null,null,null,null,null,null,null,null,null,null,"Northern Offshore Banking & Financial Services"]
[null,null,null,null,null,null,null,null,null,null,null,"Northern Rock"]
[null,null,null,null,null,null,null,null,null,null,null,"Northern Rock (Guernsey) Ltd"]
[null,null,null,null,null,null,null,null,null,null,null,"Northern Rock Direct"]
[null,null,null,null,null,null,null,null,null,null,null,"Norwich & Peterborough Building Society"]
[null,null,null,null,null,null,null,null,null,null,null,"Nottingham Building Society"]
[null,null,null,null,null,null,null,null,null,null,null,"Nottingham Imperial Building Society"]
[null,null,null,null,null,null,null,null,null,null,null,"Paragon Mortgages"]
[null,null,null,null,null,null,null,null,null,null,null,"Pensioners Guaranteed Income Bonds"]
[null,null,null,null,null,null,null,null,null,null,null,"Portman Building Society"]
[null,null,null,null,null,null,null,null,null,null,null,"Portman Channel Islands Ltd"]
[null,null,null,null,null,null,null,null,null,null,null,"Principality Building Society"]
[null,null,null,null,null,null,null,null,null,null,null,"Progressive Building Society"]
[null,null,null,null,null,null,null,null,null,null,null,"Prudential Banking"]
[null,null,null,null,null,null,null,null,null,null,null,"Robert Fleming (IOM) Ltd"]
[null,null,null,null,null,null,null,null,null,null,null,"Royal Bank of Canada (IOM) Ltd"]
[null,null,null,null,null,null,null,null,null,null,null,"Royal Bank of Canada (Jersey) Ltd"]
[null,null,null,null,null,null,null,null,null,null,null,"Royal Bank of Scotland"]
[null,null,null,null,null,null,null,null,null,null,null,"Royal Bank of Scotland International Ltd"]
[null,null,null,null,null,null,null,null,null,null,null,"Saffron Walden Building Society"]
[null,null,null,null,null,null,null,null,null,null,null,"Sainsbury's Bank"]
[null,null,null,null,null,null,null,null,null,null,null,"Scarborough Building Society"]
[null,null,null,null,null,null,null,null,null,null,null,"Schroders (CI) Ltd"]
[null,null,null,null,null,null,null,null,null,null,null,"Scottish Building Society"]
[null,null,null,null,null,null,null,null,null,null,null,"Scottish Widows Bank"]
[null,null,null,null,null,null,null,null,null,null,null,"Shepshed Building Society"]
[null,null,null,null,null,null,null,null,null,null,null,"Singer & Friedlander (IOM) Ltd"]
[null,null,null,null,null,null,null,null,null,null,null,"Skipton Building Society"]
[null,null,null,null,null,null,null,null,null,null,null,"Skipton Guernsey Ltd"]
[null,null,null,null,null,null,null,null,null,null,null,"Stafford Railway Building Society"]
[null,null,null,null,null,null,null,null,null,null,null,"Staffordshire Building Society"]
[null,null,null,null,null,null,null,null,null,null,null,"Standard Bank IOM"]
[null,null,null,null,null,null,null,null,null,null,null,"Standard Bank Jersey"]
[null,null,null,null,null,null,null,null,null,null,null,"Standard Chartered Bank"]
[null,null,null,null,null,null,null,null,null,null,null,"Stroud & Swindon Building Society"]
[null,null,null,null,null,null,null,null,null,null,null,"Sun Banking Corp"]
[null,null,null,null,null,null,null,null,null,null,null,"Sun Banking Corp (Jersey) Ltd"]
[null,null,null,null,null,null,null,null,null,null,null,"Sun Banking Corporation"]
[null,null,null,null,null,null,null,null,null,null,null,"TSB"]
[null,null,null,null,null,null,null,null,null,null,null,"TSB Bank Channel Islands Ltd"]
[null,null,null,null,null,null,null,null,null,null,null,"Teachers Building Society"]
[null,null,null,null,null,null,null,null,null,null,null,"The Mortgage Business"]
[null,null,null,null,null,null,null,null,null,null,null,"Tipton & Coseley Building Society"]
[null,null,null,null,null,null,null,null,null,null,null,"UCB Home Loans Corporation"]
[null,null,null,null,null,null,null,null,null,null,null,"Ulster Bank"]
[null,null,null,null,null,null,null,null,null,null,null,"Ulster Bank (IOM) Ltd"]
[null,null,null,null,null,null,null,null,null,null,null,"Universal Building Society"]
[null,null,null,null,null,null,null,null,null,null,null,"Vernon Building Society"]
[null,null,null,null,null,null,null,null,null,null,null,"Wesleyan Home Loans"]
[null,null,null,null,null,null,null,null,null,null,null,"West Bromwich Building Society"]
[null,null,null,null,null,null,null,null,null,null,null,"Woolwich"]
[null,null,null,null,null,null,null,null,null,null,null,"Woolwich Direct"]
[null,null,null,null,null,null,null,null,null,null,null,"Woolwich Guernsey Ltd"]
[null,null,null,null,null,null,null,null,null,null,null,"Yorkshire Bank"]
[null,null,null,null,null,null,null,null,null,null,null,"Yorkshire Building Society"]
[null,null,null,null,null,null,null,null,null,null,null,"Yorkshire Guernsey Ltd"]

{"sheet":"isas","index":6,"n_rows":207,"n_cols":12,"rows_kept":207,"cut":false,"hidden":false,"merged":[[164,0,164,3],[165,0,165,3],[160,0,160,3],[161,0,161,3],[162,0,162,3],[163,0,163,3],[156,0,156,3],[157,0,157,3],[158,0,158,3],[159,0,159,3],[152,0,152,3],[153,0,153,3],[154,0,154,3],[155,0,155,3],[148,0,148,3],[149,0,149,3],[150,0,150,3],[151,0,151,3],[144,0,144,3],[145,0,145,3],[146,0,146,3],[147,0,147,3],[140,0,140,3],[141,0,141,3],[142,0,142,3],[143,0,143,3],[136,0,136,3],[137,0,137,3],[138,0,138,3],[139,0,139,3],[132,0,132,3],[133,0,133,3],[134,0,134,3],[135,0,135,3],[128,0,128,3],[129,0,129,3],[130,0,130,3],[131,0,131,3],[124,0,124,3],[125,0,125,3],[126,0,126,3],[127,0,127,3],[120,0,120,3],[121,0,121,3],[122,0,122,3],[123,0,123,3],[116,0,116,3],[117,0,117,3],[118,0,118,3],[119,0,119,3],[112,0,112,3],[113,0,113,3],[114,0,114,3],[115,0,115,3],[108,0,108,3],[109,0,109,3],[110,0,110,3],[111,0,111,3],[104,0,104,3],[105,0,105,3],[106,0,106,3],[107,0,107,3],[100,0,100,3],[101,0,101,3],[102,0,102,3],[103,0,103,3],[96,0,96,3],[97,0,97,3],[98,0,98,3],[99,0,99,3],[92,0,92,3],[93,0,93,3],[94,0,94,3],[95,0,95,3],[88,0,88,3],[89,0,89,3],[90,0,90,3],[91,0,91,3],[84,0,84,3],[85,0,85,3],[86,0,86,3],[87,0,87,3],[80,0,80,3],[81,0,81,3],[82,0,82,3],[83,0,83,3],[76,0,76,3],[77,0,77,3],[78,0,78,3],[79,0,79,3],[72,0,72,3],[73,0,73,3],[74,0,74,3],[75,0,75,3],[68,0,68,3],[69,0,69,3],[70,0,70,3],[71,0,71,3],[64,0,64,3],[65,0,65,3],[66,0,66,3],[67,0,67,3],[60,0,60,3],[61,0,61,3],[62,0,62,3],[63,0,63,3],[56,0,56,3],[57,0,57,3],[58,0,58,3],[59,0,59,3],[52,0,52,3],[53,0,53,3],[54,0,54,3],[55,0,55,3],[48,0,48,3],[49,0,49,3],[50,0,50,3],[51,0,51,3],[44,0,44,3],[45,0,45,3],[46,0,46,3],[47,0,47,3],[40,0,40,3],[41,0,41,3],[42,0,42,3],[43,0,43,3],[36,0,36,3],[37,0,37,3],[38,0,38,3],[39,0,39,3],[32,0,32,3],[33,0,33,3],[34,0,34,3],[35,0,35,3],[28,0,28,3],[29,0,29,3],[30,0,30,3],[31,0,31,3],[24,0,24,3],[25,0,25,3],[26,0,26,3],[27,0,27,3],[20,0,20,3],[21,0,21,3],[22,0,22,3],[23,0,23,3],[16,0,16,3],[17,0,17,3],[18,0,18,3],[19,0,19,3],[14,0,14,3],[15,0,15,3],[13,0,13,3],[8,0,8,3],[9,0,9,3],[10,0,10,3],[11,0,11,3],[4,0,4,3],[5,0,5,3],[6,0,6,3],[7,0,7,3],[12,0,12,3]]}
["ISAS/PEPS "]
["Total Carried to Summary sheet",null,null,null,{"$f":"SUM(E3:E100)","v":0},{"$f":"SUM(F3:F100)","v":0},{"$f":"SUM(G3:G100)","v":0},"Return to main page"]
[]
[null,null,null,null,"Self","Spouse","Joint"]
["LIST ASSETS BELOW",null,null,null," "]
[" ",null,null,null,0,0,0,null,null,null,null,"Abbey National"]
[null,null,null,null,null,null,null,null,null,null,null,"Abbey National Direct"]
[null,null,null,null,null,null,null,null,null,null,null,"Abbey National Treasury International Ltd"]
[null,null,null,null,null,null,null,null,null,null,null,"Alliance & Leicester"]
[null,null,null,null,null,null,null,null,null,null,null,"Alliance & Leicester Giro"]
[null,null,null,null,null,null,null,null,null,null,null,"Alliance & Leicester International Ltd"]
[null,null,null,null,null,null,null,null,null,null,null,"Allied Dunbar Bank International Ltd"]
[null,null,null,null,null,null,null,null,null,null,null,"Allied Irish Bank (GB)"]
[null,null,null,null,null,null,null,null,null,null,null,"Ansbacher (Jersey) Ltd"]
[null,null,null,null,null,null,null,null,null,null,null,"Bank of Cyprus (London) Ltd"]
[null,null,null,null,null,null,null,null,null,null,null,"Bank of Ireland (GB)"]
[null,null,null,null,null,null,null,null,null,null,null,"Bank of Ireland (NI)"]
[null,null,null,null,null,null,null,null,null,null,null,"Bank of Ireland Mortgages"]
[null,null,null,null,null,null,null,null,null,null,null,"Bank of Scotland"]
[null,null,null,null,null,null,null,null,null,null,null,"Bank of Scotland (IOM) Ltd"]
[null,null,null,null,null,null,null,null,null,null,null,"Bank of Scotland Centrebank"]
[null,null,null,null,null,null,null,null,null,null,null,"Bank of Scotland Mortgages Direct"]
[null,null,null,null,null,null,null,null,null,null,null,"Bank of Wales"]
[null,null,null,null,null,null,null,null,null,null,null,"Bank of Wales (Jersey) Ltd"]
[null,null,null,null,null,null,null,null,null,null,null,"Barclays Bank"]
[null,null,null,null,null,null,null,null,null,null,null,"Barnsley Building Society"]
[null,null,null,null,null,null,null,null,null,null,null,"Bath Building Society"]
[null,null,null,null,null,null,null,null,null,null,null,"Beneficial Bank"]
[null,null,null,null,null,null,null,null,null,null,null,"Beverly Building Society"]
[null,null,null,null,null,null,null,null,null,null,null,"Birmingham Midshires (Guernsey) Ltd"]
[null,null,null,null,null,null,null,null,null,null,null,"Birmingham Midshires Building Society"]
[null,null,null,null,null,null,null,null,null,null,null,"Birmingham Midshires MSL"]
[null,null,null,null,null,null,null,null,null,null,null,"Bradford & Bingley (IOM) Ltd"]
[null,null,null,null,null,null,null,null,null,null,null,"Bradford & Bingley Building Society"]
[null,null,null,null,null,null,null,null,null,null,null,"Bradford & Bingley MTGS Direct"]
[null,null,null,null,null,null,null,null,null,null,null,"Bristol & West"]
[null,null,null,null,null,null,null,null,null,null,null,"Bristol & West / Direct Mortgages"]
[null,null,null,null,null,null,null,null,null,null,null,"Bristol & West IMC"]
[null,null,null,null,null,null,null,null,null,null,null,"Bristol & West International Ltd"]
[null,null,null,null,null,null,null,null,null,null,null,"Britannia Building Society"]
[null,null,null,null,null,null,null,null,null,null,null,"Britannia International Ltd"]
[null,null,null,null,null,null,null,null,null,null,null,"Britannia Mortgage Direct"]
[null,null,null,null,null,null,null,null,null,null,null,"Buckinghamshire Building Society"]
[null,null,null,null,null,null,null,null,null,null,null,"C & G Channel Islands Ltd"]
[null,null,null,null,null,null,null,null,null,null,null,"C & G Mortgage Direct"]
[null,null,null,null,null,null,null,null,null,null,null,"Cambridge Building Society"]
[null,null,null,null,null,null,null,null,null,null,null,"Capital Bonds"]
[null,null,null,null,null,null,null,null,null,null,null,"Capital Home Loans"]
[null,null,null,null,null,null,null,null,null,null,null,"Capital Wise"]
[null,null,null,null,null,null,null,null,null,null,null,"Cater Allen Bank"]
[null,null,null,null,null,null,null,null,null,null,null,"Cater Allen Bank (IOM) Ltd"]
[null,null,null,null,null,null,null,null,null,null,null,"Cater Allen Bank (Jersey) Ltd"]
[null,null,null,null,null,null,null,null,null,null,null,"Chelsea Building Society"]
[null,null,null,null,null,null,null,null,null,null,null,"Cheltenham & Gloucester"]
[null,null,null,null,null,null,null,null,null,null,null,"Chesham Building Society"]
[null,null,null,null,null,null,null,null,null,null,null,"Cheshire Building Society"]
[null,null,null,null,null,null,null,null,null,null,null,"Cheshire Guernsey Ltd"]
[null,null,null,null,null,null,null,null,null,null,null,"Chorley & District Building Society"]
[null,null,null,null,null,null,null,null,null,null,null,"Citibank"]
[null,null,null,null,null,null,null,null,null,null,null,"Close Brothers"]
[null,null,null,null,null,null,null,null,null,null,null,"Clydesdale Bank"]
[null,null,null,null,null,null,null,null,null,null,null,"Co-operative Bank"]
[null,null,null,null,null,null,null,null,null,null,null,"Coutts & Co"]
[null,null,null,null,null,null,null,null,null,null,null,"Coventry Building Society"]
[null,null,null,null,null,null,null,null,null,null,null,"Cumberland Building Society"]
[null,null,null,null,null,null,null,null,null,null,null,"Darlington Building Society"]
[null,null,null,null,null,null,null,null,null,null,null,"Deposit Bonds"]
[null,null,null,null,null,null,null,null,null,null,null,"Derbyshire (IOM) Ltd"]
[null,null,null,null,null,null,null,null,null,null,null,"Derbyshire Building Society"]
[null,null,null,null,null,null,null,null,null,null,null,"Derbyshire Direct"]
[null,null,null,null,null,null,null,null,null,null,null,"Direct Line"]
[null,null,null,null,null,null,null,null,null,null,null,"Dudley Building Society"]
[null,null,null,null,null,null,null,null,null,null,null,"Dunfermline Building Society"]
[null,null,null,null,null,null,null,null,null,null,null,"EBS Bank (IOM) Ltd"]
[null,null,null,null,null,null,null,null,null,null,null,"Earl Shilton Building Society"]
[null,null,null,null,null,null,null,null,null,null,null,"Ecology Building Society"]
[null,null,null,null,null,null,null,null,null,null,null,"First Direct"]
[null,null,null,null,null,null,null,null,null,null,null,"First Mortgage"]
[null,null,null,null,null,null,null,null,null,null,null,"First National Building Society"]
[null,null,null,null,null,null,null,null,null,null,null,"First National Building Society Guernsey Ltd"]
[null,null,null,null,null,null,null,null,null,null,null,"First Option Bonds"]
[null,null,null,null,null,null,null,null,null,null,null,"First Trust Bank (NI)"]
[null,null,null,null,null,null,null,null,null,null,null,"Friends Provident"]
[null,null,null,null,null,null,null,null,null,null,null,"Frizzell Bank"]
[null,null,null,null,null,null,null,null,null,null,null,"Furness Building Society"]
[null,null,null,null,null,null,null,null,null,null,null,"Furness Direct"]
[null,null,null,null,null,null,null,null,null,null,null,"Guinness Mahon Guernsey Ltd"]
[null,null,null,null,null,null,null,null,null,null,null,"HFC Bank"]
[null,null,null,null,null,null,null,null,null,null,null,"Halifax"]
[null,null,null,null,null,null,null,null,null,null,null,"Halifax International (IOM) Ltd"]
[null,null,null,null,null,null,null,null,null,null,null,"Halifax International (Jersey) Ltd"]
[null,null,null,null,null,null,null,null,null,null,null,"Halifax MSL"]
[null,null,null,null,null,null,null,null,null,null,null,"Hambros Bank (Jersey) Ltd"]
[null,null,null,null,null,null,null,null,null,null,null,"Hanley Economic Building Society"]
[null,null,null,null,null,null,null,null,null,null,null,"Hanson Bank Ltd"]
[null,null,null,null,null,null,null,null,null,null,null,"Harpenden Building Society"]
[null,null,null,null,null,null,null,null,null,null,null,"HBOS"]
[null,null,null,null,null,null,null,null,null,null,null,"Hinckley & Rugby Building Society"]
[null,null,null,null,null,null,null,null,null,null,null,"Hoare & Co"]
[null,null,null,null,null,null,null,null,null,null,null,"Holmesdale Building Society"]
[null,null,null,null,null,null,null,null,null,null,null,"Household Mortgage Corporation"]
[null,null,null,null,null,null,null,null,null,null,null,"HSBC Bank"]
[null,null,null,null,null,null,null,null,null,null,null,"Income Bonds"]
[null,null,null,null,null,null,null,null,null,null,null,"Intelligent Finance"]
[null,null,null,null,null,null,null,null,null,null,null,"Investec Bank (Jersey) Ltd"]
[null,null,null,null,null,null,null,null,null,null,null,"Investec Bank (UK)"]
[null,null,null,null,null,null,null,null,null,null,null,"Ipswich Building Society"]
[null,null,null,null,null,null,null,null,null,null,null,"Irish Nationwide (IOM) Ltd"]
[null,null,null,null,null,null,null,null,null,null,null,"Irish Permanent"]
[null,null,null,null,null,null,null,null,null,null,null,"Irish Permanent (IOM) Ltd"]
[null,null,null,null,null,null,null,null,null,null,null,"Isle of Man Bank"]
[null,null,null,null,null,null,null,null,null,null,null,"Julian Hodge Bank"]
[null,null,null,null,null,null,null,null,null,null,null,"Jyske Bank"]
[null,null,null,null,null,null,null,null,null,null,null,"Kent Reliance Building Society"]
[null,null,null,null,null,null,null,null,null,null,null,"Lambeth Building Society"]
[null,null,null,null,null,null,null,null,null,null,null,"Leeds & Holbeck Building Society"]
[null,null,null,null,null,null,null,null,null,null,null,"Leek United Building Society"]
[null,null,null,null,null,null,null,null,null,null,null,"Legal & General Bank"]
[null,null,null,null,null,null,null,null,null,null,null,"Leopold Joseph"]
[null,null,null,null,null,null,null,null,null,null,null,"Leopold Joseph (Guernsey) Ltd"]
[null,null,null,null,null,null,null,null,null,null,null,"Lloyds Bank"]
[null,null,null,null,null,null,null,null,null,null,null,"Lloyds TSB Bank"]
[null,null,null,null,null,null,null,null,null,null,null,"Lombard Banking (Jersey) Ltd"]
[null,null,null,null,null,null,null,null,null,null,null,"Lombard North Central"]
[null,null,null,null,null,null,null,null,null,null,null,"Londonderry Prov. Building Society"]
[null,null,null,null,null,null,null,null,null,null,null,"Loughborough Building Society"]
[null,null,null,null,null,null,null,null,null,null,null,"MBNA International"]
[null,null,null,null,null,null,null,null,null,null,null,"Manchester Building Society"]
[null,null,null,null,null,null,null,null,null,null,null,"Mansfield Building Society"]
[null,null,null,null,null,null,null,null,null,null,null,"Market Harborough Building Society"]
[null,null,null,null,null,null,null,null,null,null,null,"Marsden Building Society"]
[null,null,null,null,null,null,null,null,null,null,null,"Melton Mowbray Building Society"]
[null,null,null,null,null,null,null,null,null,null,null,"Mercantile Building Society"]
[null,null,null,null,null,null,null,null,null,null,null,"Midland Bank"]
[null,null,null,null,null,null,null,null,null,null,null,"Midland Bank Offshore Ltd"]
[null,null,null,null,null,null,null,null,null,null,null,"Monmouthshire Building Society"]
[null,null,null,null,null,null,null,null,null,null,null,"Mortgage Express"]
[null,null,null,null,null,null,null,null,null,null,null,"Mortgage Trust"]
[null,null,null,null,null,null,null,null,null,null,null,"NSB Investment Account"]
[null,null,null,null,null,null,null,null,null,null,null,"NSB Ordinary Account"]
[null,null,null,null,null,null,null,null,null,null,null,"National Counties Building Society"]
[null,null,null,null,null,null,null,null,null,null,null,"National Westminster Bank"]
[null,null,null,null,null,null,null,null,null,null,null,"National Westminster Mortgage Services"]
[null,null,null,null,null,null,null,null,null,null,null,"Nationwide Building Society"]
[null,null,null,null,null,null,null,null,null,null,null,"Nationwide Direct"]
[null,null,null,null,null,null,null,null,null,null,null,"Nationwide International Ltd"]
[null,null,null,null,null,null,null,null,null,null,null,"Newbury Building Society"]
[null,null,null,null,null,null,null,null,null,null,null,"Newcastle Bank (Gibraltar) Ltd"]
[null,null,null,null,null,null,null,null,null,null,null,"Newcastle Building Society"]
[null,null,null,null,null,null,null,null,null,null,null,"Newcastle Direct"]
[null,null,null,null,null,null,null,null,null,null,null,"Northern Bank"]
[null,null,null,null,null,null,null,null,null,null,null,"Northern Offshore Banking & Financial Services"]
[null,null,null,null,null,null,null,null,null,null,null,"Northern Rock"]
[null,null,null,null,null,null,null,null,null,null,null,"Northern Rock (Guernsey) Ltd"]
[null,null,null,null,null,null,null,null,null,null,null,"Northern Rock Direct"]
[null,null,null,null,null,null,null,null,null,null,null,"Norwich & Peterborough Building Society"]
[null,null,null,null,null,null,null,null,null,null,null,"Nottingham Building Society"]
[null,null,null,null,null,null,null,null,null,null,null,"Nottingham Imperial Building Society"]
[null,null,null,null,null,null,null,null,null,null,null,"Paragon Mortgages"]
[null,null,null,null,null,null,null,null,null,null,null,"Pensioners Guaranteed Income Bonds"]
[null,null,null,null,null,null,null,null,null,null,null,"Portman Building Society"]
[null,null,null,null,null,null,null,null,null,null,null,"Portman Channel Islands Ltd"]
[null,null,null,null,null,null,null,null,null,null,null,"Principality Building Society"]
[null,null,null,null,null,null,null,null,null,null,null,"Progressive Building Society"]
[null,null,null,null,null,null,null,null,null,null,null,"Prudential Banking"]
[null,null,null,null,null,null,null,null,null,null,null,"Robert Fleming (IOM) Ltd"]
[null,null,null,null,null,null,null,null,null,null,null,"Royal Bank of Canada (IOM) Ltd"]
[null,null,null,null,null,null,null,null,null,null,null,"Royal Bank of Canada (Jersey) Ltd"]
[null,null,null,null,null,null,null,null,null,null,null,"Royal Bank of Scotland"]
[null,null,null,null,null,null,null,null,null,null,null,"Royal Bank of Scotland International Ltd"]
[null,null,null,null,null,null,null,null,null,null,null,"Saffron Walden Building Society"]
[null,null,null,null,null,null,null,null,null,null,null,"Sainsbury's Bank"]
[null,null,null,null,null,null,null,null,null,null,null,"Scarborough Building Society"]
[null,null,null,null,null,null,null,null,null,null,null,"Schroders (CI) Ltd"]
[null,null,null,null,null,null,null,null,null,null,null,"Scottish Building Society"]
[null,null,null,null,null,null,null,null,null,null,null,"Scottish Widows Bank"]
[null,null,null,null,null,null,null,null,null,null,null,"Shepshed Building Society"]
[null,null,null,null,null,null,null,null,null,null,null,"Singer & Friedlander (IOM) Ltd"]
[null,null,null,null,null,null,null,null,null,null,null,"Skipton Building Society"]
[null,null,null,null,null,null,null,null,null,null,null,"Skipton Guernsey Ltd"]
[null,null,null,null,null,null,null,null,null,null,null,"Stafford Railway Building Society"]
[null,null,null,null,null,null,null,null,null,null,null,"Staffordshire Building Society"]
[null,null,null,null,null,null,null,null,null,null,null,"Standard Bank IOM"]
[null,null,null,null,null,null,null,null,null,null,null,"Standard Bank Jersey"]
[null,null,null,null,null,null,null,null,null,null,null,"Standard Chartered Bank"]
[null,null,null,null,null,null,null,null,null,null,null,"Stroud & Swindon Building Society"]
[null,null,null,null,null,null,null,null,null,null,null,"Sun Banking Corp"]
[null,null,null,null,null,null,null,null,null,null,null,"Sun Banking Corp (Jersey) Ltd"]
[null,null,null,null,null,null,null,null,null,null,null,"Sun Banking Corporation"]
[null,null,null,null,null,null,null,null,null,null,null,"TSB"]
[null,null,null,null,null,null,null,null,null,null,null,"TSB Bank Channel Islands Ltd"]
[null,null,null,null,null,null,null,null,null,null,null,"Teachers Building Society"]
[null,null,null,null,null,null,null,null,null,null,null,"The Mortgage Business"]
[null,null,null,null,null,null,null,null,null,null,null,"Tipton & Coseley Building Society"]
[null,null,null,null,null,null,null,null,null,null,null,"UCB Home Loans Corporation"]
[null,null,null,null,null,null,null,null,null,null,null,"Ulster Bank"]
[null,null,null,null,null,null,null,null,null,null,null,"Ulster Bank (IOM) Ltd"]
[null,null,null,null,null,null,null,null,null,null,null,"Universal Building Society"]
[null,null,null,null,null,null,null,null,null,null,null,"Vernon Building Society"]
[null,null,null,null,null,null,null,null,null,null,null,"Wesleyan Home Loans"]
[null,null,null,null,null,null,null,null,null,null,null,"West Bromwich Building Society"]
[null,null,null,null,null,null,null,null,null,null,null,"Woolwich"]
[null,null,null,null,null,null,null,null,null,null,null,"Woolwich Direct"]
[null,null,null,null,null,null,null,null,null,null,null,"Woolwich Guernsey Ltd"]
[null,null,null,null,null,null,null,null,null,null,null,"Yorkshire Bank"]
[null,null,null,null,null,null,null,null,null,null,null,"Yorkshire Building Society"]
[null,null,null,null,null,null,null,null,null,null,null,"Yorkshire Guernsey Ltd"]

{"sheet":"pension","index":7,"n_rows":207,"n_cols":12,"rows_kept":207,"cut":false,"hidden":false,"merged":[[4,0,4,3],[5,0,5,3],[6,0,6,3],[7,0,7,3],[8,0,8,3],[9,0,9,3],[10,0,10,3],[11,0,11,3],[12,0,12,3],[13,0,13,3],[14,0,14,3],[15,0,15,3],[16,0,16,3],[17,0,17,3],[18,0,18,3],[19,0,19,3],[20,0,20,3],[21,0,21,3],[22,0,22,3],[23,0,23,3],[24,0,24,3],[25,0,25,3],[26,0,26,3],[27,0,27,3],[28,0,28,3],[29,0,29,3],[30,0,30,3],[31,0,31,3],[32,0,32,3],[33,0,33,3],[34,0,34,3],[35,0,35,3],[36,0,36,3],[37,0,37,3],[38,0,38,3],[39,0,39,3],[40,0,40,3],[41,0,41,3],[42,0,42,3],[43,0,43,3],[44,0,44,3],[45,0,45,3],[46,0,46,3],[47,0,47,3],[48,0,48,3],[49,0,49,3],[50,0,50,3],[51,0,51,3],[52,0,52,3],[53,0,53,3],[54,0,54,3],[55,0,55,3],[56,0,56,3],[57,0,57,3],[58,0,58,3],[59,0,59,3],[60,0,60,3],[61,0,61,3],[62,0,62,3],[63,0,63,3],[64,0,64,3],[65,0,65,3],[66,0,66,3],[67,0,67,3],[68,0,68,3],[69,0,69,3],[70,0,70,3],[71,0,71,3],[72,0,72,3],[73,0,73,3],[74,0,74,3],[75,0,75,3],[76,0,76,3],[77,0,77,3],[78,0,78,3],[79,0,79,3],[80,0,80,3],[81,0,81,3],[82,0,82,3],[83,0,83,3],[84,0,84,3],[85,0,85,3],[86,0,86,3],[87,0,87,3],[88,0,88,3],[89,0,89,3],[90,0,90,3],[91,0,91,3],[92,0,92,3],[93,0,93,3],[94,0,94,3],[95,0,95,3],[96,0,96,3],[97,0,97,3],[98,0,98,3],[99,0,99,3],[100,0,100,3],[101,0,101,3],[102,0,102,3],[103,0,103,3],[104,0,104,3],[105,0,105,3],[106,0,106,3],[107,0,107,3],[108,0,108,3],[109,0,109,3],[110,0,110,3],[111,0,111,3],[112,0,112,3],[113,0,113,3],[114,0,114,3],[115,0,115,3],[116,0,116,3],[117,0,117,3],[118,0,118,3],[119,0,119,3],[120,0,120,3],[121,0,121,3],[122,0,122,3],[123,0,123,3],[124,0,124,3],[125,0,125,3],[126,0,126,3],[127,0,127,3],[128,0,128,3],[129,0,129,3],[130,0,130,3],[131,0,131,3],[132,0,132,3],[133,0,133,3],[134,0,134,3],[135,0,135,3],[136,0,136,3],[137,0,137,3],[138,0,138,3],[139,0,139,3],[140,0,140,3],[141,0,141,3],[142,0,142,3],[143,0,143,3],[144,0,144,3],[145,0,145,3],[146,0,146,3],[147,0,147,3],[148,0,148,3],[149,0,149,3],[150,0,150,3],[151,0,151,3],[152,0,152,3],[153,0,153,3],[154,0,154,3],[155,0,155,3],[156,0,156,3],[157,0,157,3],[158,0,158,3],[159,0,159,3],[164,0,164,3],[165,0,165,3],[160,0,160,3],[161,0,161,3],[162,0,162,3],[163,0,163,3]]}
["PENSION FUNDS"]
["Total Carried to Summary sheet",null,null,null,{"$f":"SUM(E3:E100)","v":0},{"$f":"SUM(F3:F100)","v":0},{"$f":"SUM(G3:G100)","v":0},"Return to main page"]
[]
[null,null,null,null,"Self","Spouse","Joint"]
["LIST ASSETS BELOW",null,null,null," "]
[" ",null,null,null,0,0,0,null,null,null,null,"Abbey National"]
[null,null,null,null,null,null,null,null,null,null,null,"Abbey National Direct"]
[null,null,null,null,null,null,null,null,null,null,null,"Abbey National Treasury International Ltd"]
[null,null,null,null,null,null,null,null,null,null,null,"Alliance & Leicester"]
[null,null,null,null,null,null,null,null,null,null,null,"Alliance & Leicester Giro"]
[null,null,null,null,null,null,null,null,null,null,null,"Alliance & Leicester International Ltd"]
[null,null,null,null,null,null,null,null,null,null,null,"Allied Dunbar Bank International Ltd"]
[null,null,null,null,null,null,null,null,null,null,null,"Allied Irish Bank (GB)"]
[null,null,null,null,null,null,null,null,null,null,null,"Ansbacher (Jersey) Ltd"]
[null,null,null,null,null,null,null,null,null,null,null,"Bank of Cyprus (London) Ltd"]
[null,null,null,null,null,null,null,null,null,null,null,"Bank of Ireland (GB)"]
[null,null,null,null,null,null,null,null,null,null,null,"Bank of Ireland (NI)"]
[null,null,null,null,null,null,null,null,null,null,null,"Bank of Ireland Mortgages"]
[null,null,null,null,null,null,null,null,null,null,null,"Bank of Scotland"]
[null,null,null,null,null,null,null,null,null,null,null,"Bank of Scotland (IOM) Ltd"]
[null,null,null,null,null,null,null,null,null,null,null,"Bank of Scotland Centrebank"]
[null,null,null,null,null,null,null,null,null,null,null,"Bank of Scotland Mortgages Direct"]
[null,null,null,null,null,null,null,null,null,null,null,"Bank of Wales"]
[null,null,null,null,null,null,null,null,null,null,null,"Bank of Wales (Jersey) Ltd"]
[null,null,null,null,null,null,null,null,null,null,null,"Barclays Bank"]
[null,null,null,null,null,null,null,null,null,null,null,"Barnsley Building Society"]
[null,null,null,null,null,null,null,null,null,null,null,"Bath Building Society"]
[null,null,null,null,null,null,null,null,null,null,null,"Beneficial Bank"]
[null,null,null,null,null,null,null,null,null,null,null,"Beverly Building Society"]
[null,null,null,null,null,null,null,null,null,null,null,"Birmingham Midshires (Guernsey) Ltd"]
[null,null,null,null,null,null,null,null,null,null,null,"Birmingham Midshires Building Society"]
[null,null,null,null,null,null,null,null,null,null,null,"Birmingham Midshires MSL"]
[null,null,null,null,null,null,null,null,null,null,null,"Bradford & Bingley (IOM) Ltd"]
[null,null,null,null,null,null,null,null,null,null,null,"Bradford & Bingley Building Society"]
[null,null,null,null,null,null,null,null,null,null,null,"Bradford & Bingley MTGS Direct"]
[null,null,null,null,null,null,null,null,null,null,null,"Bristol & West"]
[null,null,null,null,null,null,null,null,null,null,null,"Bristol & West / Direct Mortgages"]
[null,null,null,null,null,null,null,null,null,null,null,"Bristol & West IMC"]
[null,null,null,null,null,null,null,null,null,null,null,"Bristol & West International Ltd"]
[null,null,null,null,null,null,null,null,null,null,null,"Britannia Building Society"]
[null,null,null,null,null,null,null,null,null,null,null,"Britannia International Ltd"]
[null,null,null,null,null,null,null,null,null,null,null,"Britannia Mortgage Direct"]
[null,null,null,null,null,null,null,null,null,null,null,"Buckinghamshire Building Society"]
[null,null,null,null,null,null,null,null,null,null,null,"C & G Channel Islands Ltd"]
[null,null,null,null,null,null,null,null,null,null,null,"C & G Mortgage Direct"]
[null,null,null,null,null,null,null,null,null,null,null,"Cambridge Building Society"]
[null,null,null,null,null,null,null,null,null,null,null,"Capital Bonds"]
[null,null,null,null,null,null,null,null,null,null,null,"Capital Home Loans"]
[null,null,null,null,null,null,null,null,null,null,null,"Capital Wise"]
[null,null,null,null,null,null,null,null,null,null,null,"Cater Allen Bank"]
[null,null,null,null,null,null,null,null,null,null,null,"Cater Allen Bank (IOM) Ltd"]
[null,null,null,null,null,null,null,null,null,null,null,"Cater Allen Bank (Jersey) Ltd"]
[null,null,null,null,null,null,null,null,null,null,null,"Chelsea Building Society"]
[null,null,null,null,null,null,null,null,null,null,null,"Cheltenham & Gloucester"]
[null,null,null,null,null,null,null,null,null,null,null,"Chesham Building Society"]
[null,null,null,null,null,null,null,null,null,null,null,"Cheshire Building Society"]
[null,null,null,null,null,null,null,null,null,null,null,"Cheshire Guernsey Ltd"]
[null,null,null,null,null,null,null,null,null,null,null,"Chorley & District Building Society"]
[null,null,null,null,null,null,null,null,null,null,null,"Citibank"]
[null,null,null,null,null,null,null,null,null,null,null,"Close Brothers"]
[null,null,null,null,null,null,null,null,null,null,null,"Clydesdale Bank"]
[null,null,null,null,null,null,null,null,null,null,null,"Co-operative Bank"]
[null,null,null,null,null,null,null,null,null,null,null,"Coutts & Co"]
[null,null,null,null,null,null,null,null,null,null,null,"Coventry Building Society"]
[null,null,null,null,null,null,null,null,null,null,null,"Cumberland Building Society"]
[null,null,null,null,null,null,null,null,null,null,null,"Darlington Building Society"]
[null,null,null,null,null,null,null,null,null,null,null,"Deposit Bonds"]
[null,null,null,null,null,null,null,null,null,null,null,"Derbyshire (IOM) Ltd"]
[null,null,null,null,null,null,null,null,null,null,null,"Derbyshire Building Society"]
[null,null,null,null,null,null,null,null,null,null,null,"Derbyshire Direct"]
[null,null,null,null,null,null,null,null,null,null,null,"Direct Line"]
[null,null,null,null,null,null,null,null,null,null,null,"Dudley Building Society"]
[null,null,null,null,null,null,null,null,null,null,null,"Dunfermline Building Society"]
[null,null,null,null,null,null,null,null,null,null,null,"EBS Bank (IOM) Ltd"]
[null,null,null,null,null,null,null,null,null,null,null,"Earl Shilton Building Society"]
[null,null,null,null,null,null,null,null,null,null,null,"Ecology Building Society"]
[null,null,null,null,null,null,null,null,null,null,null,"First Direct"]
[null,null,null,null,null,null,null,null,null,null,null,"First Mortgage"]
[null,null,null,null,null,null,null,null,null,null,null,"First National Building Society"]
[null,null,null,null,null,null,null,null,null,null,null,"First National Building Society Guernsey Ltd"]
[null,null,null,null,null,null,null,null,null,null,null,"First Option Bonds"]
[null,null,null,null,null,null,null,null,null,null,null,"First Trust Bank (NI)"]
[null,null,null,null,null,null,null,null,null,null,null,"Friends Provident"]
[null,null,null,null,null,null,null,null,null,null,null,"Frizzell Bank"]
[null,null,null,null,null,null,null,null,null,null,null,"Furness Building Society"]
[null,null,null,null,null,null,null,null,null,null,null,"Furness Direct"]
[null,null,null,null,null,null,null,null,null,null,null,"Guinness Mahon Guernsey Ltd"]
[null,null,null,null,null,null,null,null,null,null,null,"HFC Bank"]
[null,null,null,null,null,null,null,null,null,null,null,"Halifax"]
[null,null,null,null,null,null,null,null,null,null,null,"Halifax International (IOM) Ltd"]
[null,null,null,null,null,null,null,null,null,null,null,"Halifax International (Jersey) Ltd"]
[null,null,null,null,null,null,null,null,null,null,null,"Halifax MSL"]
[null,null,null,null,null,null,null,null,null,null,null,"Hambros Bank (Jersey) Ltd"]
[null,null,null,null,null,null,null,null,null,null,null,"Hanley Economic Building Society"]
[null,null,null,null,null,null,null,null,null,null,null,"Hanson Bank Ltd"]
[null,null,null,null,null,null,null,null,null,null,null,"Harpenden Building Society"]
[null,null,null,null,null,null,null,null,null,null,null,"HBOS"]
[null,null,null,null,null,null,null,null,null,null,null,"Hinckley & Rugby Building Society"]
[null,null,null,null,null,null,null,null,null,null,null,"Hoare & Co"]
[null,null,null,null,null,null,null,null,null,null,null,"Holmesdale Building Society"]
[null,null,null,null,null,null,null,null,null,null,null,"Household Mortgage Corporation"]
[null,null,null,null,null,null,null,null,null,null,null,"HSBC Bank"]
[null,null,null,null,null,null,null,null,null,null,null,"Income Bonds"]
[null,null,null,null,null,null,null,null,null,null,null,"Intelligent Finance"]
[null,null,null,null,null,null,null,null,null,null,null,"Investec Bank (Jersey) Ltd"]
[null,null,null,null,null,null,null,null,null,null,null,"Investec Bank (UK)"]
[null,null,null,null,null,null,null,null,null,null,null,"Ipswich Building Society"]
[null,null,null,null,null,null,null,null,null,null,null,"Irish Nationwide (IOM) Ltd"]
[null,null,null,null,null,null,null,null,null,null,null,"Irish Permanent"]
[null,null,null,null,null,null,null,null,null,null,null,"Irish Permanent (IOM) Ltd"]
[null,null,null,null,null,null,null,null,null,null,null,"Isle of Man Bank"]
[null,null,null,null,null,null,null,null,null,null,null,"Julian Hodge Bank"]
[null,null,null,null,null,null,null,null,null,null,null,"Jyske Bank"]
[null,null,null,null,null,null,null,null,null,null,null,"Kent Reliance Building Society"]
[null,null,null,null,null,null,null,null,null,null,null,"Lambeth Building Society"]
[null,null,null,null,null,null,null,null,null,null,null,"Leeds & Holbeck Building Society"]
[null,null,null,null,null,null,null,null,null,null,null,"Leek United Building Society"]
[null,null,null,null,null,null,null,null,null,null,null,"Legal & General Bank"]
[null,null,null,null,null,null,null,null,null,null,null,"Leopold Joseph"]
[null,null,null,null,null,null,null,null,null,null,null,"Leopold Joseph (Guernsey) Ltd"]
[null,null,null,null,null,null,null,null,null,null,null,"Lloyds Bank"]
[null,null,null,null,null,null,null,null,null,null,null,"Lloyds TSB Bank"]
[null,null,null,null,null,null,null,null,null,null,null,"Lombard Banking (Jersey) Ltd"]
[null,null,null,null,null,null,null,null,null,null,null,"Lombard North Central"]
[null,null,null,null,null,null,null,null,null,null,null,"Londonderry Prov. Building Society"]
[null,null,null,null,null,null,null,null,null,null,null,"Loughborough Building Society"]
[null,null,null,null,null,null,null,null,null,null,null,"MBNA International"]
[null,null,null,null,null,null,null,null,null,null,null,"Manchester Building Society"]
[null,null,null,null,null,null,null,null,null,null,null,"Mansfield Building Society"]
[null,null,null,null,null,null,null,null,null,null,null,"Market Harborough Building Society"]
[null,null,null,null,null,null,null,null,null,null,null,"Marsden Building Society"]
[null,null,null,null,null,null,null,null,null,null,null,"Melton Mowbray Building Society"]
[null,null,null,null,null,null,null,null,null,null,null,"Mercantile Building Society"]
[null,null,null,null,null,null,null,null,null,null,null,"Midland Bank"]
[null,null,null,null,null,null,null,null,null,null,null,"Midland Bank Offshore Ltd"]
[null,null,null,null,null,null,null,null,null,null,null,"Monmouthshire Building Society"]
[null,null,null,null,null,null,null,null,null,null,null,"Mortgage Express"]
[null,null,null,null,null,null,null,null,null,null,null,"Mortgage Trust"]
[null,null,null,null,null,null,null,null,null,null,null,"NSB Investment Account"]
[null,null,null,null,null,null,null,null,null,null,null,"NSB Ordinary Account"]
[null,null,null,null,null,null,null,null,null,null,null,"National Counties Building Society"]
[null,null,null,null,null,null,null,null,null,null,null,"National Westminster Bank"]
[null,null,null,null,null,null,null,null,null,null,null,"National Westminster Mortgage Services"]
[null,null,null,null,null,null,null,null,null,null,null,"Nationwide Building Society"]
[null,null,null,null,null,null,null,null,null,null,null,"Nationwide Direct"]
[null,null,null,null,null,null,null,null,null,null,null,"Nationwide International Ltd"]
[null,null,null,null,null,null,null,null,null,null,null,"Newbury Building Society"]
[null,null,null,null,null,null,null,null,null,null,null,"Newcastle Bank (Gibraltar) Ltd"]
[null,null,null,null,null,null,null,null,null,null,null,"Newcastle Building Society"]
[null,null,null,null,null,null,null,null,null,null,null,"Newcastle Direct"]
[null,null,null,null,null,null,null,null,null,null,null,"Northern Bank"]
[null,null,null,null,null,null,null,null,null,null,null,"Northern Offshore Banking & Financial Services"]
[null,null,null,null,null,null,null,null,null,null,null,"Northern Rock"]
[null,null,null,null,null,null,null,null,null,null,null,"Northern Rock (Guernsey) Ltd"]
[null,null,null,null,null,null,null,null,null,null,null,"Northern Rock Direct"]
[null,null,null,null,null,null,null,null,null,null,null,"Norwich & Peterborough Building Society"]
[null,null,null,null,null,null,null,null,null,null,null,"Nottingham Building Society"]
[null,null,null,null,null,null,null,null,null,null,null,"Nottingham Imperial Building Society"]
[null,null,null,null,null,null,null,null,null,null,null,"Paragon Mortgages"]
[null,null,null,null,null,null,null,null,null,null,null,"Pensioners Guaranteed Income Bonds"]
[null,null,null,null,null,null,null,null,null,null,null,"Portman Building Society"]
[null,null,null,null,null,null,null,null,null,null,null,"Portman Channel Islands Ltd"]
[null,null,null,null,null,null,null,null,null,null,null,"Principality Building Society"]
[null,null,null,null,null,null,null,null,null,null,null,"Progressive Building Society"]
[null,null,null,null,null,null,null,null,null,null,null,"Prudential Banking"]
[null,null,null,null,null,null,null,null,null,null,null,"Robert Fleming (IOM) Ltd"]
[null,null,null,null,null,null,null,null,null,null,null,"Royal Bank of Canada (IOM) Ltd"]
[null,null,null,null,null,null,null,null,null,null,null,"Royal Bank of Canada (Jersey) Ltd"]
[null,null,null,null,null,null,null,null,null,null,null,"Royal Bank of Scotland"]
[null,null,null,null,null,null,null,null,null,null,null,"Royal Bank of Scotland International Ltd"]
[null,null,null,null,null,null,null,null,null,null,null,"Saffron Walden Building Society"]
[null,null,null,null,null,null,null,null,null,null,null,"Sainsbury's Bank"]
[null,null,null,null,null,null,null,null,null,null,null,"Scarborough Building Society"]
[null,null,null,null,null,null,null,null,null,null,null,"Schroders (CI) Ltd"]
[null,null,null,null,null,null,null,null,null,null,null,"Scottish Building Society"]
[null,null,null,null,null,null,null,null,null,null,null,"Scottish Widows Bank"]
[null,null,null,null,null,null,null,null,null,null,null,"Shepshed Building Society"]
[null,null,null,null,null,null,null,null,null,null,null,"Singer & Friedlander (IOM) Ltd"]
[null,null,null,null,null,null,null,null,null,null,null,"Skipton Building Society"]
[null,null,null,null,null,null,null,null,null,null,null,"Skipton Guernsey Ltd"]
[null,null,null,null,null,null,null,null,null,null,null,"Stafford Railway Building Society"]
[null,null,null,null,null,null,null,null,null,null,null,"Staffordshire Building Society"]
[null,null,null,null,null,null,null,null,null,null,null,"Standard Bank IOM"]
[null,null,null,null,null,null,null,null,null,null,null,"Standard Bank Jersey"]
[null,null,null,null,null,null,null,null,null,null,null,"Standard Chartered Bank"]
[null,null,null,null,null,null,null,null,null,null,null,"Stroud & Swindon Building Society"]
[null,null,null,null,null,null,null,null,null,null,null,"Sun Banking Corp"]
[null,null,null,null,null,null,null,null,null,null,null,"Sun Banking Corp (Jersey) Ltd"]
[null,null,null,null,null,null,null,null,null,null,null,"Sun Banking Corporation"]
[null,null,null,null,null,null,null,null,null,null,null,"TSB"]
[null,null,null,null,null,null,null,null,null,null,null,"TSB Bank Channel Islands Ltd"]
[null,null,null,null,null,null,null,null,null,null,null,"Teachers Building Society"]
[null,null,null,null,null,null,null,null,null,null,null,"The Mortgage Business"]
[null,null,null,null,null,null,null,null,null,null,null,"Tipton & Coseley Building Society"]
[null,null,null,null,null,null,null,null,null,null,null,"UCB Home Loans Corporation"]
[null,null,null,null,null,null,null,null,null,null,null,"Ulster Bank"]
[null,null,null,null,null,null,null,null,null,null,null,"Ulster Bank (IOM) Ltd"]
[null,null,null,null,null,null,null,null,null,null,null,"Universal Building Society"]
[null,null,null,null,null,null,null,null,null,null,null,"Vernon Building Society"]
[null,null,null,null,null,null,null,null,null,null,null,"Wesleyan Home Loans"]
[null,null,null,null,null,null,null,null,null,null,null,"West Bromwich Building Society"]
[null,null,null,null,null,null,null,null,null,null,null,"Woolwich"]
[null,null,null,null,null,null,null,null,null,null,null,"Woolwich Direct"]
[null,null,null,null,null,null,null,null,null,null,null,"Woolwich Guernsey Ltd"]
[null,null,null,null,null,null,null,null,null,null,null,"Yorkshire Bank"]
[null,null,null,null,null,null,null,null,null,null,null,"Yorkshire Building Society"]
[null,null,null,null,null,null,null,null,null,null,null,"Yorkshire Guernsey Ltd"]

{"sheet":"Lifepol","index":8,"n_rows":207,"n_cols":12,"rows_kept":207,"cut":false,"hidden":false,"merged":[[164,0,164,3],[165,0,165,3],[160,0,160,3],[161,0,161,3],[162,0,162,3],[163,0,163,3],[156,0,156,3],[157,0,157,3],[158,0,158,3],[159,0,159,3],[152,0,152,3],[153,0,153,3],[154,0,154,3],[155,0,155,3],[148,0,148,3],[149,0,149,3],[150,0,150,3],[151,0,151,3],[144,0,144,3],[145,0,145,3],[146,0,146,3],[147,0,147,3],[140,0,140,3],[141,0,141,3],[142,0,142,3],[143,0,143,3],[136,0,136,3],[137,0,137,3],[138,0,138,3],[139,0,139,3],[132,0,132,3],[133,0,133,3],[134,0,134,3],[135,0,135,3],[128,0,128,3],[129,0,129,3],[130,0,130,3],[131,0,131,3],[124,0,124,3],[125,0,125,3],[126,0,126,3],[127,0,127,3],[120,0,120,3],[121,0,121,3],[122,0,122,3],[123,0,123,3],[116,0,116,3],[117,0,117,3],[118,0,118,3],[119,0,119,3],[112,0,112,3],[113,0,113,3],[114,0,114,3],[115,0,115,3],[108,0,108,3],[109,0,109,3],[110,0,110,3],[111,0,111,3],[104,0,104,3],[105,0,105,3],[106,0,106,3],[107,0,107,3],[100,0,100,3],[101,0,101,3],[102,0,102,3],[103,0,103,3],[96,0,96,3],[97,0,97,3],[98,0,98,3],[99,0,99,3],[92,0,92,3],[93,0,93,3],[94,0,94,3],[95,0,95,3],[88,0,88,3],[89,0,89,3],[90,0,90,3],[91,0,91,3],[84,0,84,3],[85,0,85,3],[86,0,86,3],[87,0,87,3],[80,0,80,3],[81,0,81,3],[82,0,82,3],[83,0,83,3],[76,0,76,3],[77,0,77,3],[78,0,78,3],[79,0,79,3],[72,0,72,3],[73,0,73,3],[74,0,74,3],[75,0,75,3],[68,0,68,3],[69,0,69,3],[70,0,70,3],[71,0,71,3],[64,0,64,3],[65,0,65,3],[66,0,66,3],[67,0,67,3],[60,0,60,3],[61,0,61,3],[62,0,62,3],[63,0,63,3],[56,0,56,3],[57,0,57,3],[58,0,58,3],[59,0,59,3],[52,0,52,3],[53,0,53,3],[54,0,54,3],[55,0,55,3],[48,0,48,3],[49,0,49,3],[50,0,50,3],[51,0,51,3],[44,0,44,3],[45,0,45,3],[46,0,46,3],[47,0,47,3],[40,0,40,3],[41,0,41,3],[42,0,42,3],[43,0,43,3],[36,0,36,3],[37,0,37,3],[38,0,38,3],[39,0,39,3],[32,0,32,3],[33,0,33,3],[34,0,34,3],[35,0,35,3],[28,0,28,3],[29,0,29,3],[30,0,30,3],[31,0,31,3],[24,0,24,3],[25,0,25,3],[26,0,26,3],[27,0,27,3],[20,0,20,3],[21,0,21,3],[22,0,22,3],[23,0,23,3],[16,0,16,3],[17,0,17,3],[18,0,18,3],[19,0,19,3],[14,0,14,3],[15,0,15,3],[13,0,13,3],[8,0,8,3],[9,0,9,3],[10,0,10,3],[11,0,11,3],[4,0,4,3],[5,0,5,3],[6,0,6,3],[7,0,7,3],[12,0,12,3]]}
["LIFE POLICIES"]
["Total Carried to Summary sheet",null,null,null,{"$f":"SUM(E3:E100)","v":0},{"$f":"SUM(F3:F100)","v":0},{"$f":"SUM(G3:G100)","v":0},"Return to main page"]
[]
[null,null,null,null,"Self","Spouse","Joint"]
["LIST ASSETS BELOW",null,null,null," "]
[" ",null,null,null,0,0,0,null,null,null,null,"Abbey National"]
[null,null,null,null,null,null,null,null,null,null,null,"Abbey National Direct"]
[null,null,null,null,null,null,null,null,null,null,null,"Abbey National Treasury International Ltd"]
[null,null,null,null,null,null,null,null,null,null,null,"Alliance & Leicester"]
[null,null,null,null,null,null,null,null,null,null,null,"Alliance & Leicester Giro"]
[null,null,null,null,null,null,null,null,null,null,null,"Alliance & Leicester International Ltd"]
[null,null,null,null,null,null,null,null,null,null,null,"Allied Dunbar Bank International Ltd"]
[null,null,null,null,null,null,null,null,null,null,null,"Allied Irish Bank (GB)"]
[null,null,null,null,null,null,null,null,null,null,null,"Ansbacher (Jersey) Ltd"]
[null,null,null,null,null,null,null,null,null,null,null,"Bank of Cyprus (London) Ltd"]
[null,null,null,null,null,null,null,null,null,null,null,"Bank of Ireland (GB)"]
[null,null,null,null,null,null,null,null,null,null,null,"Bank of Ireland (NI)"]
[null,null,null,null,null,null,null,null,null,null,null,"Bank of Ireland Mortgages"]
[null,null,null,null,null,null,null,null,null,null,null,"Bank of Scotland"]
[null,null,null,null,null,null,null,null,null,null,null,"Bank of Scotland (IOM) Ltd"]
[null,null,null,null,null,null,null,null,null,null,null,"Bank of Scotland Centrebank"]
[null,null,null,null,null,null,null,null,null,null,null,"Bank of Scotland Mortgages Direct"]
[null,null,null,null,null,null,null,null,null,null,null,"Bank of Wales"]
[null,null,null,null,null,null,null,null,null,null,null,"Bank of Wales (Jersey) Ltd"]
[null,null,null,null,null,null,null,null,null,null,null,"Barclays Bank"]
[null,null,null,null,null,null,null,null,null,null,null,"Barnsley Building Society"]
[null,null,null,null,null,null,null,null,null,null,null,"Bath Building Society"]
[null,null,null,null,null,null,null,null,null,null,null,"Beneficial Bank"]
[null,null,null,null,null,null,null,null,null,null,null,"Beverly Building Society"]
[null,null,null,null,null,null,null,null,null,null,null,"Birmingham Midshires (Guernsey) Ltd"]
[null,null,null,null,null,null,null,null,null,null,null,"Birmingham Midshires Building Society"]
[null,null,null,null,null,null,null,null,null,null,null,"Birmingham Midshires MSL"]
[null,null,null,null,null,null,null,null,null,null,null,"Bradford & Bingley (IOM) Ltd"]
[null,null,null,null,null,null,null,null,null,null,null,"Bradford & Bingley Building Society"]
[null,null,null,null,null,null,null,null,null,null,null,"Bradford & Bingley MTGS Direct"]
[null,null,null,null,null,null,null,null,null,null,null,"Bristol & West"]
[null,null,null,null,null,null,null,null,null,null,null,"Bristol & West / Direct Mortgages"]
[null,null,null,null,null,null,null,null,null,null,null,"Bristol & West IMC"]
[null,null,null,null,null,null,null,null,null,null,null,"Bristol & West International Ltd"]
[null,null,null,null,null,null,null,null,null,null,null,"Britannia Building Society"]
[null,null,null,null,null,null,null,null,null,null,null,"Britannia International Ltd"]
[null,null,null,null,null,null,null,null,null,null,null,"Britannia Mortgage Direct"]
[null,null,null,null,null,null,null,null,null,null,null,"Buckinghamshire Building Society"]
[null,null,null,null,null,null,null,null,null,null,null,"C & G Channel Islands Ltd"]
[null,null,null,null,null,null,null,null,null,null,null,"C & G Mortgage Direct"]
[null,null,null,null,null,null,null,null,null,null,null,"Cambridge Building Society"]
[null,null,null,null,null,null,null,null,null,null,null,"Capital Bonds"]
[null,null,null,null,null,null,null,null,null,null,null,"Capital Home Loans"]
[null,null,null,null,null,null,null,null,null,null,null,"Capital Wise"]
[null,null,null,null,null,null,null,null,null,null,null,"Cater Allen Bank"]
[null,null,null,null,null,null,null,null,null,null,null,"Cater Allen Bank (IOM) Ltd"]
[null,null,null,null,null,null,null,null,null,null,null,"Cater Allen Bank (Jersey) Ltd"]
[null,null,null,null,null,null,null,null,null,null,null,"Chelsea Building Society"]
[null,null,null,null,null,null,null,null,null,null,null,"Cheltenham & Gloucester"]
[null,null,null,null,null,null,null,null,null,null,null,"Chesham Building Society"]
[null,null,null,null,null,null,null,null,null,null,null,"Cheshire Building Society"]
[null,null,null,null,null,null,null,null,null,null,null,"Cheshire Guernsey Ltd"]
[null,null,null,null,null,null,null,null,null,null,null,"Chorley & District Building Society"]
[null,null,null,null,null,null,null,null,null,null,null,"Citibank"]
[null,null,null,null,null,null,null,null,null,null,null,"Close Brothers"]
[null,null,null,null,null,null,null,null,null,null,null,"Clydesdale Bank"]
[null,null,null,null,null,null,null,null,null,null,null,"Co-operative Bank"]
[null,null,null,null,null,null,null,null,null,null,null,"Coutts & Co"]
[null,null,null,null,null,null,null,null,null,null,null,"Coventry Building Society"]
[null,null,null,null,null,null,null,null,null,null,null,"Cumberland Building Society"]
[null,null,null,null,null,null,null,null,null,null,null,"Darlington Building Society"]
[null,null,null,null,null,null,null,null,null,null,null,"Deposit Bonds"]
[null,null,null,null,null,null,null,null,null,null,null,"Derbyshire (IOM) Ltd"]
[null,null,null,null,null,null,null,null,null,null,null,"Derbyshire Building Society"]
[null,null,null,null,null,null,null,null,null,null,null,"Derbyshire Direct"]
[null,null,null,null,null,null,null,null,null,null,null,"Direct Line"]
[null,null,null,null,null,null,null,null,null,null,null,"Dudley Building Society"]
[null,null,null,null,null,null,null,null,null,null,null,"Dunfermline Building Society"]
[null,null,null,null,null,null,null,null,null,null,null,"EBS Bank (IOM) Ltd"]
[null,null,null,null,null,null,null,null,null,null,null,"Earl Shilton Building Society"]
[null,null,null,null,null,null,null,null,null,null,null,"Ecology Building Society"]
[null,null,null,null,null,null,null,null,null,null,null,"First Direct"]
[null,null,null,null,null,null,null,null,null,null,null,"First Mortgage"]
[null,null,null,null,null,null,null,null,null,null,null,"First National Building Society"]
[null,null,null,null,null,null,null,null,null,null,null,"First National Building Society Guernsey Ltd"]
[null,null,null,null,null,null,null,null,null,null,null,"First Option Bonds"]
[null,null,null,null,null,null,null,null,null,null,null,"First Trust Bank (NI)"]
[null,null,null,null,null,null,null,null,null,null,null,"Friends Provident"]
[null,null,null,null,null,null,null,null,null,null,null,"Frizzell Bank"]
[null,null,null,null,null,null,null,null,null,null,null,"Furness Building Society"]
[null,null,null,null,null,null,null,null,null,null,null,"Furness Direct"]
[null,null,null,null,null,null,null,null,null,null,null,"Guinness Mahon Guernsey Ltd"]
[null,null,null,null,null,null,null,null,null,null,null,"HFC Bank"]
[null,null,null,null,null,null,null,null,null,null,null,"Halifax"]
[null,null,null,null,null,null,null,null,null,null,null,"Halifax International (IOM) Ltd"]
[null,null,null,null,null,null,null,null,null,null,null,"Halifax International (Jersey) Ltd"]
[null,null,null,null,null,null,null,null,null,null,null,"Halifax MSL"]
[null,null,null,null,null,null,null,null,null,null,null,"Hambros Bank (Jersey) Ltd"]
[null,null,null,null,null,null,null,null,null,null,null,"Hanley Economic Building Society"]
[null,null,null,null,null,null,null,null,null,null,null,"Hanson Bank Ltd"]
[null,null,null,null,null,null,null,null,null,null,null,"Harpenden Building Society"]
[null,null,null,null,null,null,null,null,null,null,null,"HBOS"]
[null,null,null,null,null,null,null,null,null,null,null,"Hinckley & Rugby Building Society"]
[null,null,null,null,null,null,null,null,null,null,null,"Hoare & Co"]
[null,null,null,null,null,null,null,null,null,null,null,"Holmesdale Building Society"]
[null,null,null,null,null,null,null,null,null,null,null,"Household Mortgage Corporation"]
[null,null,null,null,null,null,null,null,null,null,null,"HSBC Bank"]
[null,null,null,null,null,null,null,null,null,null,null,"Income Bonds"]
[null,null,null,null,null,null,null,null,null,null,null,"Intelligent Finance"]
[null,null,null,null,null,null,null,null,null,null,null,"Investec Bank (Jersey) Ltd"]
[null,null,null,null,null,null,null,null,null,null,null,"Investec Bank (UK)"]
[null,null,null,null,null,null,null,null,null,null,null,"Ipswich Building Society"]
[null,null,null,null,null,null,null,null,null,null,null,"Irish Nationwide (IOM) Ltd"]
[null,null,null,null,null,null,null,null,null,null,null,"Irish Permanent"]
[null,null,null,null,null,null,null,null,null,null,null,"Irish Permanent (IOM) Ltd"]
[null,null,null,null,null,null,null,null,null,null,null,"Isle of Man Bank"]
[null,null,null,null,null,null,null,null,null,null,null,"Julian Hodge Bank"]
[null,null,null,null,null,null,null,null,null,null,null,"Jyske Bank"]
[null,null,null,null,null,null,null,null,null,null,null,"Kent Reliance Building Society"]
[null,null,null,null,null,null,null,null,null,null,null,"Lambeth Building Society"]
[null,null,null,null,null,null,null,null,null,null,null,"Leeds & Holbeck Building Society"]
[null,null,null,null,null,null,null,null,null,null,null,"Leek United Building Society"]
[null,null,null,null,null,null,null,null,null,null,null,"Legal & General Bank"]
[null,null,null,null,null,null,null,null,null,null,null,"Leopold Joseph"]
[null,null,null,null,null,null,null,null,null,null,null,"Leopold Joseph (Guernsey) Ltd"]
[null,null,null,null,null,null,null,null,null,null,null,"Lloyds Bank"]
[null,null,null,null,null,null,null,null,null,null,null,"Lloyds TSB Bank"]
[null,null,null,null,null,null,null,null,null,null,null,"Lombard Banking (Jersey) Ltd"]
[null,null,null,null,null,null,null,null,null,null,null,"Lombard North Central"]
[null,null,null,null,null,null,null,null,null,null,null,"Londonderry Prov. Building Society"]
[null,null,null,null,null,null,null,null,null,null,null,"Loughborough Building Society"]
[null,null,null,null,null,null,null,null,null,null,null,"MBNA International"]
[null,null,null,null,null,null,null,null,null,null,null,"Manchester Building Society"]
[null,null,null,null,null,null,null,null,null,null,null,"Mansfield Building Society"]
[null,null,null,null,null,null,null,null,null,null,null,"Market Harborough Building Society"]
[null,null,null,null,null,null,null,null,null,null,null,"Marsden Building Society"]
[null,null,null,null,null,null,null,null,null,null,null,"Melton Mowbray Building Society"]
[null,null,null,null,null,null,null,null,null,null,null,"Mercantile Building Society"]
[null,null,null,null,null,null,null,null,null,null,null,"Midland Bank"]
[null,null,null,null,null,null,null,null,null,null,null,"Midland Bank Offshore Ltd"]
[null,null,null,null,null,null,null,null,null,null,null,"Monmouthshire Building Society"]
[null,null,null,null,null,null,null,null,null,null,null,"Mortgage Express"]
[null,null,null,null,null,null,null,null,null,null,null,"Mortgage Trust"]
[null,null,null,null,null,null,null,null,null,null,null,"NSB Investment Account"]
[null,null,null,null,null,null,null,null,null,null,null,"NSB Ordinary Account"]
[null,null,null,null,null,null,null,null,null,null,null,"National Counties Building Society"]
[null,null,null,null,null,null,null,null,null,null,null,"National Westminster Bank"]
[null,null,null,null,null,null,null,null,null,null,null,"National Westminster Mortgage Services"]
[null,null,null,null,null,null,null,null,null,null,null,"Nationwide Building Society"]
[null,null,null,null,null,null,null,null,null,null,null,"Nationwide Direct"]
[null,null,null,null,null,null,null,null,null,null,null,"Nationwide International Ltd"]
[null,null,null,null,null,null,null,null,null,null,null,"Newbury Building Society"]
[null,null,null,null,null,null,null,null,null,null,null,"Newcastle Bank (Gibraltar) Ltd"]
[null,null,null,null,null,null,null,null,null,null,null,"Newcastle Building Society"]
[null,null,null,null,null,null,null,null,null,null,null,"Newcastle Direct"]
[null,null,null,null,null,null,null,null,null,null,null,"Northern Bank"]
[null,null,null,null,null,null,null,null,null,null,null,"Northern Offshore Banking & Financial Services"]
[null,null,null,null,null,null,null,null,null,null,null,"Northern Rock"]
[null,null,null,null,null,null,null,null,null,null,null,"Northern Rock (Guernsey) Ltd"]
[null,null,null,null,null,null,null,null,null,null,null,"Northern Rock Direct"]
[null,null,null,null,null,null,null,null,null,null,null,"Norwich & Peterborough Building Society"]
[null,null,null,null,null,null,null,null,null,null,null,"Nottingham Building Society"]
[null,null,null,null,null,null,null,null,null,null,null,"Nottingham Imperial Building Society"]
[null,null,null,null,null,null,null,null,null,null,null,"Paragon Mortgages"]
[null,null,null,null,null,null,null,null,null,null,null,"Pensioners Guaranteed Income Bonds"]
[null,null,null,null,null,null,null,null,null,null,null,"Portman Building Society"]
[null,null,null,null,null,null,null,null,null,null,null,"Portman Channel Islands Ltd"]
[null,null,null,null,null,null,null,null,null,null,null,"Principality Building Society"]
[null,null,null,null,null,null,null,null,null,null,null,"Progressive Building Society"]
[null,null,null,null,null,null,null,null,null,null,null,"Prudential Banking"]
[null,null,null,null,null,null,null,null,null,null,null,"Robert Fleming (IOM) Ltd"]
[null,null,null,null,null,null,null,null,null,null,null,"Royal Bank of Canada (IOM) Ltd"]
[null,null,null,null,null,null,null,null,null,null,null,"Royal Bank of Canada (Jersey) Ltd"]
[null,null,null,null,null,null,null,null,null,null,null,"Royal Bank of Scotland"]
[null,null,null,null,null,null,null,null,null,null,null,"Royal Bank of Scotland International Ltd"]
[null,null,null,null,null,null,null,null,null,null,null,"Saffron Walden Building Society"]
[null,null,null,null,null,null,null,null,null,null,null,"Sainsbury's Bank"]
[null,null,null,null,null,null,null,null,null,null,null,"Scarborough Building Society"]
[null,null,null,null,null,null,null,null,null,null,null,"Schroders (CI) Ltd"]
[null,null,null,null,null,null,null,null,null,null,null,"Scottish Building Society"]
[null,null,null,null,null,null,null,null,null,null,null,"Scottish Widows Bank"]
[null,null,null,null,null,null,null,null,null,null,null,"Shepshed Building Society"]
[null,null,null,null,null,null,null,null,null,null,null,"Singer & Friedlander (IOM) Ltd"]
[null,null,null,null,null,null,null,null,null,null,null,"Skipton Building Society"]
[null,null,null,null,null,null,null,null,null,null,null,"Skipton Guernsey Ltd"]
[null,null,null,null,null,null,null,null,null,null,null,"Stafford Railway Building Society"]
[null,null,null,null,null,null,null,null,null,null,null,"Staffordshire Building Society"]
[null,null,null,null,null,null,null,null,null,null,null,"Standard Bank IOM"]
[null,null,null,null,null,null,null,null,null,null,null,"Standard Bank Jersey"]
[null,null,null,null,null,null,null,null,null,null,null,"Standard Chartered Bank"]
[null,null,null,null,null,null,null,null,null,null,null,"Stroud & Swindon Building Society"]
[null,null,null,null,null,null,null,null,null,null,null,"Sun Banking Corp"]
[null,null,null,null,null,null,null,null,null,null,null,"Sun Banking Corp (Jersey) Ltd"]
[null,null,null,null,null,null,null,null,null,null,null,"Sun Banking Corporation"]
[null,null,null,null,null,null,null,null,null,null,null,"TSB"]
[null,null,null,null,null,null,null,null,null,null,null,"TSB Bank Channel Islands Ltd"]
[null,null,null,null,null,null,null,null,null,null,null,"Teachers Building Society"]
[null,null,null,null,null,null,null,null,null,null,null,"The Mortgage Business"]
[null,null,null,null,null,null,null,null,null,null,null,"Tipton & Coseley Building Society"]
[null,null,null,null,null,null,null,null,null,null,null,"UCB Home Loans Corporation"]
[null,null,null,null,null,null,null,null,null,null,null,"Ulster Bank"]
[null,null,null,null,null,null,null,null,null,null,null,"Ulster Bank (IOM) Ltd"]
[null,null,null,null,null,null,null,null,null,null,null,"Universal Building Society"]
[null,null,null,null,null,null,null,null,null,null,null,"Vernon Building Society"]
[null,null,null,null,null,null,null,null,null,null,null,"Wesleyan Home Loans"]
[null,null,null,null,null,null,null,null,null,null,null,"West Bromwich Building Society"]
[null,null,null,null,null,null,null,null,null,null,null,"Woolwich"]
[null,null,null,null,null,null,null,null,null,null,null,"Woolwich Direct"]
[null,null,null,null,null,null,null,null,null,null,null,"Woolwich Guernsey Ltd"]
[null,null,null,null,null,null,null,null,null,null,null,"Yorkshire Bank"]
[null,null,null,null,null,null,null,null,null,null,null,"Yorkshire Building Society"]
[null,null,null,null,null,null,null,null,null,null,null,"Yorkshire Guernsey Ltd"]

{"sheet":"othprop","index":9,"n_rows":207,"n_cols":12,"rows_kept":207,"cut":false,"hidden":false,"merged":[[4,0,4,3],[5,0,5,3],[6,0,6,3],[7,0,7,3],[8,0,8,3],[9,0,9,3],[10,0,10,3],[11,0,11,3],[12,0,12,3],[13,0,13,3],[14,0,14,3],[15,0,15,3],[16,0,16,3],[17,0,17,3],[18,0,18,3],[19,0,19,3],[20,0,20,3],[21,0,21,3],[22,0,22,3],[23,0,23,3],[24,0,24,3],[25,0,25,3],[26,0,26,3],[27,0,27,3],[28,0,28,3],[29,0,29,3],[30,0,30,3],[31,0,31,3],[32,0,32,3],[33,0,33,3],[34,0,34,3],[35,0,35,3],[36,0,36,3],[37,0,37,3],[38,0,38,3],[39,0,39,3],[40,0,40,3],[41,0,41,3],[42,0,42,3],[43,0,43,3],[44,0,44,3],[45,0,45,3],[46,0,46,3],[47,0,47,3],[48,0,48,3],[49,0,49,3],[50,0,50,3],[51,0,51,3],[52,0,52,3],[53,0,53,3],[54,0,54,3],[55,0,55,3],[56,0,56,3],[57,0,57,3],[58,0,58,3],[59,0,59,3],[60,0,60,3],[61,0,61,3],[62,0,62,3],[63,0,63,3],[64,0,64,3],[65,0,65,3],[66,0,66,3],[67,0,67,3],[68,0,68,3],[69,0,69,3],[70,0,70,3],[71,0,71,3],[72,0,72,3],[73,0,73,3],[74,0,74,3],[75,0,75,3],[76,0,76,3],[77,0,77,3],[78,0,78,3],[79,0,79,3],[80,0,80,3],[81,0,81,3],[82,0,82,3],[83,0,83,3],[84,0,84,3],[85,0,85,3],[86,0,86,3],[87,0,87,3],[88,0,88,3],[89,0,89,3],[90,0,90,3],[91,0,91,3],[92,0,92,3],[93,0,93,3],[94,0,94,3],[95,0,95,3],[96,0,96,3],[97,0,97,3],[98,0,98,3],[99,0,99,3],[100,0,100,3],[101,0,101,3],[102,0,102,3],[103,0,103,3],[104,0,104,3],[105,0,105,3],[106,0,106,3],[107,0,107,3],[108,0,108,3],[109,0,109,3],[110,0,110,3],[111,0,111,3],[112,0,112,3],[113,0,113,3],[114,0,114,3],[115,0,115,3],[116,0,116,3],[117,0,117,3],[118,0,118,3],[119,0,119,3],[120,0,120,3],[121,0,121,3],[122,0,122,3],[123,0,123,3],[124,0,124,3],[125,0,125,3],[126,0,126,3],[127,0,127,3],[128,0,128,3],[129,0,129,3],[130,0,130,3],[131,0,131,3],[132,0,132,3],[133,0,133,3],[134,0,134,3],[135,0,135,3],[136,0,136,3],[137,0,137,3],[138,0,138,3],[139,0,139,3],[140,0,140,3],[141,0,141,3],[142,0,142,3],[143,0,143,3],[144,0,144,3],[145,0,145,3],[146,0,146,3],[147,0,147,3],[148,0,148,3],[149,0,149,3],[150,0,150,3],[151,0,151,3],[152,0,152,3],[153,0,153,3],[154,0,154,3],[155,0,155,3],[156,0,156,3],[157,0,157,3],[158,0,158,3],[159,0,159,3],[164,0,164,3],[165,0,165,3],[160,0,160,3],[161,0,161,3],[162,0,162,3],[163,0,163,3]]}
["OTHER PROPERTY"]
["Total Carried to Summary sheet",null,null,null,{"$f":"SUM(E3:E100)","v":0},{"$f":"SUM(F3:F100)","v":0},{"$f":"SUM(G3:G100)","v":0},"Return to main page"]
[]
[null,null,null,null,"Self","Spouse","Joint"]
["LIST ASSETS BELOW",null,null,null," "]
[" ",null,null,null,0,0,0,null,null,null,null,"Abbey National"]
[null,null,null,null,0,0,0,null,null,null,null,"Abbey National Direct"]
[null,null,null,null,0,null,null,null,null,null,null,"Abbey National Treasury International Ltd"]
[null,null,null,null,null,null,null,null,null,null,null,"Alliance & Leicester"]
[null,null,null,null,null,null,null,null,null,null,null,"Alliance & Leicester Giro"]
[null,null,null,null,null,null,null,null,null,null,null,"Alliance & Leicester International Ltd"]
[null,null,null,null,null,null,null,null,null,null,null,"Allied Dunbar Bank International Ltd"]
[null,null,null,null,null,null,null,null,null,null,null,"Allied Irish Bank (GB)"]
[null,null,null,null,null,null,null,null,null,null,null,"Ansbacher (Jersey) Ltd"]
[null,null,null,null,null,null,null,null,null,null,null,"Bank of Cyprus (London) Ltd"]
[null,null,null,null,null,null,null,null,null,null,null,"Bank of Ireland (GB)"]
[null,null,null,null,null,null,null,null,null,null,null,"Bank of Ireland (NI)"]
[null,null,null,null,null,null,null,null,null,null,null,"Bank of Ireland Mortgages"]
[null,null,null,null,null,null,null,null,null,null,null,"Bank of Scotland"]
[null,null,null,null,null,null,null,null,null,null,null,"Bank of Scotland (IOM) Ltd"]
[null,null,null,null,null,null,null,null,null,null,null,"Bank of Scotland Centrebank"]
[null,null,null,null,null,null,null,null,null,null,null,"Bank of Scotland Mortgages Direct"]
[null,null,null,null,null,null,null,null,null,null,null,"Bank of Wales"]
[null,null,null,null,null,null,null,null,null,null,null,"Bank of Wales (Jersey) Ltd"]
[null,null,null,null,null,null,null,null,null,null,null,"Barclays Bank"]
[null,null,null,null,null,null,null,null,null,null,null,"Barnsley Building Society"]
[null,null,null,null,null,null,null,null,null,null,null,"Bath Building Society"]
[null,null,null,null,null,null,null,null,null,null,null,"Beneficial Bank"]
[null,null,null,null,null,null,null,null,null,null,null,"Beverly Building Society"]
[null,null,null,null,null,null,null,null,null,null,null,"Birmingham Midshires (Guernsey) Ltd"]
[null,null,null,null,null,null,null,null,null,null,null,"Birmingham Midshires Building Society"]
[null,null,null,null,null,null,null,null,null,null,null,"Birmingham Midshires MSL"]
[null,null,null,null,null,null,null,null,null,null,null,"Bradford & Bingley (IOM) Ltd"]
[null,null,null,null,null,null,null,null,null,null,null,"Bradford & Bingley Building Society"]
[null,null,null,null,null,null,null,null,null,null,null,"Bradford & Bingley MTGS Direct"]
[null,null,null,null,null,null,null,null,null,null,null,"Bristol & West"]
[null,null,null,null,null,null,null,null,null,null,null,"Bristol & West / Direct Mortgages"]
[null,null,null,null,null,null,null,null,null,null,null,"Bristol & West IMC"]
[null,null,null,null,null,null,null,null,null,null,null,"Bristol & West International Ltd"]
[null,null,null,null,null,null,null,null,null,null,null,"Britannia Building Society"]
[null,null,null,null,null,null,null,null,null,null,null,"Britannia International Ltd"]
[null,null,null,null,null,null,null,null,null,null,null,"Britannia Mortgage Direct"]
[null,null,null,null,null,null,null,null,null,null,null,"Buckinghamshire Building Society"]
[null,null,null,null,null,null,null,null,null,null,null,"C & G Channel Islands Ltd"]
[null,null,null,null,null,null,null,null,null,null,null,"C & G Mortgage Direct"]
[null,null,null,null,null,null,null,null,null,null,null,"Cambridge Building Society"]
[null,null,null,null,null,null,null,null,null,null,null,"Capital Bonds"]
[null,null,null,null,null,null,null,null,null,null,null,"Capital Home Loans"]
[null,null,null,null,null,null,null,null,null,null,null,"Capital Wise"]
[null,null,null,null,null,null,null,null,null,null,null,"Cater Allen Bank"]
[null,null,null,null,null,null,null,null,null,null,null,"Cater Allen Bank (IOM) Ltd"]
[null,null,null,null,null,null,null,null,null,null,null,"Cater Allen Bank (Jersey) Ltd"]
[null,null,null,null,null,null,null,null,null,null,null,"Chelsea Building Society"]
[null,null,null,null,null,null,null,null,null,null,null,"Cheltenham & Gloucester"]
[null,null,null,null,null,null,null,null,null,null,null,"Chesham Building Society"]
[null,null,null,null,null,null,null,null,null,null,null,"Cheshire Building Society"]
[null,null,null,null,null,null,null,null,null,null,null,"Cheshire Guernsey Ltd"]
[null,null,null,null,null,null,null,null,null,null,null,"Chorley & District Building Society"]
[null,null,null,null,null,null,null,null,null,null,null,"Citibank"]
[null,null,null,null,null,null,null,null,null,null,null,"Close Brothers"]
[null,null,null,null,null,null,null,null,null,null,null,"Clydesdale Bank"]
[null,null,null,null,null,null,null,null,null,null,null,"Co-operative Bank"]
[null,null,null,null,null,null,null,null,null,null,null,"Coutts & Co"]
[null,null,null,null,null,null,null,null,null,null,null,"Coventry Building Society"]
[null,null,null,null,null,null,null,null,null,null,null,"Cumberland Building Society"]
[null,null,null,null,null,null,null,null,null,null,null,"Darlington Building Society"]
[null,null,null,null,null,null,null,null,null,null,null,"Deposit Bonds"]
[null,null,null,null,null,null,null,null,null,null,null,"Derbyshire (IOM) Ltd"]
[null,null,null,null,null,null,null,null,null,null,null,"Derbyshire Building Society"]
[null,null,null,null,null,null,null,null,null,null,null,"Derbyshire Direct"]
[null,null,null,null,null,null,null,null,null,null,null,"Direct Line"]
[null,null,null,null,null,null,null,null,null,null,null,"Dudley Building Society"]
[null,null,null,null,null,null,null,null,null,null,null,"Dunfermline Building Society"]
[null,null,null,null,null,null,null,null,null,null,null,"EBS Bank (IOM) Ltd"]
[null,null,null,null,null,null,null,null,null,null,null,"Earl Shilton Building Society"]
[null,null,null,null,null,null,null,null,null,null,null,"Ecology Building Society"]
[null,null,null,null,null,null,null,null,null,null,null,"First Direct"]
[null,null,null,null,null,null,null,null,null,null,null,"First Mortgage"]
[null,null,null,null,null,null,null,null,null,null,null,"First National Building Society"]
[null,null,null,null,null,null,null,null,null,null,null,"First National Building Society Guernsey Ltd"]
[null,null,null,null,null,null,null,null,null,null,null,"First Option Bonds"]
[null,null,null,null,null,null,null,null,null,null,null,"First Trust Bank (NI)"]
[null,null,null,null,null,null,null,null,null,null,null,"Friends Provident"]
[null,null,null,null,null,null,null,null,null,null,null,"Frizzell Bank"]
[null,null,null,null,null,null,null,null,null,null,null,"Furness Building Society"]
[null,null,null,null,null,null,null,null,null,null,null,"Furness Direct"]
[null,null,null,null,null,null,null,null,null,null,null,"Guinness Mahon Guernsey Ltd"]
[null,null,null,null,null,null,null,null,null,null,null,"HFC Bank"]
[null,null,null,null,null,null,null,null,null,null,null,"Halifax"]
[null,null,null,null,null,null,null,null,null,null,null,"Halifax International (IOM) Ltd"]
[null,null,null,null,null,null,null,null,null,null,null,"Halifax International (Jersey) Ltd"]
[null,null,null,null,null,null,null,null,null,null,null,"Halifax MSL"]
[null,null,null,null,null,null,null,null,null,null,null,"Hambros Bank (Jersey) Ltd"]
[null,null,null,null,null,null,null,null,null,null,null,"Hanley Economic Building Society"]
[null,null,null,null,null,null,null,null,null,null,null,"Hanson Bank Ltd"]
[null,null,null,null,null,null,null,null,null,null,null,"Harpenden Building Society"]
[null,null,null,null,null,null,null,null,null,null,null,"HBOS"]
[null,null,null,null,null,null,null,null,null,null,null,"Hinckley & Rugby Building Society"]
[null,null,null,null,null,null,null,null,null,null,null,"Hoare & Co"]
[null,null,null,null,null,null,null,null,null,null,null,"Holmesdale Building Society"]
[null,null,null,null,null,null,null,null,null,null,null,"Household Mortgage Corporation"]
[null,null,null,null,null,null,null,null,null,null,null,"HSBC Bank"]
[null,null,null,null,null,null,null,null,null,null,null,"Income Bonds"]
[null,null,null,null,null,null,null,null,null,null,null,"Intelligent Finance"]
[null,null,null,null,null,null,null,null,null,null,null,"Investec Bank (Jersey) Ltd"]
[null,null,null,null,null,null,null,null,null,null,null,"Investec Bank (UK)"]
[null,null,null,null,null,null,null,null,null,null,null,"Ipswich Building Society"]
[null,null,null,null,null,null,null,null,null,null,null,"Irish Nationwide (IOM) Ltd"]
[null,null,null,null,null,null,null,null,null,null,null,"Irish Permanent"]
[null,null,null,null,null,null,null,null,null,null,null,"Irish Permanent (IOM) Ltd"]
[null,null,null,null,null,null,null,null,null,null,null,"Isle of Man Bank"]
[null,null,null,null,null,null,null,null,null,null,null,"Julian Hodge Bank"]
[null,null,null,null,null,null,null,null,null,null,null,"Jyske Bank"]
[null,null,null,null,null,null,null,null,null,null,null,"Kent Reliance Building Society"]
[null,null,null,null,null,null,null,null,null,null,null,"Lambeth Building Society"]
[null,null,null,null,null,null,null,null,null,null,null,"Leeds & Holbeck Building Society"]
[null,null,null,null,null,null,null,null,null,null,null,"Leek United Building Society"]
[null,null,null,null,null,null,null,null,null,null,null,"Legal & General Bank"]
[null,null,null,null,null,null,null,null,null,null,null,"Leopold Joseph"]
[null,null,null,null,null,null,null,null,null,null,null,"Leopold Joseph (Guernsey) Ltd"]
[null,null,null,null,null,null,null,null,null,null,null,"Lloyds Bank"]
[null,null,null,null,null,null,null,null,null,null,null,"Lloyds TSB Bank"]
[null,null,null,null,null,null,null,null,null,null,null,"Lombard Banking (Jersey) Ltd"]
[null,null,null,null,null,null,null,null,null,null,null,"Lombard North Central"]
[null,null,null,null,null,null,null,null,null,null,null,"Londonderry Prov. Building Society"]
[null,null,null,null,null,null,null,null,null,null,null,"Loughborough Building Society"]
[null,null,null,null,null,null,null,null,null,null,null,"MBNA International"]
[null,null,null,null,null,null,null,null,null,null,null,"Manchester Building Society"]
[null,null,null,null,null,null,null,null,null,null,null,"Mansfield Building Society"]
[null,null,null,null,null,null,null,null,null,null,null,"Market Harborough Building Society"]
[null,null,null,null,null,null,null,null,null,null,null,"Marsden Building Society"]
[null,null,null,null,null,null,null,null,null,null,null,"Melton Mowbray Building Society"]
[null,null,null,null,null,null,null,null,null,null,null,"Mercantile Building Society"]
[null,null,null,null,null,null,null,null,null,null,null,"Midland Bank"]
[null,null,null,null,null,null,null,null,null,null,null,"Midland Bank Offshore Ltd"]
[null,null,null,null,null,null,null,null,null,null,null,"Monmouthshire Building Society"]
[null,null,null,null,null,null,null,null,null,null,null,"Mortgage Express"]
[null,null,null,null,null,null,null,null,null,null,null,"Mortgage Trust"]
[null,null,null,null,null,null,null,null,null,null,null,"NSB Investment Account"]
[null,null,null,null,null,null,null,null,null,null,null,"NSB Ordinary Account"]
[null,null,null,null,null,null,null,null,null,null,null,"National Counties Building Society"]
[null,null,null,null,null,null,null,null,null,null,null,"National Westminster Bank"]
[null,null,null,null,null,null,null,null,null,null,null,"National Westminster Mortgage Services"]
[null,null,null,null,null,null,null,null,null,null,null,"Nationwide Building Society"]
[null,null,null,null,null,null,null,null,null,null,null,"Nationwide Direct"]
[null,null,null,null,null,null,null,null,null,null,null,"Nationwide International Ltd"]
[null,null,null,null,null,null,null,null,null,null,null,"Newbury Building Society"]
[null,null,null,null,null,null,null,null,null,null,null,"Newcastle Bank (Gibraltar) Ltd"]
[null,null,null,null,null,null,null,null,null,null,null,"Newcastle Building Society"]
[null,null,null,null,null,null,null,null,null,null,null,"Newcastle Direct"]
[null,null,null,null,null,null,null,null,null,null,null,"Northern Bank"]
[null,null,null,null,null,null,null,null,null,null,null,"Northern Offshore Banking & Financial Services"]
[null,null,null,null,null,null,null,null,null,null,null,"Northern Rock"]
[null,null,null,null,null,null,null,null,null,null,null,"Northern Rock (Guernsey) Ltd"]
[null,null,null,null,null,null,null,null,null,null,null,"Northern Rock Direct"]
[null,null,null,null,null,null,null,null,null,null,null,"Norwich & Peterborough Building Society"]
[null,null,null,null,null,null,null,null,null,null,null,"Nottingham Building Society"]
[null,null,null,null,null,null,null,null,null,null,null,"Nottingham Imperial Building Society"]
[null,null,null,null,null,null,null,null,null,null,null,"Paragon Mortgages"]
[null,null,null,null,null,null,null,null,null,null,null,"Pensioners Guaranteed Income Bonds"]
[null,null,null,null,null,null,null,null,null,null,null,"Portman Building Society"]
[null,null,null,null,null,null,null,null,null,null,null,"Portman Channel Islands Ltd"]
[null,null,null,null,null,null,null,null,null,null,null,"Principality Building Society"]
[null,null,null,null,null,null,null,null,null,null,null,"Progressive Building Society"]
[null,null,null,null,null,null,null,null,null,null,null,"Prudential Banking"]
[null,null,null,null,null,null,null,null,null,null,null,"Robert Fleming (IOM) Ltd"]
[null,null,null,null,null,null,null,null,null,null,null,"Royal Bank of Canada (IOM) Ltd"]
[null,null,null,null,null,null,null,null,null,null,null,"Royal Bank of Canada (Jersey) Ltd"]
[null,null,null,null,null,null,null,null,null,null,null,"Royal Bank of Scotland"]
[null,null,null,null,null,null,null,null,null,null,null,"Royal Bank of Scotland International Ltd"]
[null,null,null,null,null,null,null,null,null,null,null,"Saffron Walden Building Society"]
[null,null,null,null,null,null,null,null,null,null,null,"Sainsbury's Bank"]
[null,null,null,null,null,null,null,null,null,null,null,"Scarborough Building Society"]
[null,null,null,null,null,null,null,null,null,null,null,"Schroders (CI) Ltd"]
[null,null,null,null,null,null,null,null,null,null,null,"Scottish Building Society"]
[null,null,null,null,null,null,null,null,null,null,null,"Scottish Widows Bank"]
[null,null,null,null,null,null,null,null,null,null,null,"Shepshed Building Society"]
[null,null,null,null,null,null,null,null,null,null,null,"Singer & Friedlander (IOM) Ltd"]
[null,null,null,null,null,null,null,null,null,null,null,"Skipton Building Society"]
[null,null,null,null,null,null,null,null,null,null,null,"Skipton Guernsey Ltd"]
[null,null,null,null,null,null,null,null,null,null,null,"Stafford Railway Building Society"]
[null,null,null,null,null,null,null,null,null,null,null,"Staffordshire Building Society"]
[null,null,null,null,null,null,null,null,null,null,null,"Standard Bank IOM"]
[null,null,null,null,null,null,null,null,null,null,null,"Standard Bank Jersey"]
[null,null,null,null,null,null,null,null,null,null,null,"Standard Chartered Bank"]
[null,null,null,null,null,null,null,null,null,null,null,"Stroud & Swindon Building Society"]
[null,null,null,null,null,null,null,null,null,null,null,"Sun Banking Corp"]
[null,null,null,null,null,null,null,null,null,null,null,"Sun Banking Corp (Jersey) Ltd"]
[null,null,null,null,null,null,null,null,null,null,null,"Sun Banking Corporation"]
[null,null,null,null,null,null,null,null,null,null,null,"TSB"]
[null,null,null,null,null,null,null,null,null,null,null,"TSB Bank Channel Islands Ltd"]
[null,null,null,null,null,null,null,null,null,null,null,"Teachers Building Society"]
[null,null,null,null,null,null,null,null,null,null,null,"The Mortgage Business"]
[null,null,null,null,null,null,null,null,null,null,null,"Tipton & Coseley Building Society"]
[null,null,null,null,null,null,null,null,null,null,null,"UCB Home Loans Corporation"]
[null,null,null,null,null,null,null,null,null,null,null,"Ulster Bank"]
[null,null,null,null,null,null,null,null,null,null,null,"Ulster Bank (IOM) Ltd"]
[null,null,null,null,null,null,null,null,null,null,null,"Universal Building Society"]
[null,null,null,null,null,null,null,null,null,null,null,"Vernon Building Society"]
[null,null,null,null,null,null,null,null,null,null,null,"Wesleyan Home Loans"]
[null,null,null,null,null,null,null,null,null,null,null,"West Bromwich Building Society"]
[null,null,null,null,null,null,null,null,null,null,null,"Woolwich"]
[null,null,null,null,null,null,null,null,null,null,null,"Woolwich Direct"]
[null,null,null,null,null,null,null,null,null,null,null,"Woolwich Guernsey Ltd"]
[null,null,null,null,null,null,null,null,null,null,null,"Yorkshire Bank"]
[null,null,null,null,null,null,null,null,null,null,null,"Yorkshire Building Society"]
[null,null,null,null,null,null,null,null,null,null,null,"Yorkshire Guernsey Ltd"]

{"sheet":"futinherit","index":10,"n_rows":207,"n_cols":12,"rows_kept":207,"cut":false,"hidden":false,"merged":[[164,0,164,3],[165,0,165,3],[160,0,160,3],[161,0,161,3],[162,0,162,3],[163,0,163,3],[156,0,156,3],[157,0,157,3],[158,0,158,3],[159,0,159,3],[152,0,152,3],[153,0,153,3],[154,0,154,3],[155,0,155,3],[148,0,148,3],[149,0,149,3],[150,0,150,3],[151,0,151,3],[144,0,144,3],[145,0,145,3],[146,0,146,3],[147,0,147,3],[140,0,140,3],[141,0,141,3],[142,0,142,3],[143,0,143,3],[136,0,136,3],[137,0,137,3],[138,0,138,3],[139,0,139,3],[132,0,132,3],[133,0,133,3],[134,0,134,3],[135,0,135,3],[128,0,128,3],[129,0,129,3],[130,0,130,3],[131,0,131,3],[124,0,124,3],[125,0,125,3],[126,0,126,3],[127,0,127,3],[120,0,120,3],[121,0,121,3],[122,0,122,3],[123,0,123,3],[116,0,116,3],[117,0,117,3],[118,0,118,3],[119,0,119,3],[112,0,112,3],[113,0,113,3],[114,0,114,3],[115,0,115,3],[108,0,108,3],[109,0,109,3],[110,0,110,3],[111,0,111,3],[104,0,104,3],[105,0,105,3],[106,0,106,3],[107,0,107,3],[100,0,100,3],[101,0,101,3],[102,0,102,3],[103,0,103,3],[96,0,96,3],[97,0,97,3],[98,0,98,3],[99,0,99,3],[92,0,92,3],[93,0,93,3],[94,0,94,3],[95,0,95,3],[88,0,88,3],[89,0,89,3],[90,0,90,3],[91,0,91,3],[84,0,84,3],[85,0,85,3],[86,0,86,3],[87,0,87,3],[80,0,80,3],[81,0,81,3],[82,0,82,3],[83,0,83,3],[76,0,76,3],[77,0,77,3],[78,0,78,3],[79,0,79,3],[72,0,72,3],[73,0,73,3],[74,0,74,3],[75,0,75,3],[68,0,68,3],[69,0,69,3],[70,0,70,3],[71,0,71,3],[64,0,64,3],[65,0,65,3],[66,0,66,3],[67,0,67,3],[60,0,60,3],[61,0,61,3],[62,0,62,3],[63,0,63,3],[56,0,56,3],[57,0,57,3],[58,0,58,3],[59,0,59,3],[52,0,52,3],[53,0,53,3],[54,0,54,3],[55,0,55,3],[48,0,48,3],[49,0,49,3],[50,0,50,3],[51,0,51,3],[44,0,44,3],[45,0,45,3],[46,0,46,3],[47,0,47,3],[40,0,40,3],[41,0,41,3],[42,0,42,3],[43,0,43,3],[36,0,36,3],[37,0,37,3],[38,0,38,3],[39,0,39,3],[32,0,32,3],[33,0,33,3],[34,0,34,3],[35,0,35,3],[28,0,28,3],[29,0,29,3],[30,0,30,3],[31,0,31,3],[24,0,24,3],[25,0,25,3],[26,0,26,3],[27,0,27,3],[20,0,20,3],[21,0,21,3],[22,0,22,3],[23,0,23,3],[16,0,16,3],[17,0,17,3],[18,0,18,3],[19,0,19,3],[14,0,14,3],[15,0,15,3],[13,0,13,3],[8,0,8,3],[9,0,9,3],[10,0,10,3],[11,0,11,3],[4,0,4,3],[5,0,5,3],[6,0,6,3],[7,0,7,3],[12,0,12,3]]}
["Future Inheritances"]
["Total Carried to Summary sheet",null,null,null,{"$f":"SUM(E3:E100)","v":0},{"$f":"SUM(F3:F100)","v":0},{"$f":"SUM(G3:G100)","v":0},"Return to main page"]
[]
[null,null,null,null,"Self","Spouse","Joint"]
["LIST ASSETS BELOW",null,null,null," "]
[" ",null,null,null,0,0,0,null,null,null,null,"Abbey National"]
[null,null,null,null,0,0,0,null,null,null,null,"Abbey National Direct"]
[null,null,null,null,0,null,null,null,null,null,null,"Abbey National Treasury International Ltd"]
[null,null,null,null,null,null,null,null,null,null,null,"Alliance & Leicester"]
[null,null,null,null,null,null,null,null,null,null,null,"Alliance & Leicester Giro"]
[null,null,null,null,null,null,null,null,null,null,null,"Alliance & Leicester International Ltd"]
[null,null,null,null,null,null,null,null,null,null,null,"Allied Dunbar Bank International Ltd"]
[null,null,null,null,null,null,null,null,null,null,null,"Allied Irish Bank (GB)"]
[null,null,null,null,null,null,null,null,null,null,null,"Ansbacher (Jersey) Ltd"]
[null,null,null,null,null,null,null,null,null,null,null,"Bank of Cyprus (London) Ltd"]
[null,null,null,null,null,null,null,null,null,null,null,"Bank of Ireland (GB)"]
[null,null,null,null,null,null,null,null,null,null,null,"Bank of Ireland (NI)"]
[null,null,null,null,null,null,null,null,null,null,null,"Bank of Ireland Mortgages"]
[null,null,null,null,null,null,null,null,null,null,null,"Bank of Scotland"]
[null,null,null,null,null,null,null,null,null,null,null,"Bank of Scotland (IOM) Ltd"]
[null,null,null,null,null,null,null,null,null,null,null,"Bank of Scotland Centrebank"]
[null,null,null,null,null,null,null,null,null,null,null,"Bank of Scotland Mortgages Direct"]
[null,null,null,null,null,null,null,null,null,null,null,"Bank of Wales"]
[null,null,null,null,null,null,null,null,null,null,null,"Bank of Wales (Jersey) Ltd"]
[null,null,null,null,null,null,null,null,null,null,null,"Barclays Bank"]
[null,null,null,null,null,null,null,null,null,null,null,"Barnsley Building Society"]
[null,null,null,null,null,null,null,null,null,null,null,"Bath Building Society"]
[null,null,null,null,null,null,null,null,null,null,null,"Beneficial Bank"]
[null,null,null,null,null,null,null,null,null,null,null,"Beverly Building Society"]
[null,null,null,null,null,null,null,null,null,null,null,"Birmingham Midshires (Guernsey) Ltd"]
[null,null,null,null,null,null,null,null,null,null,null,"Birmingham Midshires Building Society"]
[null,null,null,null,null,null,null,null,null,null,null,"Birmingham Midshires MSL"]
[null,null,null,null,null,null,null,null,null,null,null,"Bradford & Bingley (IOM) Ltd"]
[null,null,null,null,null,null,null,null,null,null,null,"Bradford & Bingley Building Society"]
[null,null,null,null,null,null,null,null,null,null,null,"Bradford & Bingley MTGS Direct"]
[null,null,null,null,null,null,null,null,null,null,null,"Bristol & West"]
[null,null,null,null,null,null,null,null,null,null,null,"Bristol & West / Direct Mortgages"]
[null,null,null,null,null,null,null,null,null,null,null,"Bristol & West IMC"]
[null,null,null,null,null,null,null,null,null,null,null,"Bristol & West International Ltd"]
[null,null,null,null,null,null,null,null,null,null,null,"Britannia Building Society"]
[null,null,null,null,null,null,null,null,null,null,null,"Britannia International Ltd"]
[null,null,null,null,null,null,null,null,null,null,null,"Britannia Mortgage Direct"]
[null,null,null,null,null,null,null,null,null,null,null,"Buckinghamshire Building Society"]
[null,null,null,null,null,null,null,null,null,null,null,"C & G Channel Islands Ltd"]
[null,null,null,null,null,null,null,null,null,null,null,"C & G Mortgage Direct"]
[null,null,null,null,null,null,null,null,null,null,null,"Cambridge Building Society"]
[null,null,null,null,null,null,null,null,null,null,null,"Capital Bonds"]
[null,null,null,null,null,null,null,null,null,null,null,"Capital Home Loans"]
[null,null,null,null,null,null,null,null,null,null,null,"Capital Wise"]
[null,null,null,null,null,null,null,null,null,null,null,"Cater Allen Bank"]
[null,null,null,null,null,null,null,null,null,null,null,"Cater Allen Bank (IOM) Ltd"]
[null,null,null,null,null,null,null,null,null,null,null,"Cater Allen Bank (Jersey) Ltd"]
[null,null,null,null,null,null,null,null,null,null,null,"Chelsea Building Society"]
[null,null,null,null,null,null,null,null,null,null,null,"Cheltenham & Gloucester"]
[null,null,null,null,null,null,null,null,null,null,null,"Chesham Building Society"]
[null,null,null,null,null,null,null,null,null,null,null,"Cheshire Building Society"]
[null,null,null,null,null,null,null,null,null,null,null,"Cheshire Guernsey Ltd"]
[null,null,null,null,null,null,null,null,null,null,null,"Chorley & District Building Society"]
[null,null,null,null,null,null,null,null,null,null,null,"Citibank"]
[null,null,null,null,null,null,null,null,null,null,null,"Close Brothers"]
[null,null,null,null,null,null,null,null,null,null,null,"Clydesdale Bank"]
[null,null,null,null,null,null,null,null,null,null,null,"Co-operative Bank"]
[null,null,null,null,null,null,null,null,null,null,null,"Coutts & Co"]
[null,null,null,null,null,null,null,null,null,null,null,"Coventry Building Society"]
[null,null,null,null,null,null,null,null,null,null,null,"Cumberland Building Society"]
[null,null,null,null,null,null,null,null,null,null,null,"Darlington Building Society"]
[null,null,null,null,null,null,null,null,null,null,null,"Deposit Bonds"]
[null,null,null,null,null,null,null,null,null,null,null,"Derbyshire (IOM) Ltd"]
[null,null,null,null,null,null,null,null,null,null,null,"Derbyshire Building Society"]
[null,null,null,null,null,null,null,null,null,null,null,"Derbyshire Direct"]
[null,null,null,null,null,null,null,null,null,null,null,"Direct Line"]
[null,null,null,null,null,null,null,null,null,null,null,"Dudley Building Society"]
[null,null,null,null,null,null,null,null,null,null,null,"Dunfermline Building Society"]
[null,null,null,null,null,null,null,null,null,null,null,"EBS Bank (IOM) Ltd"]
[null,null,null,null,null,null,null,null,null,null,null,"Earl Shilton Building Society"]
[null,null,null,null,null,null,null,null,null,null,null,"Ecology Building Society"]
[null,null,null,null,null,null,null,null,null,null,null,"First Direct"]
[null,null,null,null,null,null,null,null,null,null,null,"First Mortgage"]
[null,null,null,null,null,null,null,null,null,null,null,"First National Building Society"]
[null,null,null,null,null,null,null,null,null,null,null,"First National Building Society Guernsey Ltd"]
[null,null,null,null,null,null,null,null,null,null,null,"First Option Bonds"]
[null,null,null,null,null,null,null,null,null,null,null,"First Trust Bank (NI)"]
[null,null,null,null,null,null,null,null,null,null,null,"Friends Provident"]
[null,null,null,null,null,null,null,null,null,null,null,"Frizzell Bank"]
[null,null,null,null,null,null,null,null,null,null,null,"Furness Building Society"]
[null,null,null,null,null,null,null,null,null,null,null,"Furness Direct"]
[null,null,null,null,null,null,null,null,null,null,null,"Guinness Mahon Guernsey Ltd"]
[null,null,null,null,null,null,null,null,null,null,null,"HFC Bank"]
[null,null,null,null,null,null,null,null,null,null,null,"Halifax"]
[null,null,null,null,null,null,null,null,null,null,null,"Halifax International (IOM) Ltd"]
[null,null,null,null,null,null,null,null,null,null,null,"Halifax International (Jersey) Ltd"]
[null,null,null,null,null,null,null,null,null,null,null,"Halifax MSL"]
[null,null,null,null,null,null,null,null,null,null,null,"Hambros Bank (Jersey) Ltd"]
[null,null,null,null,null,null,null,null,null,null,null,"Hanley Economic Building Society"]
[null,null,null,null,null,null,null,null,null,null,null,"Hanson Bank Ltd"]
[null,null,null,null,null,null,null,null,null,null,null,"Harpenden Building Society"]
[null,null,null,null,null,null,null,null,null,null,null,"HBOS"]
[null,null,null,null,null,null,null,null,null,null,null,"Hinckley & Rugby Building Society"]
[null,null,null,null,null,null,null,null,null,null,null,"Hoare & Co"]
[null,null,null,null,null,null,null,null,null,null,null,"Holmesdale Building Society"]
[null,null,null,null,null,null,null,null,null,null,null,"Household Mortgage Corporation"]
[null,null,null,null,null,null,null,null,null,null,null,"HSBC Bank"]
[null,null,null,null,null,null,null,null,null,null,null,"Income Bonds"]
[null,null,null,null,null,null,null,null,null,null,null,"Intelligent Finance"]
[null,null,null,null,null,null,null,null,null,null,null,"Investec Bank (Jersey) Ltd"]
[null,null,null,null,null,null,null,null,null,null,null,"Investec Bank (UK)"]
[null,null,null,null,null,null,null,null,null,null,null,"Ipswich Building Society"]
[null,null,null,null,null,null,null,null,null,null,null,"Irish Nationwide (IOM) Ltd"]
[null,null,null,null,null,null,null,null,null,null,null,"Irish Permanent"]
[null,null,null,null,null,null,null,null,null,null,null,"Irish Permanent (IOM) Ltd"]
[null,null,null,null,null,null,null,null,null,null,null,"Isle of Man Bank"]
[null,null,null,null,null,null,null,null,null,null,null,"Julian Hodge Bank"]
[null,null,null,null,null,null,null,null,null,null,null,"Jyske Bank"]
[null,null,null,null,null,null,null,null,null,null,null,"Kent Reliance Building Society"]
[null,null,null,null,null,null,null,null,null,null,null,"Lambeth Building Society"]
[null,null,null,null,null,null,null,null,null,null,null,"Leeds & Holbeck Building Society"]
[null,null,null,null,null,null,null,null,null,null,null,"Leek United Building Society"]
[null,null,null,null,null,null,null,null,null,null,null,"Legal & General Bank"]
[null,null,null,null,null,null,null,null,null,null,null,"Leopold Joseph"]
[null,null,null,null,null,null,null,null,null,null,null,"Leopold Joseph (Guernsey) Ltd"]
[null,null,null,null,null,null,null,null,null,null,null,"Lloyds Bank"]
[null,null,null,null,null,null,null,null,null,null,null,"Lloyds TSB Bank"]
[null,null,null,null,null,null,null,null,null,null,null,"Lombard Banking (Jersey) Ltd"]
[null,null,null,null,null,null,null,null,null,null,null,"Lombard North Central"]
[null,null,null,null,null,null,null,null,null,null,null,"Londonderry Prov. Building Society"]
[null,null,null,null,null,null,null,null,null,null,null,"Loughborough Building Society"]
[null,null,null,null,null,null,null,null,null,null,null,"MBNA International"]
[null,null,null,null,null,null,null,null,null,null,null,"Manchester Building Society"]
[null,null,null,null,null,null,null,null,null,null,null,"Mansfield Building Society"]
[null,null,null,null,null,null,null,null,null,null,null,"Market Harborough Building Society"]
[null,null,null,null,null,null,null,null,null,null,null,"Marsden Building Society"]
[null,null,null,null,null,null,null,null,null,null,null,"Melton Mowbray Building Society"]
[null,null,null,null,null,null,null,null,null,null,null,"Mercantile Building Society"]
[null,null,null,null,null,null,null,null,null,null,null,"Midland Bank"]
[null,null,null,null,null,null,null,null,null,null,null,"Midland Bank Offshore Ltd"]
[null,null,null,null,null,null,null,null,null,null,null,"Monmouthshire Building Society"]
[null,null,null,null,null,null,null,null,null,null,null,"Mortgage Express"]
[null,null,null,null,null,null,null,null,null,null,null,"Mortgage Trust"]
[null,null,null,null,null,null,null,null,null,null,null,"NSB Investment Account"]
[null,null,null,null,null,null,null,null,null,null,null,"NSB Ordinary Account"]
[null,null,null,null,null,null,null,null,null,null,null,"National Counties Building Society"]
[null,null,null,null,null,null,null,null,null,null,null,"National Westminster Bank"]
[null,null,null,null,null,null,null,null,null,null,null,"National Westminster Mortgage Services"]
[null,null,null,null,null,null,null,null,null,null,null,"Nationwide Building Society"]
[null,null,null,null,null,null,null,null,null,null,null,"Nationwide Direct"]
[null,null,null,null,null,null,null,null,null,null,null,"Nationwide International Ltd"]
[null,null,null,null,null,null,null,null,null,null,null,"Newbury Building Society"]
[null,null,null,null,null,null,null,null,null,null,null,"Newcastle Bank (Gibraltar) Ltd"]
[null,null,null,null,null,null,null,null,null,null,null,"Newcastle Building Society"]
[null,null,null,null,null,null,null,null,null,null,null,"Newcastle Direct"]
[null,null,null,null,null,null,null,null,null,null,null,"Northern Bank"]
[null,null,null,null,null,null,null,null,null,null,null,"Northern Offshore Banking & Financial Services"]
[null,null,null,null,null,null,null,null,null,null,null,"Northern Rock"]
[null,null,null,null,null,null,null,null,null,null,null,"Northern Rock (Guernsey) Ltd"]
[null,null,null,null,null,null,null,null,null,null,null,"Northern Rock Direct"]
[null,null,null,null,null,null,null,null,null,null,null,"Norwich & Peterborough Building Society"]
[null,null,null,null,null,null,null,null,null,null,null,"Nottingham Building Society"]
[null,null,null,null,null,null,null,null,null,null,null,"Nottingham Imperial Building Society"]
[null,null,null,null,null,null,null,null,null,null,null,"Paragon Mortgages"]
[null,null,null,null,null,null,null,null,null,null,null,"Pensioners Guaranteed Income Bonds"]
[null,null,null,null,null,null,null,null,null,null,null,"Portman Building Society"]
[null,null,null,null,null,null,null,null,null,null,null,"Portman Channel Islands Ltd"]
[null,null,null,null,null,null,null,null,null,null,null,"Principality Building Society"]
[null,null,null,null,null,null,null,null,null,null,null,"Progressive Building Society"]
[null,null,null,null,null,null,null,null,null,null,null,"Prudential Banking"]
[null,null,null,null,null,null,null,null,null,null,null,"Robert Fleming (IOM) Ltd"]
[null,null,null,null,null,null,null,null,null,null,null,"Royal Bank of Canada (IOM) Ltd"]
[null,null,null,null,null,null,null,null,null,null,null,"Royal Bank of Canada (Jersey) Ltd"]
[null,null,null,null,null,null,null,null,null,null,null,"Royal Bank of Scotland"]
[null,null,null,null,null,null,null,null,null,null,null,"Royal Bank of Scotland International Ltd"]
[null,null,null,null,null,null,null,null,null,null,null,"Saffron Walden Building Society"]
[null,null,null,null,null,null,null,null,null,null,null,"Sainsbury's Bank"]
[null,null,null,null,null,null,null,null,null,null,null,"Scarborough Building Society"]
[null,null,null,null,null,null,null,null,null,null,null,"Schroders (CI) Ltd"]
[null,null,null,null,null,null,null,null,null,null,null,"Scottish Building Society"]
[null,null,null,null,null,null,null,null,null,null,null,"Scottish Widows Bank"]
[null,null,null,null,null,null,null,null,null,null,null,"Shepshed Building Society"]
[null,null,null,null,null,null,null,null,null,null,null,"Singer & Friedlander (IOM) Ltd"]
[null,null,null,null,null,null,null,null,null,null,null,"Skipton Building Society"]
[null,null,null,null,null,null,null,null,null,null,null,"Skipton Guernsey Ltd"]
[null,null,null,null,null,null,null,null,null,null,null,"Stafford Railway Building Society"]
[null,null,null,null,null,null,null,null,null,null,null,"Staffordshire Building Society"]
[null,null,null,null,null,null,null,null,null,null,null,"Standard Bank IOM"]
[null,null,null,null,null,null,null,null,null,null,null,"Standard Bank Jersey"]
[null,null,null,null,null,null,null,null,null,null,null,"Standard Chartered Bank"]
[null,null,null,null,null,null,null,null,null,null,null,"Stroud & Swindon Building Society"]
[null,null,null,null,null,null,null,null,null,null,null,"Sun Banking Corp"]
[null,null,null,null,null,null,null,null,null,null,null,"Sun Banking Corp (Jersey) Ltd"]
[null,null,null,null,null,null,null,null,null,null,null,"Sun Banking Corporation"]
[null,null,null,null,null,null,null,null,null,null,null,"TSB"]
[null,null,null,null,null,null,null,null,null,null,null,"TSB Bank Channel Islands Ltd"]
[null,null,null,null,null,null,null,null,null,null,null,"Teachers Building Society"]
[null,null,null,null,null,null,null,null,null,null,null,"The Mortgage Business"]
[null,null,null,null,null,null,null,null,null,null,null,"Tipton & Coseley Building Society"]
[null,null,null,null,null,null,null,null,null,null,null,"UCB Home Loans Corporation"]
[null,null,null,null,null,null,null,null,null,null,null,"Ulster Bank"]
[null,null,null,null,null,null,null,null,null,null,null,"Ulster Bank (IOM) Ltd"]
[null,null,null,null,null,null,null,null,null,null,null,"Universal Building Society"]
[null,null,null,null,null,null,null,null,null,null,null,"Vernon Building Society"]
[null,null,null,null,null,null,null,null,null,null,null,"Wesleyan Home Loans"]
[null,null,null,null,null,null,null,null,null,null,null,"West Bromwich Building Society"]
[null,null,null,null,null,null,null,null,null,null,null,"Woolwich"]
[null,null,null,null,null,null,null,null,null,null,null,"Woolwich Direct"]
[null,null,null,null,null,null,null,null,null,null,null,"Woolwich Guernsey Ltd"]
[null,null,null,null,null,null,null,null,null,null,null,"Yorkshire Bank"]
[null,null,null,null,null,null,null,null,null,null,null,"Yorkshire Building Society"]
[null,null,null,null,null,null,null,null,null,null,null,"Yorkshire Guernsey Ltd"]

{"sheet":"Giftsmade","index":11,"n_rows":207,"n_cols":13,"rows_kept":207,"cut":false,"hidden":false,"merged":[[4,0,4,3],[5,0,5,3],[6,0,6,3],[7,0,7,3],[8,0,8,3],[9,0,9,3],[10,0,10,3],[11,0,11,3],[12,0,12,3],[13,0,13,3],[14,0,14,3],[15,0,15,3],[16,0,16,3],[17,0,17,3],[18,0,18,3],[19,0,19,3],[20,0,20,3],[21,0,21,3],[22,0,22,3],[23,0,23,3],[24,0,24,3],[25,0,25,3],[26,0,26,3],[27,0,27,3],[28,0,28,3],[29,0,29,3],[30,0,30,3],[31,0,31,3],[32,0,32,3],[33,0,33,3],[34,0,34,3],[35,0,35,3],[36,0,36,3],[37,0,37,3],[38,0,38,3],[39,0,39,3],[40,0,40,3],[41,0,41,3],[42,0,42,3],[43,0,43,3],[44,0,44,3],[45,0,45,3],[46,0,46,3],[47,0,47,3],[48,0,48,3],[49,0,49,3],[50,0,50,3],[51,0,51,3],[52,0,52,3],[53,0,53,3],[54,0,54,3],[55,0,55,3],[56,0,56,3],[57,0,57,3],[58,0,58,3],[59,0,59,3],[60,0,60,3],[61,0,61,3],[62,0,62,3],[63,0,63,3],[64,0,64,3],[65,0,65,3],[66,0,66,3],[67,0,67,3],[68,0,68,3],[69,0,69,3],[70,0,70,3],[71,0,71,3],[72,0,72,3],[73,0,73,3],[74,0,74,3],[75,0,75,3],[76,0,76,3],[77,0,77,3],[78,0,78,3],[79,0,79,3],[80,0,80,3],[81,0,81,3],[82,0,82,3],[83,0,83,3],[84,0,84,3],[85,0,85,3],[86,0,86,3],[87,0,87,3],[88,0,88,3],[89,0,89,3],[90,0,90,3],[91,0,91,3],[92,0,92,3],[93,0,93,3],[94,0,94,3],[95,0,95,3],[96,0,96,3],[97,0,97,3],[98,0,98,3],[99,0,99,3],[100,0,100,3],[101,0,101,3],[102,0,102,3],[103,0,103,3],[104,0,104,3],[105,0,105,3],[106,0,106,3],[107,0,107,3],[108,0,108,3],[109,0,109,3],[110,0,110,3],[111,0,111,3],[112,0,112,3],[113,0,113,3],[114,0,114,3],[115,0,115,3],[116,0,116,3],[117,0,117,3],[118,0,118,3],[119,0,119,3],[120,0,120,3],[121,0,121,3],[122,0,122,3],[123,0,123,3],[124,0,124,3],[125,0,125,3],[126,0,126,3],[127,0,127,3],[128,0,128,3],[129,0,129,3],[130,0,130,3],[131,0,131,3],[132,0,132,3],[133,0,133,3],[134,0,134,3],[135,0,135,3],[136,0,136,3],[137,0,137,3],[138,0,138,3],[139,0,139,3],[140,0,140,3],[141,0,141,3],[142,0,142,3],[143,0,143,3],[144,0,144,3],[145,0,145,3],[146,0,146,3],[147,0,147,3],[148,0,148,3],[149,0,149,3],[150,0,150,3],[151,0,151,3],[152,0,152,3],[153,0,153,3],[154,0,154,3],[155,0,155,3],[156,0,156,3],[157,0,157,3],[158,0,158,3],[159,0,159,3],[164,0,164,3],[165,0,165,3],[160,0,160,3],[161,0,161,3],[162,0,162,3],[163,0,163,3]]}
["Gifts Made"]
["Total Carried to Summary sheet",null,null,null,null,{"$f":"SUM(F3:F100)","v":0},{"$f":"SUM(G3:G100)","v":0},{"$f":"SUM(H3:H100)","v":0},"Return to main page"]
[]
[null,null,null,null,"DATE","Self","Spouse","Joint"]
["LIST GIFTS MADE BELOW",null,null,null,null," "]
[" ",null,null,null,null,0,0,0,null,null,null,null,"Abbey National"]
[null,null,null,null,null,0,0,0,null,null,null,null,"Abbey National Direct"]
[null,null,null,null,null,0,null,null,null,null,null,null,"Abbey National Treasury International Ltd"]
[null,null,null,null,null,null,null,null,null,null,null,null,"Alliance & Leicester"]
[null,null,null,null,null,null,null,null,null,null,null,null,"Alliance & Leicester Giro"]
[null,null,null,null,null,null,null,null,null,null,null,null,"Alliance & Leicester International Ltd"]
[null,null,null,null,null,null,null,null,null,null,null,null,"Allied Dunbar Bank International Ltd"]
[null,null,null,null,null,null,null,null,null,null,null,null,"Allied Irish Bank (GB)"]
[null,null,null,null,null,null,null,null,null,null,null,null,"Ansbacher (Jersey) Ltd"]
[null,null,null,null,null,null,null,null,null,null,null,null,"Bank of Cyprus (London) Ltd"]
[null,null,null,null,null,null,null,null,null,null,null,null,"Bank of Ireland (GB)"]
[null,null,null,null,null,null,null,null,null,null,null,null,"Bank of Ireland (NI)"]
[null,null,null,null,null,null,null,null,null,null,null,null,"Bank of Ireland Mortgages"]
[null,null,null,null,null,null,null,null,null,null,null,null,"Bank of Scotland"]
[null,null,null,null,null,null,null,null,null,null,null,null,"Bank of Scotland (IOM) Ltd"]
[null,null,null,null,null,null,null,null,null,null,null,null,"Bank of Scotland Centrebank"]
[null,null,null,null,null,null,null,null,null,null,null,null,"Bank of Scotland Mortgages Direct"]
[null,null,null,null,null,null,null,null,null,null,null,null,"Bank of Wales"]
[null,null,null,null,null,null,null,null,null,null,null,null,"Bank of Wales (Jersey) Ltd"]
[null,null,null,null,null,null,null,null,null,null,null,null,"Barclays Bank"]
[null,null,null,null,null,null,null,null,null,null,null,null,"Barnsley Building Society"]
[null,null,null,null,null,null,null,null,null,null,null,null,"Bath Building Society"]
[null,null,null,null,null,null,null,null,null,null,null,null,"Beneficial Bank"]
[null,null,null,null,null,null,null,null,null,null,null,null,"Beverly Building Society"]
[null,null,null,null,null,null,null,null,null,null,null,null,"Birmingham Midshires (Guernsey) Ltd"]
[null,null,null,null,null,null,null,null,null,null,null,null,"Birmingham Midshires Building Society"]
[null,null,null,null,null,null,null,null,null,null,null,null,"Birmingham Midshires MSL"]
[null,null,null,null,null,null,null,null,null,null,null,null,"Bradford & Bingley (IOM) Ltd"]
[null,null,null,null,null,null,null,null,null,null,null,null,"Bradford & Bingley Building Society"]
[null,null,null,null,null,null,null,null,null,null,null,null,"Bradford & Bingley MTGS Direct"]
[null,null,null,null,null,null,null,null,null,null,null,null,"Bristol & West"]
[null,null,null,null,null,null,null,null,null,null,null,null,"Bristol & West / Direct Mortgages"]
[null,null,null,null,null,null,null,null,null,null,null,null,"Bristol & West IMC"]
[null,null,null,null,null,null,null,null,null,null,null,null,"Bristol & West International Ltd"]
[null,null,null,null,null,null,null,null,null,null,null,null,"Britannia Building Society"]
[null,null,null,null,null,null,null,null,null,null,null,null,"Britannia International Ltd"]
[null,null,null,null,null,null,null,null,null,null,null,null,"Britannia Mortgage Direct"]
[null,null,null,null,null,null,null,null,null,null,null,null,"Buckinghamshire Building Society"]
[null,null,null,null,null,null,null,null,null,null,null,null,"C & G Channel Islands Ltd"]
[null,null,null,null,null,null,null,null,null,null,null,null,"C & G Mortgage Direct"]
[null,null,null,null,null,null,null,null,null,null,null,null,"Cambridge Building Society"]
[null,null,null,null,null,null,null,null,null,null,null,null,"Capital Bonds"]
[null,null,null,null,null,null,null,null,null,null,null,null,"Capital Home Loans"]
[null,null,null,null,null,null,null,null,null,null,null,null,"Capital Wise"]
[null,null,null,null,null,null,null,null,null,null,null,null,"Cater Allen Bank"]
[null,null,null,null,null,null,null,null,null,null,null,null,"Cater Allen Bank (IOM) Ltd"]
[null,null,null,null,null,null,null,null,null,null,null,null,"Cater Allen Bank (Jersey) Ltd"]
[null,null,null,null,null,null,null,null,null,null,null,null,"Chelsea Building Society"]
[null,null,null,null,null,null,null,null,null,null,null,null,"Cheltenham & Gloucester"]
[null,null,null,null,null,null,null,null,null,null,null,null,"Chesham Building Society"]
[null,null,null,null,null,null,null,null,null,null,null,null,"Cheshire Building Society"]
[null,null,null,null,null,null,null,null,null,null,null,null,"Cheshire Guernsey Ltd"]
[null,null,null,null,null,null,null,null,null,null,null,null,"Chorley & District Building Society"]
[null,null,null,null,null,null,null,null,null,null,null,null,"Citibank"]
[null,null,null,null,null,null,null,null,null,null,null,null,"Close Brothers"]
[null,null,null,null,null,null,null,null,null,null,null,null,"Clydesdale Bank"]
[null,null,null,null,null,null,null,null,null,null,null,null,"Co-operative Bank"]
[null,null,null,null,null,null,null,null,null,null,null,null,"Coutts & Co"]
[null,null,null,null,null,null,null,null,null,null,null,null,"Coventry Building Society"]
[null,null,null,null,null,null,null,null,null,null,null,null,"Cumberland Building Society"]
[null,null,null,null,null,null,null,null,null,null,null,null,"Darlington Building Society"]
[null,null,null,null,null,null,null,null,null,null,null,null,"Deposit Bonds"]
[null,null,null,null,null,null,null,null,null,null,null,null,"Derbyshire (IOM) Ltd"]
[null,null,null,null,null,null,null,null,null,null,null,null,"Derbyshire Building Society"]
[null,null,null,null,null,null,null,null,null,null,null,null,"Derbyshire Direct"]
[null,null,null,null,null,null,null,null,null,null,null,null,"Direct Line"]
[null,null,null,null,null,null,null,null,null,null,null,null,"Dudley Building Society"]
[null,null,null,null,null,null,null,null,null,null,null,null,"Dunfermline Building Society"]
[null,null,null,null,null,null,null,null,null,null,null,null,"EBS Bank (IOM) Ltd"]
[null,null,null,null,null,null,null,null,null,null,null,null,"Earl Shilton Building Society"]
[null,null,null,null,null,null,null,null,null,null,null,null,"Ecology Building Society"]
[null,null,null,null,null,null,null,null,null,null,null,null,"First Direct"]
[null,null,null,null,null,null,null,null,null,null,null,null,"First Mortgage"]
[null,null,null,null,null,null,null,null,null,null,null,null,"First National Building Society"]
[null,null,null,null,null,null,null,null,null,null,null,null,"First National Building Society Guernsey Ltd"]
[null,null,null,null,null,null,null,null,null,null,null,null,"First Option Bonds"]
[null,null,null,null,null,null,null,null,null,null,null,null,"First Trust Bank (NI)"]
[null,null,null,null,null,null,null,null,null,null,null,null,"Friends Provident"]
[null,null,null,null,null,null,null,null,null,null,null,null,"Frizzell Bank"]
[null,null,null,null,null,null,null,null,null,null,null,null,"Furness Building Society"]
[null,null,null,null,null,null,null,null,null,null,null,null,"Furness Direct"]
[null,null,null,null,null,null,null,null,null,null,null,null,"Guinness Mahon Guernsey Ltd"]
[null,null,null,null,null,null,null,null,null,null,null,null,"HFC Bank"]
[null,null,null,null,null,null,null,null,null,null,null,null,"Halifax"]
[null,null,null,null,null,null,null,null,null,null,null,null,"Halifax International (IOM) Ltd"]
[null,null,null,null,null,null,null,null,null,null,null,null,"Halifax International (Jersey) Ltd"]
[null,null,null,null,null,null,null,null,null,null,null,null,"Halifax MSL"]
[null,null,null,null,null,null,null,null,null,null,null,null,"Hambros Bank (Jersey) Ltd"]
[null,null,null,null,null,null,null,null,null,null,null,null,"Hanley Economic Building Society"]
[null,null,null,null,null,null,null,null,null,null,null,null,"Hanson Bank Ltd"]
[null,null,null,null,null,null,null,null,null,null,null,null,"Harpenden Building Society"]
[null,null,null,null,null,null,null,null,null,null,null,null,"HBOS"]
[null,null,null,null,null,null,null,null,null,null,null,null,"Hinckley & Rugby Building Society"]
[null,null,null,null,null,null,null,null,null,null,null,null,"Hoare & Co"]
[null,null,null,null,null,null,null,null,null,null,null,null,"Holmesdale Building Society"]
[null,null,null,null,null,null,null,null,null,null,null,null,"Household Mortgage Corporation"]
[null,null,null,null,null,null,null,null,null,null,null,null,"HSBC Bank"]
[null,null,null,null,null,null,null,null,null,null,null,null,"Income Bonds"]
[null,null,null,null,null,null,null,null,null,null,null,null,"Intelligent Finance"]
[null,null,null,null,null,null,null,null,null,null,null,null,"Investec Bank (Jersey) Ltd"]
[null,null,null,null,null,null,null,null,null,null,null,null,"Investec Bank (UK)"]
[null,null,null,null,null,null,null,null,null,null,null,null,"Ipswich Building Society"]
[null,null,null,null,null,null,null,null,null,null,null,null,"Irish Nationwide (IOM) Ltd"]
[null,null,null,null,null,null,null,null,null,null,null,null,"Irish Permanent"]
[null,null,null,null,null,null,null,null,null,null,null,null,"Irish Permanent (IOM) Ltd"]
[null,null,null,null,null,null,null,null,null,null,null,null,"Isle of Man Bank"]
[null,null,null,null,null,null,null,null,null,null,null,null,"Julian Hodge Bank"]
[null,null,null,null,null,null,null,null,null,null,null,null,"Jyske Bank"]
[null,null,null,null,null,null,null,null,null,null,null,null,"Kent Reliance Building Society"]
[null,null,null,null,null,null,null,null,null,null,null,null,"Lambeth Building Society"]
[null,null,null,null,null,null,null,null,null,null,null,null,"Leeds & Holbeck Building Society"]
[null,null,null,null,null,null,null,null,null,null,null,null,"Leek United Building Society"]
[null,null,null,null,null,null,null,null,null,null,null,null,"Legal & General Bank"]
[null,null,null,null,null,null,null,null,null,null,null,null,"Leopold Joseph"]
[null,null,null,null,null,null,null,null,null,null,null,null,"Leopold Joseph (Guernsey) Ltd"]
[null,null,null,null,null,null,null,null,null,null,null,null,"Lloyds Bank"]
[null,null,null,null,null,null,null,null,null,null,null,null,"Lloyds TSB Bank"]
[null,null,null,null,null,null,null,null,null,null,null,null,"Lombard Banking (Jersey) Ltd"]
[null,null,null,null,null,null,null,null,null,null,null,null,"Lombard North Central"]
[null,null,null,null,null,null,null,null,null,null,null,null,"Londonderry Prov. Building Society"]
[null,null,null,null,null,null,null,null,null,null,null,null,"Loughborough Building Society"]
[null,null,null,null,null,null,null,null,null,null,null,null,"MBNA International"]
[null,null,null,null,null,null,null,null,null,null,null,null,"Manchester Building Society"]
[null,null,null,null,null,null,null,null,null,null,null,null,"Mansfield Building Society"]
[null,null,null,null,null,null,null,null,null,null,null,null,"Market Harborough Building Society"]
[null,null,null,null,null,null,null,null,null,null,null,null,"Marsden Building Society"]
[null,null,null,null,null,null,null,null,null,null,null,null,"Melton Mowbray Building Society"]
[null,null,null,null,null,null,null,null,null,null,null,null,"Mercantile Building Society"]
[null,null,null,null,null,null,null,null,null,null,null,null,"Midland Bank"]
[null,null,null,null,null,null,null,null,null,null,null,null,"Midland Bank Offshore Ltd"]
[null,null,null,null,null,null,null,null,null,null,null,null,"Monmouthshire Building Society"]
[null,null,null,null,null,null,null,null,null,null,null,null,"Mortgage Express"]
[null,null,null,null,null,null,null,null,null,null,null,null,"Mortgage Trust"]
[null,null,null,null,null,null,null,null,null,null,null,null,"NSB Investment Account"]
[null,null,null,null,null,null,null,null,null,null,null,null,"NSB Ordinary Account"]
[null,null,null,null,null,null,null,null,null,null,null,null,"National Counties Building Society"]
[null,null,null,null,null,null,null,null,null,null,null,null,"National Westminster Bank"]
[null,null,null,null,null,null,null,null,null,null,null,null,"National Westminster Mortgage Services"]
[null,null,null,null,null,null,null,null,null,null,null,null,"Nationwide Building Society"]
[null,null,null,null,null,null,null,null,null,null,null,null,"Nationwide Direct"]
[null,null,null,null,null,null,null,null,null,null,null,null,"Nationwide International Ltd"]
[null,null,null,null,null,null,null,null,null,null,null,null,"Newbury Building Society"]
[null,null,null,null,null,null,null,null,null,null,null,null,"Newcastle Bank (Gibraltar) Ltd"]
[null,null,null,null,null,null,null,null,null,null,null,null,"Newcastle Building Society"]
[null,null,null,null,null,null,null,null,null,null,null,null,"Newcastle Direct"]
[null,null,null,null,null,null,null,null,null,null,null,null,"Northern Bank"]
[null,null,null,null,null,null,null,null,null,null,null,null,"Northern Offshore Banking & Financial Services"]
[null,null,null,null,null,null,null,null,null,null,null,null,"Northern Rock"]
[null,null,null,null,null,null,null,null,null,null,null,null,"Northern Rock (Guernsey) Ltd"]
[null,null,null,null,null,null,null,null,null,null,null,null,"Northern Rock Direct"]
[null,null,null,null,null,null,null,null,null,null,null,null,"Norwich & Peterborough Building Society"]
[null,null,null,null,null,null,null,null,null,null,null,null,"Nottingham Building Society"]
[null,null,null,null,null,null,null,null,null,null,null,null,"Nottingham Imperial Building Society"]
[null,null,null,null,null,null,null,null,null,null,null,null,"Paragon Mortgages"]
[null,null,null,null,null,null,null,null,null,null,null,null,"Pensioners Guaranteed Income Bonds"]
[null,null,null,null,null,null,null,null,null,null,null,null,"Portman Building Society"]
[null,null,null,null,null,null,null,null,null,null,null,null,"Portman Channel Islands Ltd"]
[null,null,null,null,null,null,null,null,null,null,null,null,"Principality Building Society"]
[null,null,null,null,null,null,null,null,null,null,null,null,"Progressive Building Society"]
[null,null,null,null,null,null,null,null,null,null,null,null,"Prudential Banking"]
[null,null,null,null,null,null,null,null,null,null,null,null,"Robert Fleming (IOM) Ltd"]
[null,null,null,null,null,null,null,null,null,null,null,null,"Royal Bank of Canada (IOM) Ltd"]
[null,null,null,null,null,null,null,null,null,null,null,null,"Royal Bank of Canada (Jersey) Ltd"]
[null,null,null,null,null,null,null,null,null,null,null,null,"Royal Bank of Scotland"]
[null,null,null,null,null,null,null,null,null,null,null,null,"Royal Bank of Scotland International Ltd"]
[null,null,null,null,null,null,null,null,null,null,null,null,"Saffron Walden Building Society"]
[null,null,null,null,null,null,null,null,null,null,null,null,"Sainsbury's Bank"]
[null,null,null,null,null,null,null,null,null,null,null,null,"Scarborough Building Society"]
[null,null,null,null,null,null,null,null,null,null,null,null,"Schroders (CI) Ltd"]
[null,null,null,null,null,null,null,null,null,null,null,null,"Scottish Building Society"]
[null,null,null,null,null,null,null,null,null,null,null,null,"Scottish Widows Bank"]
[null,null,null,null,null,null,null,null,null,null,null,null,"Shepshed Building Society"]
[null,null,null,null,null,null,null,null,null,null,null,null,"Singer & Friedlander (IOM) Ltd"]
[null,null,null,null,null,null,null,null,null,null,null,null,"Skipton Building Society"]
[null,null,null,null,null,null,null,null,null,null,null,null,"Skipton Guernsey Ltd"]
[null,null,null,null,null,null,null,null,null,null,null,null,"Stafford Railway Building Society"]
[null,null,null,null,null,null,null,null,null,null,null,null,"Staffordshire Building Society"]
[null,null,null,null,null,null,null,null,null,null,null,null,"Standard Bank IOM"]
[null,null,null,null,null,null,null,null,null,null,null,null,"Standard Bank Jersey"]
[null,null,null,null,null,null,null,null,null,null,null,null,"Standard Chartered Bank"]
[null,null,null,null,null,null,null,null,null,null,null,null,"Stroud & Swindon Building Society"]
[null,null,null,null,null,null,null,null,null,null,null,null,"Sun Banking Corp"]
[null,null,null,null,null,null,null,null,null,null,null,null,"Sun Banking Corp (Jersey) Ltd"]
[null,null,null,null,null,null,null,null,null,null,null,null,"Sun Banking Corporation"]
[null,null,null,null,null,null,null,null,null,null,null,null,"TSB"]
[null,null,null,null,null,null,null,null,null,null,null,null,"TSB Bank Channel Islands Ltd"]
[null,null,null,null,null,null,null,null,null,null,null,null,"Teachers Building Society"]
[null,null,null,null,null,null,null,null,null,null,null,null,"The Mortgage Business"]
[null,null,null,null,null,null,null,null,null,null,null,null,"Tipton & Coseley Building Society"]
[null,null,null,null,null,null,null,null,null,null,null,null,"UCB Home Loans Corporation"]
[null,null,null,null,null,null,null,null,null,null,null,null,"Ulster Bank"]
[null,null,null,null,null,null,null,null,null,null,null,null,"Ulster Bank (IOM) Ltd"]
[null,null,null,null,null,null,null,null,null,null,null,null,"Universal Building Society"]
[null,null,null,null,null,null,null,null,null,null,null,null,"Vernon Building Society"]
[null,null,null,null,null,null,null,null,null,null,null,null,"Wesleyan Home Loans"]
[null,null,null,null,null,null,null,null,null,null,null,null,"West Bromwich Building Society"]
[null,null,null,null,null,null,null,null,null,null,null,null,"Woolwich"]
[null,null,null,null,null,null,null,null,null,null,null,null,"Woolwich Direct"]
[null,null,null,null,null,null,null,null,null,null,null,null,"Woolwich Guernsey Ltd"]
[null,null,null,null,null,null,null,null,null,null,null,null,"Yorkshire Bank"]
[null,null,null,null,null,null,null,null,null,null,null,null,"Yorkshire Building Society"]
[null,null,null,null,null,null,null,null,null,null,null,null,"Yorkshire Guernsey Ltd"]